Workbook

Sheet employees_inf (hidden)
A1: country | B1: year | C1: mgr_college | D1: employees
A2: Afghanistan | B2: 2009 | D2: 9.595744681
A3: Angola | B3: 2010 | D3: 9.218390805
A4: Argentina | B4: 2010 | D4: 1.582524272
A5: Bangladesh | B5: 2003 | C5: 0.04568528011 | D5: 5.23857868
A6: Botswana | B6: 2010 | D6: 2.694736842
A7: Brazil | B7: 2003 | C7: 0.127976194 | D7: 2.421511628
A8: Burkina Faso | B8: 2009 | C8: 0.03603603691 | D8: 1.225225225
A9: Cambodia | B9: 2003 | C9: 0.01860465109 | D9: 5.618604651
A10: Cameroon | B10: 2009 | C10: 0.1043478251 | D10: 1.628099174
A11: Cape Verde | B11: 2006 | C11: 0.08910891414 | D11: 2.233009709
A12: Cape Verde | B12: 2009 | C12: 0.03896103799 | D12: 0.9146341463
A13: Congo, Dem. Rep. | B13: 2010 | D13: 3.861111111
A14: Egypt, Arab Rep. | B14: 2008 | C14: 0.003368983977 | D14: 4.122994652
A15: Guatemala | B15: 2003 | C15: 0.07751937956 | D15: 3.735751295
A16: Guatemala | B16: 2010 | D16: 1.46875
A17: India | B17: 2002 | C17: 0 | D17: 4.694877506
A18: Indonesia | B18: 2003 | C18: 0 | D18: 3.786231884
A19: Kenya | B19: 2003 | C19: 0.05524861813 | D19: 3.508108108
A20: Mali | B20: 2010 | D20: 4.459770115
A21: Nepal | B21: 2009 | C21: 0.200000003 | D21: 6
A22: Niger | B22: 2005 | C22: 0.046875 | D22: 4.518867925
A23: Pakistan | B23: 2003 | C23: 0.06132075563 | D23: 4.103286385
A24: Peru | B24: 2010 | D24: 2.290322581
A25: Rwanda | B25: 2011 | D25: 2.360824742
A26: Senegal | B26: 2003 | C26: 0.1597938091 | D26: 5.319587629
A27: Tanzania | B27: 2003 | C27: 0.01302931551 | D27: 3.444805195
A28: Uganda | B28: 2003 | C28: 0.1923076957 | D28: 4.578947368
A32: E:\Documents\Dropbox\InformalEconomy\Informality_2013\Enterprise surveys\DoFiles\All05222014_jan.do

Sheet employees_formal (hidden)
A1: country | B1: year | C1: mgr_college | D1: employees
A2: Afghanistan | B2: 2009 | D2: 32.1466265
A3: Angola | B3: 2010 | C3: 1 | D3: 38.23824448
A4: Argentina | B4: 2010 | D4: 237.63444
A5: Bangladesh | B5: 2003 | C5: 0.711610496 | D5: 297.6880829
A6: Botswana | B6: 2010 | C6: 1 | D6: 78.50734207
A7: Brazil | B7: 2003 | C7: 0.6514635682 | D7: 116.9479873
A8: Burkina Faso | B8: 2009 | C8: 1 | D8: 88.91176479
A9: Cambodia | B9: 2003 | C9: 0.3436293304 | D9: 100.5616151
A10: Cameroon | B10: 2009 | C10: 1 | D10: 106.0986204
A11: Cape Verde | B11: 2006 | C11: 0.3260869682 | D11: 18.34587813
A12: Cape Verde | B12: 2009 | C12: 1 | D12: 57.72992706
A13: Congo, Dem. Rep. | B13: 2010 | C13: 1 | D13: 69.77731673
A14: Egypt, Arab Rep. | B14: 2008 | D14: 239.4535714
A15: Guatemala | B15: 2003 | C15: 0.7400530577 | D15: 113.9144564
A16: Guatemala | B16: 2010 | D16: 154.3443399
A17: India | B17: 2002 | C17: 0.8928571343 | D17: 97.58333333
A18: Indonesia | B18: 2003 | C18: 0.6384976506 | D18: 587.1625
A19: Kenya | B19: 2003 | C19: 0.7096773982 | D19: 148.6258065
A20: Mali | B20: 2010 | C20: 1 | D20: 34.12239584
A21: Nepal | B21: 2009 | D21: 41.63356809
A22: Niger | B22: 2005 | C22: 0.5116279125 | D22: 42.0188676
A23: Pakistan | B23: 2003 | C23: 0.8679245114 | D23: 194.4528302
A24: Peru | B24: 2010 | D24: 205.5848116
A25: Rwanda | B25: 2011 | C25: 1 | D25: 73.08646927
A26: Senegal | B26: 2003 | C26: 0.4846938848 | D26: 91.30084844
A27: Tanzania | B27: 2003 | C27: 0.6436781883 | D27: 82.55602633
A28: Uganda | B28: 2003 | C28: 0.3419689238 | D28: 71.38341969
A32: E:\Documents\Dropbox\InformalEconomy\Informality_2013\Enterprise surveys\DoFiles\All05222014_jan.do

Sheet sales_informal (hidden)
A1: country | B1: year | C1: va | D1: sl
A2: Afghanistan | B2: 2009 | C2: 37417.46484 | D2: 56870.99609
A3: Angola | B3: 2010 | C3: 9905.800781 | D3: 15451.33008
A4: Argentina | B4: 2010 | C4: 1937.626709 | D4: 2502.443115
A5: Bangladesh | B5: 2003 | C5: 1584.251465 | D5: 4101.227051
A6: Botswana | B6: 2010 | C6: 4230.01416 | D6: 5576.239746
A7: Brazil | B7: 2003 | C7: 7901.868164 | D7: 13373.45996
A8: Burkina Faso | B8: 2009 | C8: 19031.73242 | D8: 51907.58203
A9: Cambodia | B9: 2003 | C9: 2415.090576 | D9: 4131.824219
A10: Cameroon | B10: 2009 | C10: 12776.5957 | D10: 17458.28711
A11: Cape Verde | B11: 2006 | C11: 6247.179688 | D11: 9266.155273
A12: Cape Verde | B12: 2009 | C12: 36097.64453 | D12: 47085.32812
A13: Congo, Dem. Rep. | B13: 2010 | C13: 3753.492676 | D13: 5532.481445
A14: Egypt, Arab Rep. | B14: 2008 | C14: 2947.053467 | D14: 4841.444824
A15: Guatemala | B15: 2003 | C15: 1924.601074 | D15: 4143.444824
A16: Guatemala | B16: 2010 | C16: 2675.935059 | D16: 3334.515137
A17: India | B17: 2002 | C17: 3118.395508 | D17: 6334.876465
A18: Indonesia | B18: 2003 | C18: 2768.633301 | D18: 5449.387695
A19: Kenya | B19: 2003 | C19: 3687.610107 | D19: 6505.025391
A20: Mali | B20: 2010 | C20: 4095.553223 | D20: 5875.708984
A21: Nepal | B21: 2009 | C21: 4769.088867 | D21: 10344.87695
A22: Niger | B22: 2005 | C22: 12624.35742 | D22: 13811.64941
A23: Pakistan | B23: 2003 | C23: 2381.677002 | D23: 3683.391846
A24: Peru | B24: 2010 | C24: 5135.367676 | D24: 7460.577637
A25: Rwanda | B25: 2011 | C25: 1290.1427 | D25: 4340.630859
A26: Senegal | B26: 2003 | C26: 3604.744141 | D26: 6246.336426
A27: Tanzania | B27: 2003 | C27: 1521.705444 | D27: 2655.957275
A28: Uganda | B28: 2003 | C28: 3547.262939 | D28: 6524.572266
A32: E:\Documents\Dropbox\InformalEconomy\Informality_2013\Enterprise surveys\DoFiles\All05222014_jan.do

Sheet sales_formal (hidden)
A1: country | B1: year | C1: va | D1: sl | E1: lc
A2: Afghanistan | B2: 2009 | C2: 70515.72656 | D2: 100914.5859 | E2: 26419.96289
A3: Angola | B3: 2010 | C3: 105458.2031 | D3: 127400.9062 | E3: 8185.152344
A4: Argentina | B4: 2010 | C4: 43823.10156 | D4: 100241.1172 | E4: 23895.51758
A5: Bangladesh | B5: 2003 | C5: 8530.866211 | D5: 31860.33008 | E5: 4068.02002
A6: Botswana | B6: 2010 | C6: 30050.69922 | D6: 78107.92969 | E6: 14430.22852
A7: Brazil | B7: 2003 | C7: 27568.14453 | D7: 71770.03125 | E7: 17825.99609
A8: Burkina Faso | B8: 2009 | C8: 121129.2578 | D8: 148168.5781 | E8: 17276.28125
A9: Cambodia | B9: 2003 | C9: 8620.374023 | D9: 19079.67773 | E9: 3654.962158
A10: Cameroon | B10: 2009 | C10: 38173.40625 | D10: 114598.6172 | E10: 27958.36328
A11: Cape Verde | B11: 2006 | C11: 9191.946289 | D11: 20964.52148 | E11: 4859.104492
A12: Cape Verde | B12: 2009 | C12: 51546.19531 | D12: 71186.78125 | E12: 8062.709961
A13: Congo, Dem. Rep. | B13: 2010 | C13: 344411.75 | D13: 1696349.5 | E13: 132329
A14: Egypt, Arab Rep. | B14: 2008 | C14: 25514.69336 | D14: 108042.0625
A15: Guatemala | B15: 2003 | C15: 13085.24707 | D15: 34099.86719 | E15: 10717.06445
A16: Guatemala | B16: 2010 | C16: 39346.76953 | D16: 90083.13281 | E16: 19157.26172
A17: India | B17: 2002 | C17: 17569.01172 | D17: 55479.73047 | E17: 6914.335449
A18: Indonesia | B18: 2003 | C18: 17834.12695 | D18: 96833.13281 | E18: 24030.12305
A19: Kenya | B19: 2003 | C19: 35844.55859 | D19: 149936.0156 | E19: 18244.4082
A20: Mali | B20: 2010 | C20: 21846.84961 | D20: 31438.2793 | E20: 3552.838379
A21: Nepal | B21: 2009 | C21: 18299.41992 | D21: 60284.98828 | E21: 13232.5752
A22: Niger | B22: 2005 | C22: 322051.125 | D22: 383862.0625 | E22: 32268.73828
A23: Pakistan | B23: 2003 | C23: 33029.01953 | D23: 84938.67969 | E23: 12317.68457
A24: Peru | B24: 2010 | C24: 41633.05859 | D24: 115926.0547 | E24: 19550.97656
A25: Rwanda | B25: 2011 | C25: 46876 | D25: 78503.67188 | E25: 13922.62402
A26: Senegal | B26: 2003 | C26: 26043.34961 | D26: 79389.42969 | E26: 11064.05371
A27: Tanzania | B27: 2003 | C27: 20682.33789 | D27: 52746.60156 | E27: 7950.012207
A28: Uganda | B28: 2003 | C28: 23334.47266 | D28: 65494.94141 | E28: 14590.11328
A32: E:\Documents\Dropbox\InformalEconomy\Informality_2013\Enterprise surveys\DoFiles\All05222014_jan.do

Sheet Table 1 (hidden)
C1: Measure of Informality
A2: country | B2: gdp_pc_ppp | C2: inf_wef | D2: tax_evasion | E2: self_emp_pct | F2: non_agric_self | G2: inf_elec | H2: inf_schneider | I2: register_pop
A3: Tanzania | B3: 573.72727 | C3: 35 | D3: 38.98135 | E3: 8.4 | F3: . | G3: . | H3: 59.04 | I3: 1.537585
A4: Malawi | B4: 599.18182 | C4: 36 | D4: 30.7418 | E4: 84.6 | F4: . | G4: . | H4: 41.64 | I4: 0.417366
A5: Sierra Leone | B5: 623.90909 | C5: . | D5: . | E5: . | F5: . | G5: . | H5: 43.36 | I5: .
A6: Congo, Dem. Rep. | B6: 666.09091 | C6: . | D6: 37.63717 | E6: . | F6: 52 | G6: . | H6: 49.54 | I6: .
A7: Burundi | B7: 668.90909 | C7: 34 | D7: 15.66852 | E7: . | F7: 36 | G7: . | H7: 38.46 | I7: .
A8: Niger | B8: 721.63636 | C8: . | D8: 13.09259 | E8: . | F8: . | G8: . | H8: 43.32 | I8: .
A9: Madagascar | B9: 840.27273 | C9: 40 | D9: 5.939164 | E9: 43.7 | F9: . | G9: . | H9: 40.94 | I9: 0.9781998
A10: Yemen, Rep. | B10: 851.09091 | C10: . | D10: . | E10: 58 | F10: 41 | G10: . | H10: 28.08 | I10: 1.011202
A11: Guinea-Bissau | B11: 858.45455 | C11: . | D11: 28.79208 | E11: . | F11: 48 | G11: . | H11: . | I11: .
A12: Mali | B12: 860.45455 | C12: 38 | D12: 22.77848 | E12: 71.4 | F12: 84 | G12: . | H12: 43.62 | I12: .
A13: Zambia | B13: 861.63636 | C13: 45 | D13: 16.13699 | E13: 59.7 | F13: 18 | G13: . | H13: 49.78 | I13: 5.676355
A14: Ethiopia | B14: 883.81818 | C14: 34 | D14: . | E14: 41.5 | F14: 68 | G14: . | H14: 41.7 | I14: .
A15: Nigeria | B15: 914.72727 | C15: 36 | D15: . | E15: . | F15: . | G15: 76 | H15: 59 | I15: .
A16: Mozambique | B16: 929.81818 | C16: 38 | D16: . | E16: . | F16: 47 | G16: . | H16: 42.08 | I16: .
A17: Tajikistan | B17: 965.18182 | C17: 29 | D17: 27.68589 | E17: . | F17: . | G17: . | H17: . | I17: .
A18: Benin | B18: 1005.4545 | C18: 42 | D18: 15.87013 | E18: . | F18: 89 | G18: . | H18: 48.74 | I18: .
A19: Rwanda | B19: 1025.7273 | C19: . | D19: 18.91429 | E19: . | F19: . | G19: . | H19: 41.58 | I19: .
A20: Chad | B20: 1033.0909 | C20: 41 | D20: . | E20: 65.6 | F20: 72 | G20: . | H20: 47.5 | I20: .
A21: Burkina Faso | B21: 1062.9091 | C21: 36 | D21: 22.34646 | E21: 26.3 | F21: 70 | G21: . | H21: 42.84 | I21: .
A22: Kenya | B22: 1094.8182 | C22: 33 | D22: 14.52551 | E22: . | F22: 61 | G22: . | H22: 35.12 | I22: 3.268799
A23: West Bank and Gaza | B23: 1100 | C23: . | D23: . | E23: 30.7 | F23: . | G23: . | H23: . | I23: .
A24: West Bank and Gaza | B24: 1100 | C24: . | D24: . | E24: 30.7 | F24: . | G24: . | H24: . | I24: .
A25: Congo, Rep. | B25: 1113.5455 | C25: . | D25: . | E25: . | F25: 39 | G25: . | H25: 49.8 | I25: 8.964666
A26: Eritrea | B26: 1126.5455 | C26: . | D26: 15.13461 | E26: . | F26: . | G26: . | H26: . | I26: .
A27: Central African Republic | B27: 1179.8182 | C27: . | D27: . | E27: . | F27: 58 | G27: . | H27: 45.8 | I27: .
A28: Gambia, The | B28: 1213.5083 | C28: 31 | D28: 67.43491 | E28: . | F28: 52 | G28: . | H28: . | I28: .
A29: Uganda | B29: 1224.7273 | C29: 38 | D29: 34.52202 | E29: 59.4 | F29: . | G29: . | H29: 44.76 | I29: 3.091942
A30: Nepal | B30: 1361.5455 | C30: 36 | D30: . | E30: . | F30: 59 | G30: . | H30: 39.68 | I30: .
A31: Togo | B31: 1405.7273 | C31: . | D31: . | E31: . | F31: 68 | G31: . | H31: 38.94 | I31: .
A32: Senegal | B32: 1505.5455 | C32: . | D32: 80.33569 | E32: 55.4 | F32: . | G32: . | H32: 47.08 | I32: 0.0908925
A33: Côte d'Ivoire | B33: 1600.7273 | C33: . | D33: . | E33: . | F33: . | G33: . | H33: 44.56 | I33: .
A34: Haiti | B34: 1601.7273 | C34: . | D34: . | E34: . | F34: 65 | G34: . | H34: 58 | I34: 0.0375492
A35: Kyrgyz Republic | B35: 1602.1818 | C35: 42 | D35: 21.02211 | E35: 36.7 | F35: . | G35: . | H35: 40.66 | I35: .
A36: Uzbekistan | B36: 1639.4545 | C36: . | D36: 5.221241 | E36: . | F36: . | G36: 8.4 | H36: 35.74 | I36: .
A37: Bangladesh | B37: 1664.8182 | C37: 34 | D37: . | E37: 65.1 | F37: 75 | G37: . | H37: 37.22 | I37: 0.3940215
A38: Moldova | B38: 1674.5455 | C38: 17 | D38: 19.99713 | E38: 35.9 | F38: . | G38: 32.4 | H38: 48.08 | I38: 13.867
A39: Lao PDR | B39: 1677.4545 | C39: . | D39: . | E39: 56.9 | F39: . | G39: . | H39: 32.6 | I39: .
A40: Mongolia | B40: 1690 | C40: 34 | D40: 37.3625 | E40: 35.6 | F40: . | G40: . | H40: 20.04 | I40: .
A41: Angola | B41: 1702.3636 | C41: 38 | D41: 50.87711 | E41: . | F41: . | G41: . | H41: 44.56 | I41: .
A42: Marshall Islands | B42: 1820.3691 | C42: . | D42: . | E42: . | F42: . | G42: . | H42: 28.66 | I42: .
A43: Cambodia | B43: 1962.4545 | C43: 34 | D43: 52.63764 | E43: 41.2 | F43: 49 | G43: . | H43: 51.78 | I43: .
A44: Cameroon | B44: 1978.7273 | C44: 37 | D44: 12.40625 | E44: 59.3 | F44: . | G44: . | H44: 33.88 | I44: .
A45: Djibouti | B45: 1979.7273 | C45: . | D45: . | E45: 17.7 | F45: . | G45: . | H45: . | I45: .
A46: Mauritania | B46: 1992 | C46: 32 | D46: 46.99123 | E46: . | F46: . | G46: . | H46: 37.1 | I46: .
A47: Pakistan | B47: 2001 | C47: 30 | D47: . | E47: 38 | F47: 43 | G47: . | H47: 38.42 | I47: 0.2744527
A48: Solomon Islands | B48: 2032.3636 | C48: . | D48: . | E48: . | F48: . | G48: . | H48: 34.36 | I48: .
A49: Ghana | B49: 2062.3636 | C49: . | D49: . | E49: . | F49: 67 | G49: . | H49: 43.04 | I49: 4.551487
A50: Guinea | B50: 2062.5455 | C50: . | D50: 64.25493 | E50: . | F50: 72 | G50: . | H50: 40.88 | I50: .
A51: Vietnam | B51: 2302.8182 | C51: 27 | D51: 9.129848 | E51: 41.7 | F51: . | G51: . | H51: 16.68 | I51: .
A52: Georgia | B52: 2388.2727 | C52: 32 | D52: 22.7934 | E52: 36.8 | F52: . | G52: 53.1 | H52: 67.32 | I52: 11.09441
A53: Zimbabwe | B53: 2409.1818 | C53: 41 | D53: . | E53: 50.4 | F53: . | G53: . | H53: 62.42 | I53: .
A54: Papua New Guinea | B54: 2411.2727 | C54: . | D54: . | E54: . | F54: . | G54: . | H54: 37.46 | I54: .
A55: Bolivia | B55: 2491.2727 | C55: 43 | D55: 20.23091 | E55: 44.4 | F55: 68 | G55: . | H55: 67.74 | I55: 2.505373
A56: Montenegro | B56: 2500 | C56: . | D56: 28.12195 | E56: . | F56: . | G56: . | H56: . | I56: .
A57: Timor-Leste | B57: 2500 | C57: 29 | D57: . | E57: . | F57: . | G57: . | H57: . | I57: .
A58: India | B58: 2637.9091 | C58: 27 | D58: 27.70499 | E58: . | F58: 37 | G58: . | H58: 24.78 | I58: 0.6098422
A59: Lesotho | B59: 2856.1818 | C59: 33 | D59: 15.87375 | E59: 60.3 | F59: . | G59: . | H59: 32.42 | I59: .
A60: Honduras | B60: 3025.1818 | C60: 38 | D60: 23.46418 | E60: 39.2 | F60: 52 | G60: . | H60: 50.42 | I60: .
A61: Vanuatu | B61: 3107 | C61: . | D61: . | E61: . | F61: . | G61: . | H61: 31.7 | I61: .
A62: Armenia | B62: 3184.5455 | C62: 32 | D62: 6.091639 | E62: 17.2 | F62: . | G62: . | H62: 47.84 | I62: 38.41116
A63: Azerbaijan | B63: 3221.1818 | C63: 33 | D63: 13.61413 | E63: . | F63: . | G63: 47.2 | H63: 60.64 | I63: .
A64: Indonesia | B64: 3242.5455 | C64: 38 | D64: 27.29835 | E64: 44.7 | F64: 51 | G64: . | H64: 22.34 | I64: 1.106817
A65: Nicaragua | B65: 3267.1818 | C65: 35 | D65: 37.48138 | E65: 40.7 | F65: . | G65: . | H65: 47.44 | I65: .
A66: Syrian Arab Republic | B66: 3399.2727 | C66: . | D66: 49.60403 | E66: 34.3 | F66: 29 | G66: . | H66: 20.84 | I66: 0.1230289
A67: Ecuador | B67: 3626.6364 | C67: 35 | D67: 23.53912 | E67: 34.3 | F67: 49 | G67: . | H67: 35.5 | I67: .
A68: Egypt | B68: 3674.8182 | C68: 31 | D68: 17.03205 | E68: 29.5 | F68: 25 | G68: 68 | H68: 35.94 | I68: 5.045436
A69: Sri Lanka | B69: 3710.4545 | C69: 31 | D69: 7.718121 | E69: 32.3 | F69: 17 | G69: 40 | H69: 46.96 | I69: 2.679401
A70: Cape Verde | B70: 3754.1159 | C70: . | D70: 11.64773 | E70: . | F70: . | G70: . | H70: . | I70: .
A71: Jamaica | B71: 3816.2727 | C71: 38 | D71: 13.27069 | E71: 36.2 | F71: . | G71: . | H71: 38.14 | I71: .
A72: Morocco | B72: 3914.7273 | C72: 33 | D72: 3.998775 | E72: 30.9 | F72: 40 | G72: 39 | H72: 37.08 | I72: 4.622209
A73: Albania | B73: 4045.7273 | C73: 22 | D73: 21.9579 | E73: . | F73: . | G73: . | H73: 34.52 | I73: 4.601908
A74: Bhutan | B74: 4113.7273 | C74: . | D74: . | E74: . | F74: . | G74: . | H74: 31.48 | I74: .
A75: Guyana | B75: 4114.6364 | C75: 38 | D75: 26.61157 | E75: 39.5 | F75: . | G75: . | H75: . | I75: .
A76: Guatemala | B76: 4123.3636 | C76: 39 | D76: 24.60153 | E76: 37.9 | F76: 45 | G76: 61 | H76: 51.44 | I76: 5.385787
A77: Maldives | B77: 4188.0509 | C77: . | D77: . | E77: 58.7 | F77: . | G77: . | H77: 31.24 | I77: .
A78: Philippines | B78: 4294.9091 | C78: 32 | D78: 23.24894 | E78: 37 | F78: 34 | G78: 50 | H78: 44.58 | I78: .
A79: Paraguay | B79: 4458.9091 | C79: 41 | D79: 19.05206 | E79: 44.9 | F79: . | G79: 27 | H79: 30.7 | I79: .
A80: Cuba | B80: 4500 | C80: . | D80: . | E80: 20.2 | F80: 1 | G80: . | H80: . | I80: .
A81: Jordan | B81: 4562.2727 | C81: 23 | D81: . | E81: . | F81: 24 | G81: . | H81: 20.62 | I81: 17.65719
A82: Kiribati | B82: 4593.9091 | C82: . | D82: . | E82: . | F82: . | G82: . | H82: 34.64 | I82: .
A83: Lebanon | B83: 4687.5455 | C83: . | D83: 34.26374 | E83: . | F83: 34 | G83: . | H83: 35.9 | I83: 15.26144
A84: China | B84: 4687.8182 | C84: 28 | D84: 40.97363 | E84: . | F84: 15 | G84: . | H84: 15.16 | I84: .
A85: El Salvador | B85: 4731.5455 | C85: 32 | D85: 20.91471 | E85: 32.4 | F85: 47 | G85: . | H85: 47.4 | I85: 6.195096
A86: Ukraine | B86: 4959.3636 | C86: 35 | D86: 11.91182 | E86: 17.7 | F86: . | G86: 38.65 | H86: 54.14 | I86: 9.265791
A87: Swaziland | B87: 4983.992 | C87: . | D87: 57.90582 | E87: 21.1 | F87: . | G87: . | H87: . | I87: .
A88: Samoa | B88: 5026.8182 | C88: . | D88: . | E88: . | F88: . | G88: . | H88: 32.68 | I88: .
A89: Peru | B89: 5093.2727 | C89: 39 | D89: 17.79045 | E89: 37.1 | F89: . | G89: 44 | H89: 59.68 | I89: 19.0189
A90: Fiji | B90: 5284 | C90: . | D90: . | E90: . | F90: . | G90: . | H90: 34.28 | I90: .
A91: Kazakhstan | B91: 5427.3636 | C91: 35 | D91: 12.36517 | E91: 36.6 | F91: . | G91: 28.25 | H91: 44.5 | I91: 1.934368
A92: St. Vincent and the Grenadines | B92: 5492.9091 | C92: . | D92: . | E92: 23.5 | F92: . | G92: . | H92: . | I92: .
A93: Belarus | B93: 5581.2727 | C93: . | D93: 7.244864 | E93: . | F93: . | G93: 16.65 | H93: 49.82 | I93: .
A94: Dominica | B94: 5730.2727 | C94: . | D94: . | E94: 29.4 | F94: . | G94: . | H94: . | I94: .
A95: Algeria | B95: 5780.7273 | C95: 36 | D95: 26.80745 | E95: 27.8 | F95: 28 | G95: . | H95: 34.68 | I95: 2.686401
A96: Palau | B96: 5902.4321 | C96: . | D96: . | E96: . | F96: . | G96: . | H96: 29.04 | I96: .
A97: Belize | B97: 5906 | C97: . | D97: . | E97: 26.7 | F97: . | G97: . | H97: . | I97: .
A98: Venezuela | B98: 5953.0909 | C98: 41 | D98: . | E98: 43.4 | F98: 44 | G98: 30 | H98: 35.38 | I98: .
A99: St. Lucia | B99: 5979.9091 | C99: . | D99: . | E99: 33.2 | F99: . | G99: . | H99: . | I99: .
A100: Bosnia and Herzegovina | B100: 6040.9863 | C100: 35 | D100: 20.80769 | E100: . | F100: . | G100: . | H100: 35.54 | I100: 7.931978
A101: Macedonia, FYR | B101: 6108.5455 | C101: 31 | D101: 27.19075 | E101: 17.7 | F101: . | G101: . | H101: 35.84 | I101: 71.67154
A102: Suriname | B102: 6246.5455 | C102: 33 | D102: . | E102: 16.3 | F102: . | G102: . | H102: . | I102: .
A103: Gabon | B103: 6262.0909 | C103: . | D103: . | E103: 45.4 | F103: . | G103: . | H103: . | I103: .
A104: Namibia | B104: 6348 | C104: 29 | D104: 25.41925 | E104: 16 | F104: . | G104: . | H104: 32.56 | I104: .
A105: Panama | B105: 6357.6364 | C105: 28 | D105: 37.00914 | E105: 31.3 | F105: 30 | G105: 40 | H105: 64.16 | I105: .
A106: Colombia | B106: 6433 | C106: 30 | D106: 17.06631 | E106: 44.4 | F106: 49 | G106: 25 | H106: 41.9 | I106: 0.4217576
A107: Iran, Islamic Rep. | B107: 6434.2727 | C107: . | D107: . | E107: 39.7 | F107: 37 | G107: . | H107: 19.62 | I107: .
A108: Dominican Republic | B108: 6533.5455 | C108: 34 | D108: . | E108: 43.8 | F108: 45 | G108: . | H108: 33.76 | I108: .
A109: Micronesia, Fed. Sts. | B109: 6573.8182 | C109: . | D109: . | E109: . | F109: . | G109: . | H109: 32.22 | I109: .
A110: Tunisia | B110: 6748 | C110: 20 | D110: . | E110: 26.8 | F110: 30 | G110: 45 | H110: 39.02 | I110: 5.596938
A111: Turkey | B111: 6850.2727 | C111: 35 | D111: 29.21146 | E111: 29.8 | F111: 28 | G111: . | H111: 33.34 | I111: 8.521801
A112: Bulgaria | B112: 6919 | C112: 32 | D112: 13.7021 | E112: 12.5 | F112: 0 | G112: 31.25 | H112: 37.24 | I112: .
A113: Tonga | B113: 6936.5455 | C113: . | D113: . | E113: . | F113: . | G113: . | H113: 36.28 | I113: .
A114: Grenada | B114: 7013.9091 | C114: . | D114: . | E114: 22.9 | F114: . | G114: . | H114: . | I114: .
A115: Romania | B115: 7065.2727 | C115: 23 | D115: 9.837368 | E115: 21.4 | F115: 6 | G115: 17.55 | H115: 35.9 | I115: 33.80524
A116: Thailand | B116: 7085.8182 | C116: 23 | D116: . | E116: 34 | F116: 36 | G116: 71 | H116: 53.6 | I116: .
A117: Brazil | B117: 7503.7273 | C117: 34 | D117: 33.01111 | E117: 26.1 | F117: 35 | G117: 29 | H117: 41.48 | I117: .
A118: Serbia and Montenegro | B118: 7607.0135 | C118: 29 | D118: 18.07123 | E118: . | F118: . | G118: . | H118: 37.66 | I118: 31.41909
A119: Russia | B119: 8000.6364 | C119: 38 | D119: 17.03049 | E119: 7.7 | F119: 5 | G119: 34.3 | H119: 47.56 | I119: 29.79276
A120: Costa Rica | B120: 8553.5455 | C120: 27 | D120: 28.41949 | E120: 26.3 | F120: 33 | G120: 34 | H120: 26.88 | I120: 86.36354
A121: Uruguay | B121: 9063.8182 | C121: 27 | D121: 14.66033 | E121: 27.3 | F121: 22 | G121: . | H121: 50.88 | I121: .
A122: Malaysia | B122: 9064.2727 | C122: 15 | D122: . | E122: 18.9 | F122: 17 | G122: 39 | H122: 31.66 | I122: .
A123: Botswana | B123: 9176.3636 | C123: 21 | D123: 47.61612 | E123: 12.2 | F123: 13 | G123: 27 | H123: 33.98 | I123: 37.16033
A124: Mexico | B124: 9347.9091 | C124: 37 | D124: 23.74156 | E124: 28.3 | F124: 39 | G124: 49 | H124: 31.88 | I124: 41.61447
A125: South Africa | B125: 9459.8182 | C125: 29 | D125: 8.898832 | E125: 18.3 | F125: 17 | G125: . | H125: 28.84 | I125: 11.39272
A126: Latvia | B126: 9514.7273 | C126: 23 | D126: 9.946644 | E126: 9.3 | F126: . | G126: 29.8 | H126: 40.34 | I126: 77.1461
A127: Chile | B127: 9838.9091 | C127: 14 | D127: 7.923832 | E127: 27.8 | F127: 29 | G127: 37 | H127: 20.14 | I127: 10.49737
A128: Croatia | B128: 10309 | C128: 30 | D128: 10.29391 | E128: 22.2 | F128: 8 | G128: . | H128: 34.36 | I128: 23.63692
A129: Mauritius | B129: 10339.182 | C129: 23 | D129: 12.46296 | E129: 17.3 | F129: 17 | G129: 20 | H129: . | I129: .
A130: Serbia | B130: 10400 | C130: . | D130: 23.12593 | E130: . | F130: . | G130: . | H130: . | I130: .
A131: Lithuania | B131: 10443.273 | C131: 16 | D131: 34.95359 | E131: 14 | F131: 63 | G131: 23.8 | H131: 31.16 | I131: 18.86542
A132: Trinidad and Tobago | B132: 10668.364 | C132: 30 | D132: . | E132: 19.2 | F132: . | G132: . | H132: . | I132: .
A133: Antigua and Barbuda | B133: 10810.182 | C133: . | D133: . | E133: 17.8 | F133: . | G133: . | H133: . | I133: .
A134: Estonia | B134: 11227.091 | C134: 16 | D134: 5.078529 | E134: 7.9 | F134: . | G134: 17.85 | H134: 39 | I134: 48.7051
A135: Poland | B135: 11404.273 | C135: 26 | D135: 9.329035 | E135: 20.5 | F135: 12 | G135: 16.45 | H135: 28.04 | I135: 12.94417
A136: St. Kitts and Nevis | B136: 11686.364 | C136: . | D136: . | E136: 11.3 | F136: . | G136: . | H136: . | I136: .
A137: Argentina | B137: 12394.273 | C137: 34 | D137: 17.47096 | E137: 24.3 | F137: 29 | G137: . | H137: 27.44 | I137: 10.18844
A138: Slovakia | B138: 12733.091 | C138: 19 | D138: 8.922605 | E138: 12.5 | F138: 5 | G138: 10 | H138: 19.14 | I138: 12.71127
A139: Oman | B139: 12996.222 | C139: . | D139: 27.64982 | E139: 11.4 | F139: 4 | G139: . | H139: 19.18 | I139: .
A140: Saudi Arabia | B140: 13930 | C140: . | D140: . | E140: . | F140: . | G140: . | H140: 18.98 | I140: .
A141: Hungary | B141: 14206.727 | C141: 28 | D141: 11.67047 | E141: 13.2 | F141: 12 | G141: 29.85 | H141: 25.32 | I141: 21.61289
A142: New Caledonia | B142: 15000 | C142: . | D142: . | E142: 15.9 | F142: . | G142: . | H142: . | I142: .
A143: Seychelles | B143: 15879.091 | C143: . | D143: . | E143: 11.1 | F143: . | G143: . | H143: . | I143: .
A144: Bahamas, The | B144: 15938.143 | C144: . | D144: . | E144: 14.8 | F144: . | G144: . | H144: . | I144: .
A145: Netherlands Antilles | B145: 16000 | C145: . | D145: . | E145: 9 | F145: . | G145: . | H145: . | I145: .
A146: Bahrain | B146: 16572.7 | C146: 18 | D146: . | E146: . | F146: 5 | G146: . | H146: . | I146: .
A147: Czech Republic | B147: 16919.091 | C147: 18 | D147: 11.42811 | E147: 15.7 | F147: 13 | G147: 12.35 | H147: 19.26 | I147: 24.93371
A148: Malta | B148: 17077 | C148: 23 | D148: . | E148: 13.7 | F148: . | G148: . | H148: . | I148: 85.62683
A149: Korea | B149: 17571.182 | C149: 29 | D149: 10.21154 | E149: 27 | F149: 30 | G149: 38 | H149: 28.04 | I149: .
A150: Slovenia | B150: 17985.818 | C150: 16 | D150: 10.8343 | E150: 10 | F150: 9 | G150: . | H150: 28.06 | I150: 17.90328
A151: Greece | B151: 18710.636 | C151: 28 | D151: 11.22422 | E151: 30.1 | F151: 31 | G151: 21.2 | H151: 27.82 | I151: 2.883105
A152: Portugal | B152: 18868.818 | C152: 19 | D152: 8.342282 | E152: 23.5 | F152: 19 | G152: 16.8 | H152: 21.72 | I152: 24.77176
A153: Cyprus | B153: 19008.333 | C153: 19 | D153: . | E153: 20.5 | F153: . | G153: 21 | H153: . | I153: 166.1911
A154: Barbados | B154: 19300 | C154: 23 | D154: . | E154: 15.2 | F154: . | G154: . | H154: . | I154: .
A155: Puerto Rico | B155: 19557.225 | C155: . | D155: . | E155: 14.1 | F155: . | G155: . | H155: 29.26 | I155: .
A156: Kuwait | B156: 21058.3 | C156: 18 | D156: . | E156: . | F156: 6 | G156: . | H156: 20.86 | I156: .
A157: Aruba | B157: 21800 | C157: . | D157: . | E157: 2.6 | F157: . | G157: . | H157: . | I157: .
A158: New Zealand | B158: 21819.364 | C158: 13 | D158: . | E158: 17.9 | F158: 16 | G158: . | H158: 12.04 | I158: 81.20921
A159: United Arab Emirates | B159: 22418.2 | C159: 14 | D159: . | E159: . | F159: 8 | G159: . | H159: 27 | I159: .
A160: Israel | B160: 22541.5 | C160: 16 | D160: . | E160: 12.8 | F160: . | G160: 29 | H160: 22.88 | I160: 53.45232
A161: Spain | B161: 22793.818 | C161: 22 | D161: 3.514231 | E161: 16.5 | F161: 19 | G161: 23.9 | H161: 21.78 | I161: 47.50602
A162: Singapore | B162: 24277.818 | C162: 9 | D162: . | E162: 13.3 | F162: 13 | G162: 13 | H162: 13.06 | I162: 22.4015
A163: Macao, China | B163: 25016.545 | C163: . | D163: . | E163: 9.3 | F163: . | G163: . | H163: . | I163: .
A164: Italy | B164: 26383.091 | C164: 31 | D164: . | E164: 17.2 | F164: 26 | G164: . | H164: 25.56 | I164: 28.30902
A165: Germany | B165: 26461.273 | C165: 17 | D165: 5.796642 | E165: 11.2 | F165: 10 | G165: 15.2 | H165: 16.1 | I165: 5.636863
A166: Japan | B166: 26849.091 | C166: 15 | D166: . | E166: 10.2 | F166: 14 | G166: 13.7 | H166: 10.26 | I166: 20.02029
A167: Finland | B167: 27220.273 | C167: 11 | D167: . | E167: 12 | F167: 9 | G167: 13.3 | H167: 17.14 | I167: 21.61923
A168: Sweden | B168: 27586.909 | C168: 20 | D168: . | E168: 9.6 | F168: 9 | G168: . | H168: 18.02 | I168: 32.69263
A169: Hong Kong, China | B169: 27852 | C169: 13 | D169: . | E169: 11.5 | F169: 10 | G169: 13 | H169: 16.58 | I169: 77.41052
A170: France | B170: 27903.636 | C170: 14 | D170: . | E170: 9.9 | F170: 11 | G170: . | H170: 14.34 | I170: 19.25784
A171: United Kingdom | B171: 28055.091 | C171: 17 | D171: . | E171: 12.7 | F171: 13 | G171: 13.6 | H171: 11.88 | I171: 31.95268
A172: Canada | B172: 28321.545 | C172: 18 | D172: . | E172: 15.4 | F172: 8 | G172: . | H172: 15.18 | I172: 43.57422
A173: Belgium | B173: 28480.909 | C173: 23 | D173: . | E173: 13.5 | F173: 14 | G173: 22 | H173: 21.04 | I173: 31.22687
A174: Australia | B174: 28965.182 | C174: 14 | D174: . | E174: 12.7 | F174: 9 | G174: 15.3 | H174: 13.56 | I174: 43.87865
A175: Austria | B175: 29205.727 | C175: 15 | D175: . | E175: 11.8 | F175: 8 | G175: 15 | H175: 10.14 | I175: 20.21795
A176: Denmark | B176: 29770.273 | C176: 16 | D176: . | E176: 7.8 | F176: 7 | G176: 17.8 | H176: 17.2 | I176: 39.04678
A177: Taiwan | B177: 30100 | C177: 21 | D177: . | E177: 21 | F177: . | G177: . | H177: 26.6 | I177: .
A178: Iceland | B178: 30288.091 | C178: 11 | D178: . | E178: 13.9 | F178: . | G178: . | H178: . | I178: 73.61381
A179: Netherlands | B179: 30372.909 | C179: 14 | D179: . | E179: 11.3 | F179: 9 | G179: 13.5 | H179: 12.36 | I179: 60.20026
A180: Ireland | B180: 30675.091 | C180: 15 | D180: 3.931035 | E180: 16.6 | F180: 18 | G180: 20.7 | H180: 15.16 | I180: 38.42447
A181: Switzerland | B181: 32033 | C181: 11 | D181: . | E181: 14 | F181: . | G181: 10.2 | H181: 8.98 | I181: 18.12474
A182: San Marino | B182: 34100 | C182: . | D182: . | E182: 11.1 | F182: . | G182: . | H182: . | I182: .
A183: Isle of Man | B183: 35000 | C183: . | D183: . | E183: 14.6 | F183: . | G183: . | H183: . | I183: .
A184: Norway | B184: 35727.818 | C184: 13 | D184: . | E184: 7.1 | F184: 9 | G184: . | H184: 18.18 | I184: 62.61652
A185: United States | B185: 35729.455 | C185: 18 | D185: . | E185: 7.4 | F185: 7 | G185: 10.5 | H185: 8.38 | I185: 17.18249
A186: Luxembourg | B186: 52335.091 | C186: 13 | D186: . | E186: 6.8 | F186: . | G186: . | H186: . | I186: 43.5299
A187: Qatar | B187: 80900 | C187: 14 | D187: . | E187: 1.1 | F187: 2 | G187: . | H187: . | I187: .
A189: Table 1. Size of the Informal Economy by Alternative Measures
A190: Percent except where stated otherwise
C192: Measure of Informality
A193: Income quartile | B193: GDP/Population | C193: % GDP Informal | D193: % Tax Evasion | E193: % Self-employment | F193: % Self-employment non-agriculture | G193: % GDP Informal | H193: % GDP Informal | I193: Registered firms /
C194: (World Economic Forum) | D194: (Enterprise survey) | G194: (electricity consumption) | H194: (multiple indicators) | I194: population (000s)
A195: Bottom | B195: 428.51257 | C195: 35.38462 | D195: 28.96357 | E195: 46.44545 | F195: 57.3182 | G195: 38.93333 | H195: 42.2775 | I195: 3.154394
A196: Second | B196: 1362.4331 | C196: 33.65517 | D196: 23.28847 | E196: 35.74828 | F196: 37.1111 | G196: 42.7375 | H196: 39.78947 | I196: 8.233587
A197: Third | B197: 4001.6082 | C197: 27.57576 | D197: 19.66148 | E197: 23.05385 | F197: 24.6296 | G197: 31.27857 | H197: 34.14778 | I197: 28.66666
A198: Top | B198: 20347.839 | C198: 17.27027 | D198: 8.160295 | E198: 13.33488 | F198: 12.4828 | G198: 17.57381 | H198: 18.33677 | I198: 41.84715
A199: Sample mean | B199: =AVERAGE(B3:B187) -> 10015.28355 | C199: =AVERAGE(C3:C187) -> 27.56 | D199: =AVERAGE(D3:D187) -> 22.4986986 | E199: 26.54887218 | F199: 30.79166667 | G199: 29.04473684 | H199: 34.48868966 | I199: 24.69615046
A200: Difference 1st vs. 4th quartile | B200: -19,919a | C200: -18.1a | D200: -20.8a | E200: -33.1a | F200: -44.8a | G200: -21.4a | H200: -23.9a | I200: 38.7a
A201: Observations | B201: =COUNT(B3:B187) -> 185 | C201: 125 | D201: 95 | E201: 133 | F201: 96 | G201: 57 | H201: 145 | I201: 83
A204: "C:\Documents and Settings\Rafael.LaPorta\My Documents\InformalEconomy\Nick\size_informal\size03.do"
... 7 more rows

Sheet Table 2 (hidden)
A1: Table 2. Obstacles to Doing Business
E4: Informal Survey | F4: Enterprise Survey | J4: Enterprise vs Informal
B5: STATA Label | C5: Unregistered | D5: Registered | F5: Small | G5: Medium | H5: Big | I5: All | L5: Registered vs Unregistered | N5: Small vs Unregistered | P5: Big vs Small
A6: Obstacles (% of firms identifying an obstacle as the most important)
A7: Access to Financing | B7: access_fin | C7: 0.438337326 | E7: 0.438337326 | F7: 0.2060754597 | G7: 0.1777112633 | H7: 0.1356763542 | I7: 0.1854551733 | J7: -0.2528821528 | K7: a | N7: -0.2322618663 | O7: a | P7: -0.07039910555
A8: Political instability | B8: instability | C8: 0.113971673 | E8: 0.113971673 | F8: 0.0946906805 | G8: 0.09056580067 | H8: 0.1172756031 | I8: 0.09744717181 | J8: -0.01652450114 | N8: -0.01928099245 | P8: 0.02258492261
A9: Access to Land | B9: access_land | C9: 0.1124918237 | E9: 0.1124918237 | F9: 0.05620088801 | G9: 0.04150569066 | H9: 0.04072908685 | I9: 0.04992770776 | J9: -0.06256411597 | K9: b | N9: -0.05629093572 | O9: c | P9: -0.01547180116
A10: Corruption | B10: tax_adm | C10: 0.07378425449 | E10: 0.07378425449 | F10: 0.07323680073 | G10: 0.08194738626 | H10: 0.06027173251 | I10: 0.07390160859 | J10: 0.000117354095 | N10: -0.0005474537611 | P10: -0.01296506822
A11: Electricity | B11: electricity | C11: 0.07285762578 | E11: 0.07285762578 | F11: 0.1002130434 | G11: 0.09786203504 | H11: 0.07401460409 | I11: 0.09819155931 | J11: 0.02533393353 | N11: 0.02735541761 | P11: -0.0261984393 | Q11: c
A12: Business licensing and permits | B12: licensing | C12: 0.06280513853 | E12: 0.06280513853 | F12: 0.02293516323 | G12: 0.02723373659 | H12: 0.01732451469 | I12: 0.02371596359 | J12: -0.03908917494 | K12: b | N12: -0.0398699753 | O12: b | P12: -0.005610648543
A13: Crime | B13: crime | C13: 0.03383488208 | E13: 0.03383488208 | F13: 0.05224126205 | G13: 0.04963967577 | H13: 0.07182788849 | I13: 0.05372531712 | J13: 0.01989043504 | N13: 0.01840637997 | P13: 0.01958662644
A14: Legal System | B14: corruption | C14: 0.03289856017 | E14: 0.03289856017 | F14: 0.004975167103 | G14: 0.005367171019 | H14: 0.01915937848 | I14: 0.0076399846 | J14: -0.02525857557 | K14: a | N14: -0.02792339306 | O14: a | P14: 0.01418421138
A15: Customs and Trade Regulations | B15: customs | C15: 0.02079271525 | E15: 0.02079271525 | F15: 0.03206944838 | G15: 0.04427544773 | H15: 0.04982123151 | I15: 0.03837409616 | J15: 0.0175813809 | N15: 0.01127673313 | P15: 0.01775178313
A16: Uneducated Workforce | B16: workforce | C16: 0.01832220517 | E16: 0.01832220517 | F16: 0.04617222771 | G16: 0.05970532447 | H16: 0.1038939729 | I16: 0.05991169438 | J16: 0.04158948921 | K16: c | N16: 0.02785002254 | O16: c | P16: 0.05772174522
A17: Labor Regulations | B17: labor_reg | C17: 0.01821002923 | E17: 0.01821002923 | F17: 0.02570175938 | G17: 0.03071244434 | H17: 0.04782791436 | I17: 0.03262693435 | J17: 0.01441690512 | N17: 0.007491730154 | P17: 0.02212615497
A18: Tax Administration | B18: courts | C18: 0.001016260125 | E18: 0.001016260125 | F18: 0.04263535142 | G18: 0.06744459271 | H18: 0.06355876476 | I18: 0.05342900753 | J18: 0.05241274741 | K18: b | N18: 0.04161909129 | P18: 0.02092341334
A19: Practices of competitors in the informal economy | B19: informals | C19: 0.0006775067304 | E19: 0.0006775067304 | F19: 0.143707186 | G19: 0.1344675422 | H19: 0.09855324775 | I19: 0.1293186694 | J19: 0.1286411627 | K19: a | N19: 0.1430296793 | O19: a | P19: -0.04515393823
A20: Tax Rates | B20: tax_rates | C20: 0 | E20: 0 | F20: 0.07728245109 | G20: 0.06222001091 | H20: 0.06331431121 | I20: 0.06828296185 | J20: 0.06828296185 | K20: a | N20: 0.07728245109 | O20: a | P20: -0.01396813989
A21: Transportation | B21: transport | C21: 0 | E21: 0 | F21: 0.02186311409 | G21: 0.02934188582 | H21: 0.03675138205 | I21: 0.02805216238 | J21: 0.02805216238 | K21: a | N21: 0.02186311409 | O21: a | P21: 0.01488826796
A23: Panel B: Micro Survey
C24: Micro Survey | F24: Enterprise Survey | J24: Differences
B25: STATA Label | C25: Unregistered | D25: Registered | E25: All | F25: Small | G25: Medium | H25: Big | I25: All | J25: Enterprise vs Micro | L25: Registered vs Unregistered | N25: Small vs Unregistered | P25: Big vs Small
A26: Obstacles (% of firms identifying an obstacle as the most important)
A27: Macro Instability | B27: macro | C27: =IF(S27<>"",S27,"") ->  | L27: =D27-C27 ->  | AB27: group | AC27: telecom | AD27: electricity | AE27: transport | AF27: access_land | AG27: tax_rates | AH27: tax_adm | AI27: customs | AJ27: courts | AK27: labor_reg | AL27: workforce | AM27: licensing | AN27: access_fin | AO27: instability | AP27: macro | AQ27: corruption | AR27: crime | AS27: informals
A28: Telecommunications | B28: telecom | AB28: 1 | AC28: 0.0204753 | AD28: 0.1706729 | AE28: 0.0630729 | AF28: 0.0755813 | AG28: 0.0452867 | AH28: 0.0144659 | AI28: 0.0151365 | AJ28: 0 | AK28: 0 | AL28: 0.0078963 | AM28: 0.0383149 | AN28: 0.2915881 | AO28: 0.0275767 | AP28: 0.0403501 | AQ28: 0.0180053 | AR28: 0.0344297 | AS28: 0.0970222
A29: Electricity | B29: electricity | J29: =I29-E29 ->  | N29: =F29-C29 ->  | O29: c | P29: =H29-F29 ->  | AB29: 2 | AC29: 0.0193862 | AD29: 0.2339904 | AE29: 0.0638954 | AF29: 0.0471517 | AG29: 0.0627063 | AH29: 0.016168 | AI29: 0.0165945 | AJ29: 0.0021368 | AK29: 0.0027716 | AL29: 0.0076617 | AM29: 0.0258259 | AN29: 0.2001055 | AO29: 0.0223859 | AP29: 0.0802112 | AQ29: 0.0227196 | AR29: 0.0478969 | AS29: 0.0792674
A30: Access to Financing | B30: access_fin | M30: c | O30: c | AB30: 2.5 | AC30: 0.0199757 | AD30: 0.1997864 | AE30: 0.0652186 | AF30: 0.0536656 | AG30: 0.0538659 | AH30: 0.0140709 | AI30: 0.0165913 | AJ30: 0.0016844 | AK30: 0.0020287 | AL30: 0.0077928 | AM30: 0.0276112 | AN30: 0.2312147 | AO30: 0.0287445 | AP30: 0.0704091 | AQ30: 0.0204221 | AR30: 0.0488851 | AS30: 0.0850621
A31: Tax Rates | B31: tax_rates | M31: c | O31: b | AB31: 3 | AC31: . | AD31: 0.3000492 | AE31: 0.0353222 | AF31: 0.0354422 | AG31: 0.1087141 | AH31: 0.0167827 | AI31: 0.0202882 | AJ31: 0.0044531 | AK31: 0.004802 | AL31: 0.022528 | AM31: 0.0246916 | AN31: 0.1997701 | AO31: 0.0447459 | AP31: . | AQ31: 0.041125 | AR31: 0.0472155 | AS31: 0.0936734
A32: Practices of competitors in the informal economy | B32: informals | AB32: 4 | AC32: . | AD32: 0.3127741 | AE32: 0.0421397 | AF32: 0.0244305 | AG32: 0.0755124 | AH32: 0.0240247 | AI32: 0.0252546 | AJ32: 0.0124884 | AK32: 0.0124435 | AL32: 0.034156 | AM32: 0.0235571 | AN32: 0.1772362 | AO32: 0.0668189 | AP32: . | AQ32: 0.0487727 | AR32: 0.0426309 | AS32: 0.0772747
A33: Uneducated Workforce | B33: workforce | M33: c | AB33: 5 | AC33: . | AD33: 0.329022 | AE33: 0.0384799 | AF33: 0.0050148 | AG33: 0.0976683 | AH33: 0.0275241 | AI33: 0.0477279 | AJ33: 0.0144664 | AK33: 0.0110176 | AL33: 0.0582939 | AM33: 0.0123583 | AN33: 0.1437798 | AO33: 0.0530436 | AP33: . | AQ33: 0.0296154 | AR33: 0.0381593 | AS33: 0.0927175
A34: Political instability | B34: instability | AB34: 5.5 | AC34: . | AD34: 0.3042724 | AE34: 0.0378195 | AF34: 0.0309455 | AG34: 0.1011633 | AH34: 0.0206265 | AI34: 0.0234764 | AJ34: 0.0077271 | AK34: 0.0071485 | AL34: 0.0282493 | AM34: 0.0231285 | AN34: 0.1859773 | AO34: 0.0498258 | AP34: . | AQ34: 0.043987 | AR34: 0.0462809 | AS34: 0.0888969
A35: Customs and Trade Regulations | B35: customs | Q35: c
A36: Transportation | B36: transport
A37: Crime | B37: crime
A38: Corruption | B38: corruption | M38: b | O38: c
A39: Tax Administration | B39: tax_adm
A40: Legal System | B40: courts | M40: b | O40: b
A41: Business licensing and permits | B41: licensing
A42: Labor Regulations | B42: labor_reg | M42: c | O42: b
A43: Access to Land | B43: access_land | K43: c | O43: c | Q43: a

Sheet Table 3 (hidden)
A1: Table 3: Regional Human Capital, the size of establishments, and participation in the economy
A2: The table reports fixed effect regressions for for the following three dependent variables: (1) logarithm of the number of employees per establishment; (3) logarithm of the number of employees per capita; and (4) logarithm of the number of employees working in firms that employ at least 100 employees as a percent of total employment. All regressions include the number of years of education.
B4: Dependent Variable:
B5: Ln(Establishments/Population) | C5: Ln(Employees/Establishments) | D5: Ln(Employees/Population) | E5: Ln(Employees Big Firms/Employees)
A7: Years of Education in the Region | B7: 0.2936a | C7: 0.1205a | D7: 0.3372a | E7: 0.2215a
B8: (0.0311) | C8: (0.0220) | D8: (0.0263) | E8: (0.0349)
A10: ="Code==ARG" -> Code==ARG | B10: . | C10: -0.2597b | D10: . | E10: .
A11: ="" ->  | B11: . | C11: (0.1319) | D11: . | E11: .
A13: ="Code==AUT" -> Code==AUT | B13: -2.6876a | C13: -0.2470c | D13: -1.7900a | E13: .
A14: ="" ->  | B14: (0.1703) | C14: (0.1486) | D14: (0.1604) | E14: .
A16: ="Code==BEL" -> Code==BEL | B16: -2.7006a | C16: -0.4404a | D16: -1.9815a | E16: .
A17: ="" ->  | B17: (0.1594) | C17: (0.1514) | D17: (0.1429) | E17: .
A19: ="Code==BEN" -> Code==BEN | B19: -5.6805a | C19: 5.5140a | D19: -0.6228a | E19: .
A20: ="" ->  | B20: (0.3154) | C20: (0.2372) | D20: (0.2039) | E20: .
A22: ="Code==BFA" -> Code==BFA | B22: -3.9591a | C22: . | D22: . | E22: .
A23: ="" ->  | B23: (0.3943) | C23: . | D23: . | E23: .
A25: ="Code==BGR" -> Code==BGR | B25: -2.7282a | C25: -0.1159 | D25: -1.5767a | E25: .
A26: ="" ->  | B26: (0.1677) | C26: (0.1400) | D26: (0.1379) | E26: .
A28: ="Code==BIH" -> Code==BIH | B28: . | C28: 0.5071a | D28: 0.6698a | E28: .
A29: ="" ->  | B29: . | C29: (0.1283) | D29: (0.0773) | E29: .
A31: ="Code==BRA" -> Code==BRA | B31: . | C31: . | D31: . | E31: .
A32: ="" ->  | B32: . | C32: . | D32: . | E32: .
A34: ="Code==CAN" -> Code==CAN | B34: 0.5594a | C34: 0.8863a | D34: 1.2213a | E34: .
A35: ="" ->  | B35: (0.1611) | C35: (0.1512) | D35: (0.1073) | E35: .
A37: ="Code==CHE" -> Code==CHE | B37: -1.0580a | C37: 0.8171a | D37: 0.0042 | E37: 0.4511b
A38: ="" ->  | B38: (0.1602) | C38: (0.1488) | D38: (0.1103) | E38: (0.2002)
A40: ="Code==CHN" -> Code==CHN | B40: -0.7705a | C40: -0.1788 | D40: -0.5603a | E40: .
A41: ="" ->  | B41: (0.1949) | C41: (0.1671) | D41: (0.1490) | E41: .
A43: ="Code==CMR" -> Code==CMR | B43: . | C43: . | D43: . | E43: .
A44: ="" ->  | B44: . | C44: . | D44: . | E44: .
A46: ="Code==COL" -> Code==COL | B46: -2.0882a | C46: 1.7448a | D46: -8.6986a | E46: 2.7829a
A47: ="" ->  | B47: (0.1660) | C47: (0.1340) | D47: (0.0958) | E47: (0.2282)
A49: ="Code==CZE" -> Code==CZE | B49: -5.9763a | C49: 3.1121a | D49: -3.1740a | E49: .
A50: ="" ->  | B50: (0.2194) | C50: (0.3807) | D50: (0.4682) | E50: .
A52: ="Code==DEU" -> Code==DEU | B52: . | C52: -0.5495a | D52: -0.0205 | E52: 2.3083a
A53: ="" ->  | B53: . | C53: (0.1321) | D53: (0.0985) | E53: (0.2354)
A55: ="Code==DNK" -> Code==DNK | B55: -1.5723a | C55: -0.8421a | D55: -1.3612a | E55: .
A56: ="" ->  | B56: (0.1846) | C56: (0.1537) | D56: (0.1680) | E56: .
A58: ="Code==ESP" -> Code==ESP | B58: -4.7965a | C58: 7.0542a | D58: -1.8488a | E58: .
A59: ="" ->  | B59: (0.2270) | C59: (1.4983) | D59: (0.2355) | E59: .
A61: ="Code==EST" -> Code==EST | B61: -1.4348a | C61: 0.6613a | D61: -0.5745b | E61: .
A62: ="" ->  | B62: (0.2626) | C62: (0.1563) | D62: (0.2761) | E62: .
A64: ="Code==FIN" -> Code==FIN | B64: . | C64: . | D64: . | E64: .
A65: ="" ->  | B65: . | C65: . | D65: . | E65: .
A67: ="Code==FRA" -> Code==FRA | B67: -2.2699a | C67: -0.5389a | D67: -1.7982a | E67: .
A68: ="" ->  | B68: (0.1765) | C68: (0.1328) | D68: (0.2134) | E68: .
A70: ="Code==GBR" -> Code==GBR | B70: -0.5040a | C70: -0.0594 | D70: -0.2556c | E70: -2.2735a
A71: ="" ->  | B71: (0.1826) | C71: (0.1518) | D71: (0.1376) | E71: (0.1775)
A73: ="Code==GEO" -> Code==GEO | B73: -2.6958a | C73: -0.6128a | D73: -1.9355a | E73: .
A74: ="" ->  | B74: (0.1879) | C74: (0.1476) | D74: (0.1443) | E74: .
A76: ="Code==GHA" -> Code==GHA | B76: -2.4753a | C76: -0.4202a | D76: -1.8940a | E76: .
A77: ="" ->  | B77: (0.1492) | C77: (0.1459) | D77: (0.1279) | E77: .
A79: ="Code==GRC" -> Code==GRC | B79: -3.4526a | C79: 4.6095a | D79: -2.4834a | E79: .
A80: ="" ->  | B80: (0.1897) | C80: (0.7812) | D80: (0.1631) | E80: .
A82: ="Code==HRV" -> Code==HRV | B82: -2.7630a | C82: -0.0153 | D82: -2.5044a | E82: .
A83: ="" ->  | B83: (0.1720) | C83: (0.1870) | D83: (0.1865) | E83: .
A85: ="Code==HUN" -> Code==HUN | B85: -2.1290a | C85: 0.9437a | D85: -1.4885a | E85: 5.8835a
A86: ="" ->  | B86: (0.1878) | C86: (0.1694) | D86: (0.1381) | E86: (0.3045)
A88: ="Code==IND" -> Code==IND | B88: -1.5587a | C88: -1.0567a | D88: -2.1188a | E88: .
A89: ="" ->  | B89: (0.1453) | C89: (0.1315) | D89: (0.1504) | E89: .
A91: ="Code==IRL" -> Code==IRL | B91: 0.1020 | C91: 0.7413a | D91: 0.7781a | E91: .
A92: ="" ->  | B92: (0.1628) | C92: (0.1477) | D92: (0.1357) | E92: .
A94: ="Code==ITA" -> Code==ITA | B94: -2.2917a | C94: -0.6442a | D94: -1.6492a | E94: .
A95: ="" ->  | B95: (0.1499) | C95: (0.1435) | D95: (0.1437) | E95: .
A97: ="Code==JOR" -> Code==JOR | B97: 1.2223a | C97: -0.3988a | D97: 0.5724a | E97: .
A98: ="" ->  | B98: (0.1630) | C98: (0.1489) | D98: (0.1216) | E98: .
A100: ="Code==JPN" -> Code==JPN | B100: -3.5157a | C100: 0.2491c | D100: -1.7085a | E100: .
A101: ="" ->  | B101: (0.2575) | C101: (0.1347) | D101: (0.2497) | E101: .
A103: ="Code==KAZ" -> Code==KAZ | B103: . | C103: . | D103: . | E103: .
A104: ="" ->  | B104: . | C104: . | D104: . | E104: .
A106: ="Code==KHM" -> Code==KHM | B106: -1.5677a | C106: -0.7280a | D106: -2.1870a | E106: -1.8164a
A107: ="" ->  | B107: (0.4237) | C107: (0.1324) | D107: (0.4392) | E107: (0.2488)
A109: ="Code==LAO" -> Code==LAO | B109: -3.2787a | C109: 2.3678a | D109: -0.9439a | E109: .
A110: ="" ->  | B110: (0.2124) | C110: (0.1867) | D110: (0.1648) | E110: .
A112: ="Code==LKA" -> Code==LKA | B112: -0.3695b | C112: -0.0073 | D112: -0.1069 | E112: -0.4369a
A113: ="" ->  | B113: (0.1602) | C113: (0.1450) | D113: (0.1150) | E113: (0.1319)
A115: ="Code==LTU" -> Code==LTU | B115: -1.0860a | C115: 1.4885a | D115: 0.5296b | E115: -1.3438a
A116: ="" ->  | B116: (0.2702) | C116: (0.1368) | D116: (0.2278) | E116: (0.1912)
A118: ="Code==LVA" -> Code==LVA | B118: 1.0745a | C118: . | D118: . | E118: .
A119: ="" ->  | B119: (0.2147) | C119: . | D119: . | E119: .
A121: ="Code==MAR" -> Code==MAR | B121: -0.2251 | C121: 0.7209a | D121: 0.1011 | E121: 0.0105
A122: ="" ->  | B122: (0.2503) | C122: (0.1775) | D122: (0.1930) | E122: (0.4661)
A124: ="Code==MDA" -> Code==MDA | B124: -0.6468a | C124: 0.3642b | D124: -0.4857a | E124: 1.9440a
A125: ="" ->  | B125: (0.1663) | C125: (0.1817) | D125: (0.1536) | E125: (0.2529)
A127: ="Code==MDG" -> Code==MDG | B127: -1.0926a | C127: -1.4853a | D127: -2.3586a | E127: 0.1870
A128: ="" ->  | B128: (0.1488) | C128: (0.1380) | D128: (0.1113) | E128: (0.1458)
A130: ="Code==MEX" -> Code==MEX | B130: -1.2584a | C130: 1.4803a | D130: 0.3436a | E130: -1.6856a
A131: ="" ->  | B131: (0.1321) | C131: (0.1294) | D131: (0.0880) | E131: (0.1792)
A133: ="Code==MKD" -> Code==MKD | B133: . | C133: -0.2493 | D133: 0.7519a | E133: .
A134: ="" ->  | B134: . | C134: (0.1807) | D134: (0.1712) | E134: .
A136: ="Code==MNG" -> Code==MNG | B136: . | C136: . | D136: -1.5788a | E136: .
A137: ="" ->  | B137: . | C137: . | D137: (0.1880) | E137: .
A139: ="Code==MOZ" -> Code==MOZ | B139: 1.5305a | C139: . | D139: . | E139: .
A140: ="" ->  | B140: (0.3332) | C140: . | D140: . | E140: .
A142: ="Code==MYS" -> Code==MYS | B142: . | C142: -0.7314a | D142: -0.2887a | E142: -0.0640
A143: ="" ->  | B143: . | C143: (0.1460) | D143: (0.0829) | E143: (0.1951)
A145: ="Code==NLD" -> Code==NLD | B145: 0.5600a | C145: 0.4943a | D145: 0.9652a | E145: 0.9684a
A146: ="" ->  | B146: (0.1518) | C146: (0.1309) | D146: (0.1268) | E146: (0.2139)
A148: ="Code==NOR" -> Code==NOR | B148: -1.1516a | C148: 0.5908a | D148: -0.5541a | E148: 0.0084
A149: ="" ->  | B149: (0.1251) | C149: (0.1303) | D149: (0.0739) | E149: (0.1875)
A151: ="Code==NPL" -> Code==NPL | B151: -1.2425a | C151: 1.0219a | D151: -0.7276b | E151: 2.3968a
A152: ="" ->  | B152: (0.3366) | C152: (0.2326) | D152: (0.3294) | E152: (0.3793)
A154: ="Code==NZL" -> Code==NZL | B154: -2.7150a | C154: 2.1402a | D154: -0.6843a | E154: .
A155: ="" ->  | B155: (0.1615) | C155: (0.2058) | D155: (0.1901) | E155: .
A157: ="Code==PAK" -> Code==PAK | B157: -2.9855a | C157: -0.0959 | D157: -2.2064a | E157: .
A158: ="" ->  | B158: (0.1615) | C158: (0.1444) | D158: (0.1474) | E158: .
A160: ="Code==PAN" -> Code==PAN | B160: 0.0635 | C160: -0.7872a | D160: -0.3614a | E160: -0.8975a
A161: ="" ->  | B161: (0.1870) | C161: (0.1613) | D161: (0.1398) | E161: (0.1439)
A163: ="Code==PER" -> Code==PER | B163: -4.1283a | C163: 2.4682a | D163: -2.0317a | E163: 2.1518a
A164: ="" ->  | B164: (0.2458) | C164: (0.2178) | D164: (0.3325) | E164: (0.3347)
A166: ="Code==PHL" -> Code==PHL | B166: 0.4996a | C166: -0.4706a | D166: 0.1689c | E166: -0.2596
A167: ="" ->  | B167: (0.1340) | C167: (0.1317) | D167: (0.0922) | E167: (0.1609)
A169: ="Code==POL" -> Code==POL | B169: . | C169: 0.0893 | D169: 0.6575a | E169: -1.4014a
A170: ="" ->  | B170: . | C170: (0.1705) | D170: (0.2447) | E170: (0.4013)
A172: ="Code==PRT" -> Code==PRT | B172: -0.0796 | C172: -0.5144b | D172: -0.6802a | E172: .
A173: ="" ->  | B173: (0.2082) | C173: (0.2399) | D173: (0.1323) | E173: .
A175: ="Code==PRY" -> Code==PRY | B175: -0.7406a | C175: -0.7716a | D175: -2.4713a | E175: 0.0901
A176: ="" ->  | B176: (0.1392) | C176: (0.1421) | D176: (0.1076) | E176: (0.2605)
A178: ="Code==ROM" -> Code==ROM | B178: -2.5457a | C178: 1.2045a | D178: -1.4197a | E178: 1.5261a
A179: ="" ->  | B179: (0.3270) | C179: (0.1566) | D179: (0.3840) | E179: (0.2166)
A181: ="Code==RUS" -> Code==RUS | B181: -1.8746a | C181: 0.7809a | D181: -1.2865a | E181: .
A182: ="" ->  | B182: (0.1699) | C182: (0.2018) | D182: (0.1298) | E182: .
A184: ="Code==SEN" -> Code==SEN | B184: -1.2101a | C184: -0.5258a | D184: -1.1754a | E184: .
A185: ="" ->  | B185: (0.1488) | C185: (0.1311) | D185: (0.2130) | E185: .
A187: ="Code==SLV" -> Code==SLV | B187: -3.1533a | C187: . | D187: . | E187: .
A188: ="" ->  | B188: (0.2693) | C188: . | D188: . | E188: .
A190: ="Code==SRB" -> Code==SRB | B190: -2.9104a | C190: 0.1115 | D190: -1.5836a | E190: .
A191: ="" ->  | B191: (0.1668) | C191: (0.1399) | D191: (0.1249) | E191: .
A193: ="Code==SVN" -> Code==SVN | B193: -0.2172c | C193: 1.0426a | D193: 0.7860a | E193: .
A194: ="" ->  | B194: (0.1231) | C194: (0.1308) | D194: (0.0735) | E194: .
A196: ="Code==SWE" -> Code==SWE | B196: -4.5782a | C196: 2.2327a | D196: -1.5703 | E196: .
A197: ="" ->  | B197: (1.1518) | C197: (0.6502) | D197: (1.0969) | E197: .
A199: ="Code==SYR" -> Code==SYR | B199: -0.2742b | C199: -0.8980a | D199: -1.1304a | E199: 0.6459a
A200: ="" ->  | B200: (0.1197) | C200: (0.1551) | D200: (0.1189) | E200: (0.1987)
A202: ="Code==THA" -> Code==THA | B202: . | C202: 0.5514a | D202: -1.3660 | E202: .
A203: ="" ->  | B203: . | C203: (0.1566) | D203: (1.1978) | E203: .
A205: ="Code==TUR" -> Code==TUR | B205: . | C205: . | D205: . | E205: .
A206: ="" ->  | B206: . | C206: . | D206: . | E206: .
A208: ="Code==TZA" -> Code==TZA | B208: -2.4361a | C208: -0.6978a | D208: -1.9152a | E208: .
A209: ="" ->  | B209: (0.1925) | C209: (0.1573) | D209: (0.1879) | E209: .
A211: ="Code==UGA" -> Code==UGA | B211: -1.0074a | C211: 2.5004a | D211: 1.2675a | E211: .
A212: ="" ->  | B212: (0.1707) | C212: (0.1611) | D212: (0.1071) | E212: .
A214: ="Code==UKR" -> Code==UKR | B214: -0.5877b | C214: 0.4574 | D214: -0.3468 | E214: 0.5751b
A215: ="" ->  | B215: (0.2859) | C215: (0.4914) | D215: (0.3253) | E215: (0.2868)
A217: ="Code==USA" -> Code==USA | B217: -0.3775b | C217: -0.8383a | D217: -1.2755a | E217: .
A218: ="" ->  | B218: (0.1740) | C218: (0.1289) | D218: (0.1681) | E218: .
A220: ="Code==VNM" -> Code==VNM | B220: -0.8292a | C220: -0.0417 | D220: -1.1643a | E220: 0.7157b
A221: ="" ->  | B221: (0.2079) | C221: (0.1528) | D221: (0.1718) | E221: (0.3010)
A223: ="Constant" -> Constant | B223: -4.3312a | C223: 1.4938a | D223: -3.2197a | E223: 1.2421a
A224: ="" ->  | B224: (0.3768) | C224: (0.1715) | D224: (0.3877) | E224: (0.3777)
A226: ="Observations" -> Observations | B226: -1.7758a | C226: 1.1268a | D226: -0.5366a | E226: 1.1254a
A227: ="Adjusted R-squared" -> Adjusted R-squared | B227: (0.1323) | C227: (0.1347) | D227: (0.1025) | E227: (0.1547)
A229: Code==USA | B229: -1.4899a | C229: 0.3317b | D229: -0.7803a | E229: 0.2335c
B230: (0.1926) | C230: (0.1641) | D230: (0.1461) | E230: (0.1386)
A232: Code==VNM | B232: 1.0468a | C232: -0.8111a | D232: 0.0763 | E232: -9.9315a
B233: (0.1484) | C233: (0.1396) | D233: (0.1355) | E233: (0.4240)
A235: Constant | B235: -5.8407a | C235: 0.8918a | D235: -4.3678a | E235: -3.4071a
B236: (0.2554) | C236: (0.2064) | D236: (0.2052) | E236: (0.4041)
A238: Observations | B238: 970 | C238: 1035 | D238: 1016 | E238: 510
A239: Adjusted R2 | B239: 0.919 | C239: 0.818 | D239: 0.934 | E239: 0.95
A240: Country Fixed Effects | B240: Yes | C240: Yes | D240: Yes | E240: Yes
A242: Note: a significant at the 1% level, b significant at the 5% level, and c significant at the 10% level.

Sheet ONLINE APPENDIX -- Tables
A1: Index
A2: 1 | B2: Value added and employment
A3: =A2+1 -> 2 | B3: Costs and benefits of registering
A4: =A3+1 -> 3 | B4: Figure 5 regression

Sheet Value added and employment
A1: Online Appendix Table 1: Value Added and Employment of Informal and Formal Firms
C3: Value Added per Worker | E3: Sales | G3: Employment | I3: % Top Manager College | M3: Value Added per Worker
A4: Country | B4: Year | C4: Informal | D4: Formal | E4: Informal | F4: Formal | G4: Informal | H4: Formal | I4: Informal | J4: Formal | M4: Informal/Formal
A5: Afghanistan | B5: 2009 | C5: =INDEX(sales_informal!$A$2:$D$28,MATCH(1,(sales_informal!$A$2:$A$28=A5)*(sales_informal!$B$2:$B$28=B5),0),3) -> 37417.46484 | D5: =INDEX(sales_formal!$A$2:$D$28,MATCH(1,(sales_formal!$A$2:$A$28=A5)*(sales_formal!$B$2:$B$28=B5),0),3) -> 70515.72656 | E5: 61790.85938 | F5: 102899.5625 | G5: =INDEX(employees_inf!$A$2:$D$28,MATCH(1,(employees_inf!$A$2:$A$28=A5)*(employees_inf!$B$2:$B$28=B5),0),4) -> 9.595744681 | H5: =INDEX(employees_formal!$A$2:$D$28,MATCH(1,(employees_formal!$A$2:$A$28=A5)*(employees_formal!$B$2:$B$28=B5),0),4) -> 32.1466265 | I5: . | J5: . | M5: =C5/D5 -> 0.5306258145
A6: Angola | B6: 2010 | C6: =INDEX(sales_informal!$A$2:$D$28,MATCH(1,(sales_informal!$A$2:$A$28=A6)*(sales_informal!$B$2:$B$28=B6),0),3) -> 9905.800781 | D6: =INDEX(sales_formal!$A$2:$D$28,MATCH(1,(sales_formal!$A$2:$A$28=A6)*(sales_formal!$B$2:$B$28=B6),0),3) -> 105458.2031 | E6: 15424.1543 | F6: 105369.5078 | G6: =INDEX(employees_inf!$A$2:$D$28,MATCH(1,(employees_inf!$A$2:$A$28=A6)*(employees_inf!$B$2:$B$28=B6),0),4) -> 9.218390805 | H6: =INDEX(employees_formal!$A$2:$D$28,MATCH(1,(employees_formal!$A$2:$A$28=A6)*(employees_formal!$B$2:$B$28=B6),0),4) -> 38.23824448 | I6: . | J6: 1 | M6: =C6/D6 -> 0.09393105977
A7: Argentina | B7: 2010 | C7: =INDEX(sales_informal!$A$2:$D$28,MATCH(1,(sales_informal!$A$2:$A$28=A7)*(sales_informal!$B$2:$B$28=B7),0),3) -> 1937.626709 | D7: =INDEX(sales_formal!$A$2:$D$28,MATCH(1,(sales_formal!$A$2:$A$28=A7)*(sales_formal!$B$2:$B$28=B7),0),3) -> 43823.10156 | E7: 2472.904053 | F7: 96826.34375 | G7: =INDEX(employees_inf!$A$2:$D$28,MATCH(1,(employees_inf!$A$2:$A$28=A7)*(employees_inf!$B$2:$B$28=B7),0),4) -> 1.582524272 | H7: =INDEX(employees_formal!$A$2:$D$28,MATCH(1,(employees_formal!$A$2:$A$28=A7)*(employees_formal!$B$2:$B$28=B7),0),4) -> 237.63444 | I7: . | J7: . | M7: 0.04421473241
A8: Bangladesh | B8: 2003 | C8: =INDEX(sales_informal!$A$2:$D$28,MATCH(1,(sales_informal!$A$2:$A$28=A8)*(sales_informal!$B$2:$B$28=B8),0),3) -> 1584.251465 | D8: =INDEX(sales_formal!$A$2:$D$28,MATCH(1,(sales_formal!$A$2:$A$28=A8)*(sales_formal!$B$2:$B$28=B8),0),3) -> 8530.866211 | E8: 4000.831299 | F8: 28002.57227 | G8: =INDEX(employees_inf!$A$2:$D$28,MATCH(1,(employees_inf!$A$2:$A$28=A8)*(employees_inf!$B$2:$B$28=B8),0),4) -> 5.23857868 | H8: =INDEX(employees_formal!$A$2:$D$28,MATCH(1,(employees_formal!$A$2:$A$28=A8)*(employees_formal!$B$2:$B$28=B8),0),4) -> 297.6880829 | I8: 0.04568528011 | J8: 0.711610496 | M8: 0.1857081597
A9: Botswana | B9: 2010 | C9: =INDEX(sales_informal!$A$2:$D$28,MATCH(1,(sales_informal!$A$2:$A$28=A9)*(sales_informal!$B$2:$B$28=B9),0),3) -> 4230.01416 | D9: =INDEX(sales_formal!$A$2:$D$28,MATCH(1,(sales_formal!$A$2:$A$28=A9)*(sales_formal!$B$2:$B$28=B9),0),3) -> 30050.69922 | E9: 5847.287109 | F9: 68821.89062 | G9: =INDEX(employees_inf!$A$2:$D$28,MATCH(1,(employees_inf!$A$2:$A$28=A9)*(employees_inf!$B$2:$B$28=B9),0),4) -> 2.694736842 | H9: =INDEX(employees_formal!$A$2:$D$28,MATCH(1,(employees_formal!$A$2:$A$28=A9)*(employees_formal!$B$2:$B$28=B9),0),4) -> 78.50734207 | I9: . | J9: 1 | M9: 0.1407625869
A10: Brazil | B10: 2003 | C10: =INDEX(sales_informal!$A$2:$D$28,MATCH(1,(sales_informal!$A$2:$A$28=A10)*(sales_informal!$B$2:$B$28=B10),0),3) -> 7901.868164 | D10: =INDEX(sales_formal!$A$2:$D$28,MATCH(1,(sales_formal!$A$2:$A$28=A10)*(sales_formal!$B$2:$B$28=B10),0),3) -> 27568.14453 | E10: 13325.50879 | F10: 60069.96484 | G10: =INDEX(employees_inf!$A$2:$D$28,MATCH(1,(employees_inf!$A$2:$A$28=A10)*(employees_inf!$B$2:$B$28=B10),0),4) -> 2.421511628 | H10: =INDEX(employees_formal!$A$2:$D$28,MATCH(1,(employees_formal!$A$2:$A$28=A10)*(employees_formal!$B$2:$B$28=B10),0),4) -> 116.9479873 | I10: 0.127976194 | J10: 0.6514635682 | M10: 0.2866303953
A11: Burkina Faso | B11: 2009 | C11: =INDEX(sales_informal!$A$2:$D$28,MATCH(1,(sales_informal!$A$2:$A$28=A11)*(sales_informal!$B$2:$B$28=B11),0),3) -> 19031.73242 | D11: =INDEX(sales_formal!$A$2:$D$28,MATCH(1,(sales_formal!$A$2:$A$28=A11)*(sales_formal!$B$2:$B$28=B11),0),3) -> 121129.2578 | E11: 38490.82422 | F11: 164114.0312 | G11: =INDEX(employees_inf!$A$2:$D$28,MATCH(1,(employees_inf!$A$2:$A$28=A11)*(employees_inf!$B$2:$B$28=B11),0),4) -> 1.225225225 | H11: =INDEX(employees_formal!$A$2:$D$28,MATCH(1,(employees_formal!$A$2:$A$28=A11)*(employees_formal!$B$2:$B$28=B11),0),4) -> 88.91176479 | I11: 0.03603603691 | J11: 1 | M11: 0.1571192028
A12: Cambodia | B12: 2003 | C12: =INDEX(sales_informal!$A$2:$D$28,MATCH(1,(sales_informal!$A$2:$A$28=A12)*(sales_informal!$B$2:$B$28=B12),0),3) -> 2415.090576 | D12: =INDEX(sales_formal!$A$2:$D$28,MATCH(1,(sales_formal!$A$2:$A$28=A12)*(sales_formal!$B$2:$B$28=B12),0),3) -> 8620.374023 | E12: 3952.763916 | F12: 18586.76367 | G12: =INDEX(employees_inf!$A$2:$D$28,MATCH(1,(employees_inf!$A$2:$A$28=A12)*(employees_inf!$B$2:$B$28=B12),0),4) -> 5.618604651 | H12: =INDEX(employees_formal!$A$2:$D$28,MATCH(1,(employees_formal!$A$2:$A$28=A12)*(employees_formal!$B$2:$B$28=B12),0),4) -> 100.5616151 | I12: 0.01860465109 | J12: 0.3436293304 | M12: 0.2801607644
A13: Cameroon | B13: 2009 | C13: =INDEX(sales_informal!$A$2:$D$28,MATCH(1,(sales_informal!$A$2:$A$28=A13)*(sales_informal!$B$2:$B$28=B13),0),3) -> 12776.5957 | D13: =INDEX(sales_formal!$A$2:$D$28,MATCH(1,(sales_formal!$A$2:$A$28=A13)*(sales_formal!$B$2:$B$28=B13),0),3) -> 38173.40625 | E13: 16137.55762 | F13: 72641.20312 | G13: =INDEX(employees_inf!$A$2:$D$28,MATCH(1,(employees_inf!$A$2:$A$28=A13)*(employees_inf!$B$2:$B$28=B13),0),4) -> 1.628099174 | H13: =INDEX(employees_formal!$A$2:$D$28,MATCH(1,(employees_formal!$A$2:$A$28=A13)*(employees_formal!$B$2:$B$28=B13),0),4) -> 106.0986204 | I13: 0.1043478251 | J13: 1 | M13: 0.3346988639
A14: Cape Verde | B14: 2006 | C14: =INDEX(sales_informal!$A$2:$D$28,MATCH(1,(sales_informal!$A$2:$A$28=A14)*(sales_informal!$B$2:$B$28=B14),0),3) -> 6247.179688 | D14: =INDEX(sales_formal!$A$2:$D$28,MATCH(1,(sales_formal!$A$2:$A$28=A14)*(sales_formal!$B$2:$B$28=B14),0),3) -> 9191.946289 | E14: 9162.649414 | F14: 20964.52148 | G14: =INDEX(employees_inf!$A$2:$D$28,MATCH(1,(employees_inf!$A$2:$A$28=A14)*(employees_inf!$B$2:$B$28=B14),0),4) -> 2.233009709 | H14: =INDEX(employees_formal!$A$2:$D$28,MATCH(1,(employees_formal!$A$2:$A$28=A14)*(employees_formal!$B$2:$B$28=B14),0),4) -> 18.34587813 | I14: 0.08910891414 | J14: 0.3260869682 | M14: 0.6796362262
A15: Cape Verde | B15: 2009 | C15: =INDEX(sales_informal!$A$2:$D$28,MATCH(1,(sales_informal!$A$2:$A$28=A15)*(sales_informal!$B$2:$B$28=B15),0),3) -> 36097.64453 | D15: =INDEX(sales_formal!$A$2:$D$28,MATCH(1,(sales_formal!$A$2:$A$28=A15)*(sales_formal!$B$2:$B$28=B15),0),3) -> 51546.19531 | E15: 40387.34375 | F15: 54489.10156 | G15: =INDEX(employees_inf!$A$2:$D$28,MATCH(1,(employees_inf!$A$2:$A$28=A15)*(employees_inf!$B$2:$B$28=B15),0),4) -> 0.9146341463 | H15: =INDEX(employees_formal!$A$2:$D$28,MATCH(1,(employees_formal!$A$2:$A$28=A15)*(employees_formal!$B$2:$B$28=B15),0),4) -> 57.72992706 | I15: 0.03896103799 | J15: 1 | M15: 0.7002969727
A16: Congo, Dem. Rep. | B16: 2010 | C16: =INDEX(sales_informal!$A$2:$D$28,MATCH(1,(sales_informal!$A$2:$A$28=A16)*(sales_informal!$B$2:$B$28=B16),0),3) -> 3753.492676 | D16: =INDEX(sales_formal!$A$2:$D$28,MATCH(1,(sales_formal!$A$2:$A$28=A16)*(sales_formal!$B$2:$B$28=B16),0),3) -> 344411.75 | E16: 5462.082031 | F16: 819006.5625 | G16: =INDEX(employees_inf!$A$2:$D$28,MATCH(1,(employees_inf!$A$2:$A$28=A16)*(employees_inf!$B$2:$B$28=B16),0),4) -> 3.861111111 | H16: =INDEX(employees_formal!$A$2:$D$28,MATCH(1,(employees_formal!$A$2:$A$28=A16)*(employees_formal!$B$2:$B$28=B16),0),4) -> 69.77731673 | I16: . | J16: 1 | M16: 0.01089827126
A17: Egypt, Arab Rep. | B17: 2008 | C17: =INDEX(sales_informal!$A$2:$D$28,MATCH(1,(sales_informal!$A$2:$A$28=A17)*(sales_informal!$B$2:$B$28=B17),0),3) -> 2947.053467 | D17: =INDEX(sales_formal!$A$2:$D$28,MATCH(1,(sales_formal!$A$2:$A$28=A17)*(sales_formal!$B$2:$B$28=B17),0),3) -> 25514.69336 | E17: 4897.015137 | F17: 65307.76562 | G17: =INDEX(employees_inf!$A$2:$D$28,MATCH(1,(employees_inf!$A$2:$A$28=A17)*(employees_inf!$B$2:$B$28=B17),0),4) -> 4.122994652 | H17: =INDEX(employees_formal!$A$2:$D$28,MATCH(1,(employees_formal!$A$2:$A$28=A17)*(employees_formal!$B$2:$B$28=B17),0),4) -> 239.4535714 | I17: 0.003368983977 | J17: . | M17: 0.1155041695
A18: Guatemala | B18: 2003 | C18: =INDEX(sales_informal!$A$2:$D$28,MATCH(1,(sales_informal!$A$2:$A$28=A18)*(sales_informal!$B$2:$B$28=B18),0),3) -> 1924.601074 | D18: =INDEX(sales_formal!$A$2:$D$28,MATCH(1,(sales_formal!$A$2:$A$28=A18)*(sales_formal!$B$2:$B$28=B18),0),3) -> 13085.24707 | E18: 4485.941895 | F18: 31782.76367 | G18: =INDEX(employees_inf!$A$2:$D$28,MATCH(1,(employees_inf!$A$2:$A$28=A18)*(employees_inf!$B$2:$B$28=B18),0),4) -> 3.735751295 | H18: =INDEX(employees_formal!$A$2:$D$28,MATCH(1,(employees_formal!$A$2:$A$28=A18)*(employees_formal!$B$2:$B$28=B18),0),4) -> 113.9144564 | I18: 0.07751937956 | J18: 0.7400530577 | M18: 0.1470817527
A19: Guatemala | B19: 2010 | C19: =INDEX(sales_informal!$A$2:$D$28,MATCH(1,(sales_informal!$A$2:$A$28=A19)*(sales_informal!$B$2:$B$28=B19),0),3) -> 2675.935059 | D19: =INDEX(sales_formal!$A$2:$D$28,MATCH(1,(sales_formal!$A$2:$A$28=A19)*(sales_formal!$B$2:$B$28=B19),0),3) -> 39346.76953 | E19: 3356.536133 | F19: 93875.48438 | G19: =INDEX(employees_inf!$A$2:$D$28,MATCH(1,(employees_inf!$A$2:$A$28=A19)*(employees_inf!$B$2:$B$28=B19),0),4) -> 1.46875 | H19: =INDEX(employees_formal!$A$2:$D$28,MATCH(1,(employees_formal!$A$2:$A$28=A19)*(employees_formal!$B$2:$B$28=B19),0),4) -> 154.3443399 | I19: . | J19: . | M19: 0.06800901549
A20: India | B20: 2002 | C20: =INDEX(sales_informal!$A$2:$D$28,MATCH(1,(sales_informal!$A$2:$A$28=A20)*(sales_informal!$B$2:$B$28=B20),0),3) -> 3118.395508 | D20: =INDEX(sales_formal!$A$2:$D$28,MATCH(1,(sales_formal!$A$2:$A$28=A20)*(sales_formal!$B$2:$B$28=B20),0),3) -> 17569.01172 | E20: 6238.92627 | F20: 50313.04297 | G20: =INDEX(employees_inf!$A$2:$D$28,MATCH(1,(employees_inf!$A$2:$A$28=A20)*(employees_inf!$B$2:$B$28=B20),0),4) -> 4.694877506 | H20: =INDEX(employees_formal!$A$2:$D$28,MATCH(1,(employees_formal!$A$2:$A$28=A20)*(employees_formal!$B$2:$B$28=B20),0),4) -> 97.58333333 | I20: 0 | J20: 0.8928571343 | M20: 0.1774940764
A21: Indonesia | B21: 2003 | C21: =INDEX(sales_informal!$A$2:$D$28,MATCH(1,(sales_informal!$A$2:$A$28=A21)*(sales_informal!$B$2:$B$28=B21),0),3) -> 2768.633301 | D21: =INDEX(sales_formal!$A$2:$D$28,MATCH(1,(sales_formal!$A$2:$A$28=A21)*(sales_formal!$B$2:$B$28=B21),0),3) -> 17834.12695 | E21: 5147.111816 | F21: 42220.07422 | G21: =INDEX(employees_inf!$A$2:$D$28,MATCH(1,(employees_inf!$A$2:$A$28=A21)*(employees_inf!$B$2:$B$28=B21),0),4) -> 3.786231884 | H21: =INDEX(employees_formal!$A$2:$D$28,MATCH(1,(employees_formal!$A$2:$A$28=A21)*(employees_formal!$B$2:$B$28=B21),0),4) -> 587.1625 | I21: 0 | J21: 0.6384976506 | M21: 0.1552435568
A22: Kenya | B22: 2003 | C22: =INDEX(sales_informal!$A$2:$D$28,MATCH(1,(sales_informal!$A$2:$A$28=A22)*(sales_informal!$B$2:$B$28=B22),0),3) -> 3687.610107 | D22: =INDEX(sales_formal!$A$2:$D$28,MATCH(1,(sales_formal!$A$2:$A$28=A22)*(sales_formal!$B$2:$B$28=B22),0),3) -> 35844.55859 | E22: 6619.677246 | F22: 102614.8906 | G22: =INDEX(employees_inf!$A$2:$D$28,MATCH(1,(employees_inf!$A$2:$A$28=A22)*(employees_inf!$B$2:$B$28=B22),0),4) -> 3.508108108 | H22: =INDEX(employees_formal!$A$2:$D$28,MATCH(1,(employees_formal!$A$2:$A$28=A22)*(employees_formal!$B$2:$B$28=B22),0),4) -> 148.6258065 | I22: 0.05524861813 | J22: 0.7096773982 | M22: 0.1028778217
A23: Mali | B23: 2010 | C23: =INDEX(sales_informal!$A$2:$D$28,MATCH(1,(sales_informal!$A$2:$A$28=A23)*(sales_informal!$B$2:$B$28=B23),0),3) -> 4095.553223 | D23: =INDEX(sales_formal!$A$2:$D$28,MATCH(1,(sales_formal!$A$2:$A$28=A23)*(sales_formal!$B$2:$B$28=B23),0),3) -> 21846.84961 | E23: 5862.049316 | F23: 31438.2793 | G23: =INDEX(employees_inf!$A$2:$D$28,MATCH(1,(employees_inf!$A$2:$A$28=A23)*(employees_inf!$B$2:$B$28=B23),0),4) -> 4.459770115 | H23: =INDEX(employees_formal!$A$2:$D$28,MATCH(1,(employees_formal!$A$2:$A$28=A23)*(employees_formal!$B$2:$B$28=B23),0),4) -> 34.12239584 | I23: . | J23: 1 | M23: 0.1874665362
A24: Nepal | B24: 2009 | C24: =INDEX(sales_informal!$A$2:$D$28,MATCH(1,(sales_informal!$A$2:$A$28=A24)*(sales_informal!$B$2:$B$28=B24),0),3) -> 4769.088867 | D24: =INDEX(sales_formal!$A$2:$D$28,MATCH(1,(sales_formal!$A$2:$A$28=A24)*(sales_formal!$B$2:$B$28=B24),0),3) -> 18299.41992 | E24: . | F24: 64464.4375 | G24: =INDEX(employees_inf!$A$2:$D$28,MATCH(1,(employees_inf!$A$2:$A$28=A24)*(employees_inf!$B$2:$B$28=B24),0),4) -> 6 | H24: =INDEX(employees_formal!$A$2:$D$28,MATCH(1,(employees_formal!$A$2:$A$28=A24)*(employees_formal!$B$2:$B$28=B24),0),4) -> 41.63356809 | I24: 0.200000003 | J24: . | M24: 0.26061421
A25: Niger | B25: 2005 | C25: =INDEX(sales_informal!$A$2:$D$28,MATCH(1,(sales_informal!$A$2:$A$28=A25)*(sales_informal!$B$2:$B$28=B25),0),3) -> 12624.35742 | D25: =INDEX(sales_formal!$A$2:$D$28,MATCH(1,(sales_formal!$A$2:$A$28=A25)*(sales_formal!$B$2:$B$28=B25),0),3) -> 322051.125 | E25: . | F25: 375277.3125 | G25: =INDEX(employees_inf!$A$2:$D$28,MATCH(1,(employees_inf!$A$2:$A$28=A25)*(employees_inf!$B$2:$B$28=B25),0),4) -> 4.518867925 | H25: =INDEX(employees_formal!$A$2:$D$28,MATCH(1,(employees_formal!$A$2:$A$28=A25)*(employees_formal!$B$2:$B$28=B25),0),4) -> 42.0188676 | I25: 0.046875 | J25: 0.5116279125 | M25: 0.03919985506
A26: Pakistan | B26: 2003 | C26: =INDEX(sales_informal!$A$2:$D$28,MATCH(1,(sales_informal!$A$2:$A$28=A26)*(sales_informal!$B$2:$B$28=B26),0),3) -> 2381.677002 | D26: =INDEX(sales_formal!$A$2:$D$28,MATCH(1,(sales_formal!$A$2:$A$28=A26)*(sales_formal!$B$2:$B$28=B26),0),3) -> 33029.01953 | E26: 3778.080322 | F26: 92614.57812 | G26: =INDEX(employees_inf!$A$2:$D$28,MATCH(1,(employees_inf!$A$2:$A$28=A26)*(employees_inf!$B$2:$B$28=B26),0),4) -> 4.103286385 | H26: =INDEX(employees_formal!$A$2:$D$28,MATCH(1,(employees_formal!$A$2:$A$28=A26)*(employees_formal!$B$2:$B$28=B26),0),4) -> 194.4528302 | I26: 0.06132075563 | J26: 0.8679245114 | M26: 0.0721086195
A27: Peru | B27: 2010 | C27: =INDEX(sales_informal!$A$2:$D$28,MATCH(1,(sales_informal!$A$2:$A$28=A27)*(sales_informal!$B$2:$B$28=B27),0),3) -> 5135.367676 | D27: =INDEX(sales_formal!$A$2:$D$28,MATCH(1,(sales_formal!$A$2:$A$28=A27)*(sales_formal!$B$2:$B$28=B27),0),3) -> 41633.05859 | E27: 7460.577637 | F27: 100155.4219 | G27: =INDEX(employees_inf!$A$2:$D$28,MATCH(1,(employees_inf!$A$2:$A$28=A27)*(employees_inf!$B$2:$B$28=B27),0),4) -> 2.290322581 | H27: =INDEX(employees_formal!$A$2:$D$28,MATCH(1,(employees_formal!$A$2:$A$28=A27)*(employees_formal!$B$2:$B$28=B27),0),4) -> 205.5848116 | I27: . | M27: 0.1233483162
A28: Rwanda | B28: 2011 | C28: =INDEX(sales_informal!$A$2:$D$28,MATCH(1,(sales_informal!$A$2:$A$28=A28)*(sales_informal!$B$2:$B$28=B28),0),3) -> 1290.1427 | D28: =INDEX(sales_formal!$A$2:$D$28,MATCH(1,(sales_formal!$A$2:$A$28=A28)*(sales_formal!$B$2:$B$28=B28),0),3) -> 46876 | E28: 3719.586182 | F28: 65860.39062 | G28: =INDEX(employees_inf!$A$2:$D$28,MATCH(1,(employees_inf!$A$2:$A$28=A28)*(employees_inf!$B$2:$B$28=B28),0),4) -> 2.360824742 | H28: =INDEX(employees_formal!$A$2:$D$28,MATCH(1,(employees_formal!$A$2:$A$28=A28)*(employees_formal!$B$2:$B$28=B28),0),4) -> 73.08646927 | I28: . | J28: 1 | M28: 0.02752245713
A29: Senegal | B29: 2003 | C29: =INDEX(sales_informal!$A$2:$D$28,MATCH(1,(sales_informal!$A$2:$A$28=A29)*(sales_informal!$B$2:$B$28=B29),0),3) -> 3604.744141 | D29: =INDEX(sales_formal!$A$2:$D$28,MATCH(1,(sales_formal!$A$2:$A$28=A29)*(sales_formal!$B$2:$B$28=B29),0),3) -> 26043.34961 | E29: 5317.405273 | F29: 70592 | G29: =INDEX(employees_inf!$A$2:$D$28,MATCH(1,(employees_inf!$A$2:$A$28=A29)*(employees_inf!$B$2:$B$28=B29),0),4) -> 5.319587629 | H29: =INDEX(employees_formal!$A$2:$D$28,MATCH(1,(employees_formal!$A$2:$A$28=A29)*(employees_formal!$B$2:$B$28=B29),0),4) -> 91.30084844 | I29: 0.1597938091 | J29: 0.4846938848 | M29: 0.13841323
A30: Tanzania | B30: 2003 | C30: =INDEX(sales_informal!$A$2:$D$28,MATCH(1,(sales_informal!$A$2:$A$28=A30)*(sales_informal!$B$2:$B$28=B30),0),3) -> 1521.705444 | D30: =INDEX(sales_formal!$A$2:$D$28,MATCH(1,(sales_formal!$A$2:$A$28=A30)*(sales_formal!$B$2:$B$28=B30),0),3) -> 20682.33789 | E30: 1806.747803 | F30: . | G30: =INDEX(employees_inf!$A$2:$D$28,MATCH(1,(employees_inf!$A$2:$A$28=A30)*(employees_inf!$B$2:$B$28=B30),0),4) -> 3.444805195 | H30: =INDEX(employees_formal!$A$2:$D$28,MATCH(1,(employees_formal!$A$2:$A$28=A30)*(employees_formal!$B$2:$B$28=B30),0),4) -> 82.55602633 | I30: 0.01302931551 | J30: 0.6436781883 | M30: 0.07357511769
A31: Uganda | B31: 2003 | C31: =INDEX(sales_informal!$A$2:$D$28,MATCH(1,(sales_informal!$A$2:$A$28=A31)*(sales_informal!$B$2:$B$28=B31),0),3) -> 3547.262939 | D31: =INDEX(sales_formal!$A$2:$D$28,MATCH(1,(sales_formal!$A$2:$A$28=A31)*(sales_formal!$B$2:$B$28=B31),0),3) -> 23334.47266 | E31: 6537.713379 | F31: 53576.35156 | G31: =INDEX(employees_inf!$A$2:$D$28,MATCH(1,(employees_inf!$A$2:$A$28=A31)*(employees_inf!$B$2:$B$28=B31),0),4) -> 4.578947368 | H31: =INDEX(employees_formal!$A$2:$D$28,MATCH(1,(employees_formal!$A$2:$A$28=A31)*(employees_formal!$B$2:$B$28=B31),0),4) -> 71.38341969 | I31: 0.1923076957 | J31: 0.3419689238 | M31: =C31/D31 -> 0.1520181318
A32: Average | C32: =AVERAGE(C5:C31) -> 7384.847765 | D32: =AVERAGE(D5:D31) -> 57852.21152 | E32: =AVERAGE(E5:E31) -> 11267.28537 | F32: =AVERAGE(F5:F31) -> 109687.8776 | G32: 3.875010974 | H32: 126.65967 | I32: 0.07056574999 | J32: 0.7554175726 | M32: 0.1957466636

Sheet Costs and Benefits Registering
A1: Online Appendix Table 2: Costs and benefits of registering
A3: Percentage of Informal Survey respondents rating the following as either the most important or second most important benefit that their firm could obtain from registering
B4: Better access to financing | C4: Better access to raw materials | D4: Better access to markets | E4: Less bribes to pay | F4: Better opportunities with formal firms | G4: More access to government programs or services | H4: Better legal foundations on the property | I4: Better access to infrastructure service
A5: Angola 2010 | B5: =VALUE(L5) -> 0.7142857313 | C5: 0.3613445461 | D5: 0.075630255 | E5: 0.0924369767 | F5: 0.0336134471 | G5: 0.0168067235 | H5: 0.1260504276 | I5: 0.0168067235 | J5: AGO2010 | K5: AGO2010 | L5: 0.7142857313 | M5: 0.3613445461 | N5: 0.075630255 | O5: 0.0924369767 | P5: 0.0336134471 | Q5: 0.0168067235 | R5: 0.1260504276 | S5: 0.0168067235
A6: Burkina Faso 2009 | B6: 0.6324786544 | C6: 0.2689075768 | D6: 0.1282051355 | E6: 0.2627118528 | F6: 0.051282052 | G6: 0.0769230798 | H6: 0.025641026 | I6: 0.0170940179 | J6: BFA2009 | K6: BFA2009 | L6: 0.6324786544 | M6: 0.2689075768 | N6: 0.1282051355 | O6: 0.2627118528 | P6: 0.051282052 | Q6: 0.0769230798 | R6: 0.025641026 | S6: 0.0170940179
A7: Botswana 2010 | B7: 1 | C7: 0.0112359552 | D7: 0.1797752827 | E7: 0.0112359552 | F7: 0.0898876414 | G7: 0.0674157292 | H7: 0.0224719103 | I7: 0.0674157292 | J7: BTW2010 | K7: BTW2010 | L7: 1 | M7: 0.0112359552 | N7: 0.1797752827 | O7: 0.0112359552 | P7: 0.0898876414 | Q7: 0.0674157292 | R7: 0.0224719103 | S7: 0.0674157292
A8: Cameroon 2009 | B8: 0.6721311212 | C8: 0.3852458894 | D8: 0.1803278625 | E8: 0.327868849 | F8: 0.1311475337 | G8: 0.0245901644 | H8: 0.0655737668 | I8: 0.0163934417 | J8: CMR2009 | K8: CMR2009 | L8: 0.6721311212 | M8: 0.3852458894 | N8: 0.1803278625 | O8: 0.327868849 | P8: 0.1311475337 | Q8: 0.0245901644 | R8: 0.0655737668 | S8: 0.0163934417
A9: Congo, Dem Rep 2010 | B9: 0.6999999881 | C9: 0.2066666633 | D9: 0.2066666633 | E9: 0.113333337 | F9: 0.1000000015 | G9: 0.0199999996 | H9: 0.0266666673 | I9: 0.0666666701 | J9: COD2010 | K9: COD2010 | L9: 0.6999999881 | M9: 0.2066666633 | N9: 0.2066666633 | O9: 0.113333337 | P9: 0.1000000015 | Q9: 0.0199999996 | R9: 0.0266666673 | S9: 0.0666666701
A10: Capo Verde 2009 | B10: 0.6976743937 | C10: 0.3178294599 | D10: 0.1395348907 | E10: 0.1472868174 | F10: 0.1007751971 | G10: 0.007751938 | H10: 0.0310077518 | I10: 0 | J10: CPV2009 | K10: CPV2009 | L10: 0.6976743937 | M10: 0.3178294599 | N10: 0.1395348907 | O10: 0.1472868174 | P10: 0.1007751971 | Q10: 0.007751938 | R10: 0.0310077518 | S10: 0
A11: Mauritius 2009 | B11: 0.6725663543 | C11: 0.2456140369 | D11: 0.1363636404 | E11: 0.1578947306 | F11: 0.0272727273 | G11: 0.0909090936 | H11: 0.0990990996 | I11: 0.0636363626 | J11: MAU2009 | K11: MAU2009 | L11: 0.6725663543 | M11: 0.2456140369 | N11: 0.1363636404 | O11: 0.1578947306 | P11: 0.0272727273 | Q11: 0.0909090936 | R11: 0.0990990996 | S11: 0.0636363626
A12: Madagascar 2009 | B12: 0.724409461 | C12: 0.4645669162 | D12: 0.1732283533 | E12: 0.0236220472 | F12: 0.1496063024 | G12: 0.0866141766 | H12: 0.0629921257 | I12: 0.0393700786 | J12: MGD2009 | K12: MGD2009 | L12: 0.724409461 | M12: 0.4645669162 | N12: 0.1732283533 | O12: 0.0236220472 | P12: 0.1496063024 | Q12: 0.0866141766 | R12: 0.0629921257 | S12: 0.0393700786
A13: Mali 2010 | B13: 0.8434782624 | C13: 0.3304347694 | D13: 0.1415929198 | E13: 0.2586206794 | F13: 0.0265486725 | G13: 0.0265486725 | H13: 0.017699115 | I13: 0 | J13: MLI2010 | K13: MLI2010 | L13: 0.8434782624 | M13: 0.3304347694 | N13: 0.1415929198 | O13: 0.2586206794 | P13: 0.0265486725 | Q13: 0.0265486725 | R13: 0.017699115 | S13: 0
A14: Nepal 2009 | B14: 0.6399999857 | C14: 0.0599999987 | D14: 0.0399999991 | E14: 0 | F14: 0.1000000015 | G14: 0.1199999973 | H14: 0.0399999991 | I14: 0 | J14: NPL2009 | K14: NPL2009 | L14: 0.6399999857 | M14: 0.0599999987 | N14: 0.0399999991 | O14: 0 | P14: 0.1000000015 | Q14: 0.1199999973 | R14: 0.0399999991 | S14: 0
A15: Average | B15: =AVERAGE(B5:B14) -> 0.7297023952 | C15: =AVERAGE(C5:C14) -> 0.2651845812 | D15: 0.1401325002 | E15: 0.1395011245 | F15: 0.08101335765 | G15: 0.05375595745 | H15: 0.05172018892 | I15: 0.02873830236

Sheet Regression for Figure 5
A1: Online Appendix: Figure 5 Regression
A3: Dependent Variable is Change in self-employment
A4: ln(GDP per capitat / GDP per capitat-1) | B4: -7.1482a
A5: ="" ->  | B5: ="(1.4772)" -> (1.4772)
A7: ln(Labor forcet / Labor forcet-1) | B7: 10.6441a
A8: ="" ->  | B8: ="(3.6289)" -> (3.6289)
A10: ="_ICountryCo_2" -> _ICountryCo_2 | B10: ="0.2130a" -> 0.2130a
A11: ="" ->  | B11: ="(0.0286)" -> (0.0286)
A13: ="_ICountryCo_3" -> _ICountryCo_3 | B13: ="0.0172" -> 0.0172
A14: ="" ->  | B14: ="(0.0309)" -> (0.0309)
A16: ="_ICountryCo_4" -> _ICountryCo_4 | B16: ="0.4761a" -> 0.4761a
A17: ="" ->  | B17: ="(0.0238)" -> (0.0238)
A19: ="_ICountryCo_5" -> _ICountryCo_5 | B19: ="-0.0045" -> -0.0045
A20: ="" ->  | B20: ="(0.0727)" -> (0.0727)
A22: ="_ICountryCo_6" -> _ICountryCo_6 | B22: ="-0.1178a" -> -0.1178a
A23: ="" ->  | B23: ="(0.0231)" -> (0.0231)
A25: ="_ICountryCo_7" -> _ICountryCo_7 | B25: ="0.4236a" -> 0.4236a
A26: ="" ->  | B26: ="(0.0426)" -> (0.0426)
A28: ="_ICountryCo_8" -> _ICountryCo_8 | B28: ="-0.0526a" -> -0.0526a
A29: ="" ->  | B29: ="(0.0192)" -> (0.0192)
A31: ="_ICountryCo_9" -> _ICountryCo_9 | B31: ="0.2116a" -> 0.2116a
A32: ="" ->  | B32: ="(0.0381)" -> (0.0381)
A34: ="_ICountryCo_10" -> _ICountryCo_10 | B34: ="0.2524a" -> 0.2524a
A35: ="" ->  | B35: ="(0.0554)" -> (0.0554)
A37: ="_ICountryCo_11" -> _ICountryCo_11 | B37: ="0.9579a" -> 0.9579a
A38: ="" ->  | B38: ="(0.0993)" -> (0.0993)
A40: ="_ICountryCo_12" -> _ICountryCo_12 | B40: ="-0.3047a" -> -0.3047a
A41: ="" ->  | B41: ="(0.0941)" -> (0.0941)
A43: ="_ICountryCo_13" -> _ICountryCo_13 | B43: ="0.9012a" -> 0.9012a
A44: ="" ->  | B44: ="(0.0521)" -> (0.0521)
A46: ="_ICountryCo_14" -> _ICountryCo_14 | B46: ="0.7091a" -> 0.7091a
A47: ="" ->  | B47: ="(0.0622)" -> (0.0622)
A49: ="_ICountryCo_15" -> _ICountryCo_15 | B49: ="0.3277a" -> 0.3277a
A50: ="" ->  | B50: ="(0.0494)" -> (0.0494)
A52: ="_ICountryCo_16" -> _ICountryCo_16 | B52: ="0.2294a" -> 0.2294a
A53: ="" ->  | B53: ="(0.0700)" -> (0.0700)
A55: ="_ICountryCo_17" -> _ICountryCo_17 | B55: ="0.1416a" -> 0.1416a
A56: ="" ->  | B56: ="(0.0473)" -> (0.0473)
A58: ="_ICountryCo_18" -> _ICountryCo_18 | B58: ="0.7427a" -> 0.7427a
A59: ="" ->  | B59: ="(0.0933)" -> (0.0933)
A61: ="_ICountryCo_19" -> _ICountryCo_19 | B61: ="0.0068" -> 0.0068
A62: ="" ->  | B62: ="(0.0550)" -> (0.0550)
A64: ="_ICountryCo_20" -> _ICountryCo_20 | B64: ="-0.2856a" -> -0.2856a
A65: ="" ->  | B65: ="(0.0144)" -> (0.0144)
A67: ="_ICountryCo_21" -> _ICountryCo_21 | B67: ="0.7254a" -> 0.7254a
A68: ="" ->  | B68: ="(0.0959)" -> (0.0959)
A70: ="_ICountryCo_22" -> _ICountryCo_22 | B70: ="0.2477a" -> 0.2477a
A71: ="" ->  | B71: ="(0.0627)" -> (0.0627)
A73: ="_ICountryCo_23" -> _ICountryCo_23 | B73: ="0.0532" -> 0.0532
A74: ="" ->  | B74: ="(0.0439)" -> (0.0439)
A76: ="_ICountryCo_24" -> _ICountryCo_24 | B76: ="0.3823a" -> 0.3823a
A77: ="" ->  | B77: ="(0.0504)" -> (0.0504)
A79: ="_ICountryCo_25" -> _ICountryCo_25 | B79: ="0.9791a" -> 0.9791a
A80: ="" ->  | B80: ="(0.0764)" -> (0.0764)
A82: ="_ICountryCo_26" -> _ICountryCo_26 | B82: ="-0.2667a" -> -0.2667a
A83: ="" ->  | B83: ="(0.0379)" -> (0.0379)
A85: ="_ICountryCo_27" -> _ICountryCo_27 | B85: ="0.2213a" -> 0.2213a
A86: ="" ->  | B86: ="(0.0192)" -> (0.0192)
A88: ="_ICountryCo_28" -> _ICountryCo_28 | B88: ="0.3125a" -> 0.3125a
A89: ="" ->  | B89: ="(0.1100)" -> (0.1100)
A91: ="_ICountryCo_29" -> _ICountryCo_29 | B91: ="0.0179" -> 0.0179
A92: ="" ->  | B92: ="(0.0869)" -> (0.0869)
A94: ="_ICountryCo_30" -> _ICountryCo_30 | B94: ="0.3201a" -> 0.3201a
A95: ="" ->  | B95: ="(0.0748)" -> (0.0748)
A97: ="_ICountryCo_31" -> _ICountryCo_31 | B97: ="-0.1036a" -> -0.1036a
A98: ="" ->  | B98: ="(0.0105)" -> (0.0105)
A100: ="_ICountryCo_32" -> _ICountryCo_32 | B100: ="-0.1967a" -> -0.1967a
A101: ="" ->  | B101: ="(0.0376)" -> (0.0376)
A103: ="_ICountryCo_33" -> _ICountryCo_33 | B103: ="0.0577a" -> 0.0577a
A104: ="" ->  | B104: ="(0.0190)" -> (0.0190)
A106: ="_ICountryCo_34" -> _ICountryCo_34 | B106: ="-0.1367a" -> -0.1367a
A107: ="" ->  | B107: ="(0.0501)" -> (0.0501)
A109: ="_ICountryCo_35" -> _ICountryCo_35 | B109: ="0.1122c" -> 0.1122c
A110: ="" ->  | B110: ="(0.0633)" -> (0.0633)
A112: ="_ICountryCo_36" -> _ICountryCo_36 | B112: ="0.1183b" -> 0.1183b
A113: ="" ->  | B113: ="(0.0555)" -> (0.0555)
A115: ="_ICountryCo_37" -> _ICountryCo_37 | B115: ="-0.2024a" -> -0.2024a
A116: ="" ->  | B116: ="(0.0667)" -> (0.0667)
A118: ="_ICountryCo_38" -> _ICountryCo_38 | B118: ="-0.1451a" -> -0.1451a
A119: ="" ->  | B119: ="(0.0369)" -> (0.0369)
A121: ="_ICountryCo_39" -> _ICountryCo_39 | B121: ="0.3926a" -> 0.3926a
A122: ="" ->  | B122: ="(0.0453)" -> (0.0453)
A124: ="_ICountryCo_40" -> _ICountryCo_40 | B124: ="0.0909" -> 0.0909
A125: ="" ->  | B125: ="(0.1044)" -> (0.1044)
A127: ="_ICountryCo_41" -> _ICountryCo_41 | B127: ="0.0207" -> 0.0207
A128: ="" ->  | B128: ="(0.0272)" -> (0.0272)
A130: ="_ICountryCo_42" -> _ICountryCo_42 | B130: ="0.5184a" -> 0.5184a
A131: ="" ->  | B131: ="(0.1042)" -> (0.1042)
A133: ="_ICountryCo_43" -> _ICountryCo_43 | B133: ="0.0403" -> 0.0403
A134: ="" ->  | B134: ="(0.1201)" -> (0.1201)
A136: ="_ICountryCo_44" -> _ICountryCo_44 | B136: ="0.2787a" -> 0.2787a
A137: ="" ->  | B137: ="(0.0417)" -> (0.0417)
A139: ="_ICountryCo_45" -> _ICountryCo_45 | B139: ="0.5988a" -> 0.5988a
A140: ="" ->  | B140: ="(0.0277)" -> (0.0277)
A142: ="_ICountryCo_46" -> _ICountryCo_46 | B142: ="-0.0775" -> -0.0775
A143: ="" ->  | B143: ="(0.0645)" -> (0.0645)
A145: ="_ICountryCo_47" -> _ICountryCo_47 | B145: ="0.3478a" -> 0.3478a
A146: ="" ->  | B146: ="(0.0194)" -> (0.0194)
A148: ="_ICountryCo_48" -> _ICountryCo_48 | B148: ="0.0687b" -> 0.0687b
A149: ="" ->  | B149: ="(0.0304)" -> (0.0304)
A151: ="_ICountryCo_49" -> _ICountryCo_49 | B151: ="-0.0353b" -> -0.0353b
A152: ="" ->  | B152: ="(0.0134)" -> (0.0134)
A154: ="_ICountryCo_50" -> _ICountryCo_50 | B154: ="-0.1524c" -> -0.1524c
A155: ="" ->  | B155: ="(0.0835)" -> (0.0835)
A157: ="_ICountryCo_51" -> _ICountryCo_51 | B157: ="0.5317a" -> 0.5317a
A158: ="" ->  | B158: ="(0.0919)" -> (0.0919)
A160: ="_ICountryCo_52" -> _ICountryCo_52 | B160: ="-0.3048a" -> -0.3048a
A161: ="" ->  | B161: ="(0.0290)" -> (0.0290)
A163: ="_ICountryCo_53" -> _ICountryCo_53 | B163: ="0.2881a" -> 0.2881a
A164: ="" ->  | B164: ="(0.0689)" -> (0.0689)
A166: ="_ICountryCo_54" -> _ICountryCo_54 | B166: ="0.3619a" -> 0.3619a
A167: ="" ->  | B167: ="(0.0601)" -> (0.0601)
A169: ="_ICountryCo_55" -> _ICountryCo_55 | B169: ="-0.0525" -> -0.0525
A170: ="" ->  | B170: ="(0.0455)" -> (0.0455)
A172: ="_ICountryCo_56" -> _ICountryCo_56 | B172: ="0.6034a" -> 0.6034a
A173: ="" ->  | B173: ="(0.0573)" -> (0.0573)
A175: ="_ICountryCo_57" -> _ICountryCo_57 | B175: ="0.3624a" -> 0.3624a
A176: ="" ->  | B176: ="(0.0637)" -> (0.0637)
A178: ="_ICountryCo_58" -> _ICountryCo_58 | B178: ="0.1382c" -> 0.1382c
A179: ="" ->  | B179: ="(0.0795)" -> (0.0795)
A181: ="_ICountryCo_59" -> _ICountryCo_59 | B181: ="0.2231a" -> 0.2231a
A182: ="" ->  | B182: ="(0.0087)" -> (0.0087)
A184: ="_ICountryCo_60" -> _ICountryCo_60 | B184: ="0.9829a" -> 0.9829a
A185: ="" ->  | B185: ="(0.0549)" -> (0.0549)
A187: ="_ICountryCo_61" -> _ICountryCo_61 | B187: ="0.3828a" -> 0.3828a
A188: ="" ->  | B188: ="(0.0333)" -> (0.0333)
A190: ="_ICountryCo_62" -> _ICountryCo_62 | B190: ="0.3844a" -> 0.3844a
A191: ="" ->  | B191: ="(0.0550)" -> (0.0550)
A193: ="_ICountryCo_63" -> _ICountryCo_63 | B193: ="-0.3016a" -> -0.3016a
A194: ="" ->  | B194: ="(0.0387)" -> (0.0387)
A196: ="_ICountryCo_64" -> _ICountryCo_64 | B196: ="-0.0531" -> -0.0531
A197: ="" ->  | B197: ="(0.0484)" -> (0.0484)
A199: ="_ICountryCo_65" -> _ICountryCo_65 | B199: ="-0.8441a" -> -0.8441a
A200: ="" ->  | B200: ="(0.0098)" -> (0.0098)
A202: ="_ICountryCo_66" -> _ICountryCo_66 | B202: ="1.0027a" -> 1.0027a
A203: ="" ->  | B203: ="(0.0864)" -> (0.0864)
A205: ="_ICountryCo_67" -> _ICountryCo_67 | B205: ="0.1462a" -> 0.1462a
A206: ="" ->  | B206: ="(0.0297)" -> (0.0297)
A208: ="_ICountryCo_68" -> _ICountryCo_68 | B208: ="0.0853" -> 0.0853
A209: ="" ->  | B209: ="(0.0738)" -> (0.0738)
A211: Constant | B211: -0.2566a
A212: ="" ->  | B212: ="(0.0749)" -> (0.0749)
A214: Observations | B214: 1287
A215: Adjusted R2 | B215: 0.025

Sheet ONLINE APPENDIX -- Data
A1: Index
A2: 1 | B2: Data Table 1
A3: =A2+1 -> 2 | B3: Data Table 3
A4: =A3+1 -> 3 | B4: Data Figures 1-3
A5: 4 | B5: Data Figure 4
A6: 5 | B6: Data Figure 5
A7: 6 | B7: Data Figure 6

Sheet Data Table 1
B1: GDP/Population | C1: % GDP Informal | D1: % Tax Evasion | E1: % Self-employment | F1: % Self-employment non-agriculture | G1: % GDP Informal | H1: % GDP Informal | I1: Registered firms /
A2: country | C2: (World Economic Forum) | D2: (Enterprise survey) | G2: (electricity consumption) | H2: (multiple indicators) | I2: population (000s)
A3: Tanzania | B3: 573.72727 | C3: 35 | D3: 38.98135 | E3: 8.4 | F3: . | G3: . | H3: 59.04 | I3: 1.537585
A4: Malawi | B4: 599.18182 | C4: 36 | D4: 30.7418 | E4: 84.6 | F4: . | G4: . | H4: 41.64 | I4: 0.417366
A5: Sierra Leone | B5: 623.90909 | C5: . | D5: . | E5: . | F5: . | G5: . | H5: 43.36 | I5: .
A6: Congo, Dem. Rep. | B6: 666.09091 | C6: . | D6: 37.63717 | E6: . | F6: 52 | G6: . | H6: 49.54 | I6: .
A7: Burundi | B7: 668.90909 | C7: 34 | D7: 15.66852 | E7: . | F7: 36 | G7: . | H7: 38.46 | I7: .
A8: Niger | B8: 721.63636 | C8: . | D8: 13.09259 | E8: . | F8: . | G8: . | H8: 43.32 | I8: .
A9: Madagascar | B9: 840.27273 | C9: 40 | D9: 5.939164 | E9: 43.7 | F9: . | G9: . | H9: 40.94 | I9: 0.9781998
A10: Yemen, Rep. | B10: 851.09091 | C10: . | D10: . | E10: 58 | F10: 41 | G10: . | H10: 28.08 | I10: 1.011202
A11: Guinea-Bissau | B11: 858.45455 | C11: . | D11: 28.79208 | E11: . | F11: 48 | G11: . | H11: . | I11: .
A12: Mali | B12: 860.45455 | C12: 38 | D12: 22.77848 | E12: 71.4 | F12: 84 | G12: . | H12: 43.62 | I12: .
A13: Zambia | B13: 861.63636 | C13: 45 | D13: 16.13699 | E13: 59.7 | F13: 18 | G13: . | H13: 49.78 | I13: 5.676355
A14: Ethiopia | B14: 883.81818 | C14: 34 | D14: . | E14: 41.5 | F14: 68 | G14: . | H14: 41.7 | I14: .
A15: Nigeria | B15: 914.72727 | C15: 36 | D15: . | E15: . | F15: . | G15: 76 | H15: 59 | I15: .
A16: Mozambique | B16: 929.81818 | C16: 38 | D16: . | E16: . | F16: 47 | G16: . | H16: 42.08 | I16: .
A17: Tajikistan | B17: 965.18182 | C17: 29 | D17: 27.68589 | E17: . | F17: . | G17: . | H17: . | I17: .
A18: Benin | B18: 1005.4545 | C18: 42 | D18: 15.87013 | E18: . | F18: 89 | G18: . | H18: 48.74 | I18: .
A19: Rwanda | B19: 1025.7273 | C19: . | D19: 18.91429 | E19: . | F19: . | G19: . | H19: 41.58 | I19: .
A20: Chad | B20: 1033.0909 | C20: 41 | D20: . | E20: 65.6 | F20: 72 | G20: . | H20: 47.5 | I20: .
A21: Burkina Faso | B21: 1062.9091 | C21: 36 | D21: 22.34646 | E21: 26.3 | F21: 70 | G21: . | H21: 42.84 | I21: .
A22: Kenya | B22: 1094.8182 | C22: 33 | D22: 14.52551 | E22: . | F22: 61 | G22: . | H22: 35.12 | I22: 3.268799
A23: West Bank and Gaza | B23: 1100 | C23: . | D23: . | E23: 30.7 | F23: . | G23: . | H23: . | I23: .
A24: West Bank and Gaza | B24: 1100 | C24: . | D24: . | E24: 30.7 | F24: . | G24: . | H24: . | I24: .
A25: Congo, Rep. | B25: 1113.5455 | C25: . | D25: . | E25: . | F25: 39 | G25: . | H25: 49.8 | I25: 8.964666
A26: Eritrea | B26: 1126.5455 | C26: . | D26: 15.13461 | E26: . | F26: . | G26: . | H26: . | I26: .
A27: Central African Republic | B27: 1179.8182 | C27: . | D27: . | E27: . | F27: 58 | G27: . | H27: 45.8 | I27: .
A28: Gambia, The | B28: 1213.5083 | C28: 31 | D28: 67.43491 | E28: . | F28: 52 | G28: . | H28: . | I28: .
A29: Uganda | B29: 1224.7273 | C29: 38 | D29: 34.52202 | E29: 59.4 | F29: . | G29: . | H29: 44.76 | I29: 3.091942
A30: Nepal | B30: 1361.5455 | C30: 36 | D30: . | E30: . | F30: 59 | G30: . | H30: 39.68 | I30: .
A31: Togo | B31: 1405.7273 | C31: . | D31: . | E31: . | F31: 68 | G31: . | H31: 38.94 | I31: .
A32: Senegal | B32: 1505.5455 | C32: . | D32: 80.33569 | E32: 55.4 | F32: . | G32: . | H32: 47.08 | I32: 0.0908925
A33: Côte d'Ivoire | B33: 1600.7273 | C33: . | D33: . | E33: . | F33: . | G33: . | H33: 44.56 | I33: .
A34: Haiti | B34: 1601.7273 | C34: . | D34: . | E34: . | F34: 65 | G34: . | H34: 58 | I34: 0.0375492
A35: Kyrgyz Republic | B35: 1602.1818 | C35: 42 | D35: 21.02211 | E35: 36.7 | F35: . | G35: . | H35: 40.66 | I35: .
A36: Uzbekistan | B36: 1639.4545 | C36: . | D36: 5.221241 | E36: . | F36: . | G36: 8.4 | H36: 35.74 | I36: .
A37: Bangladesh | B37: 1664.8182 | C37: 34 | D37: . | E37: 65.1 | F37: 75 | G37: . | H37: 37.22 | I37: 0.3940215
A38: Moldova | B38: 1674.5455 | C38: 17 | D38: 19.99713 | E38: 35.9 | F38: . | G38: 32.4 | H38: 48.08 | I38: 13.867
A39: Lao PDR | B39: 1677.4545 | C39: . | D39: . | E39: 56.9 | F39: . | G39: . | H39: 32.6 | I39: .
A40: Mongolia | B40: 1690 | C40: 34 | D40: 37.3625 | E40: 35.6 | F40: . | G40: . | H40: 20.04 | I40: .
A41: Angola | B41: 1702.3636 | C41: 38 | D41: 50.87711 | E41: . | F41: . | G41: . | H41: 44.56 | I41: .
A42: Marshall Islands | B42: 1820.3691 | C42: . | D42: . | E42: . | F42: . | G42: . | H42: 28.66 | I42: .
A43: Cambodia | B43: 1962.4545 | C43: 34 | D43: 52.63764 | E43: 41.2 | F43: 49 | G43: . | H43: 51.78 | I43: .
A44: Cameroon | B44: 1978.7273 | C44: 37 | D44: 12.40625 | E44: 59.3 | F44: . | G44: . | H44: 33.88 | I44: .
A45: Djibouti | B45: 1979.7273 | C45: . | D45: . | E45: 17.7 | F45: . | G45: . | H45: . | I45: .
A46: Mauritania | B46: 1992 | C46: 32 | D46: 46.99123 | E46: . | F46: . | G46: . | H46: 37.1 | I46: .
A47: Pakistan | B47: 2001 | C47: 30 | D47: . | E47: 38 | F47: 43 | G47: . | H47: 38.42 | I47: 0.2744527
A48: Solomon Islands | B48: 2032.3636 | C48: . | D48: . | E48: . | F48: . | G48: . | H48: 34.36 | I48: .
A49: Ghana | B49: 2062.3636 | C49: . | D49: . | E49: . | F49: 67 | G49: . | H49: 43.04 | I49: 4.551487
A50: Guinea | B50: 2062.5455 | C50: . | D50: 64.25493 | E50: . | F50: 72 | G50: . | H50: 40.88 | I50: .
A51: Vietnam | B51: 2302.8182 | C51: 27 | D51: 9.129848 | E51: 41.7 | F51: . | G51: . | H51: 16.68 | I51: .
A52: Georgia | B52: 2388.2727 | C52: 32 | D52: 22.7934 | E52: 36.8 | F52: . | G52: 53.1 | H52: 67.32 | I52: 11.09441
A53: Zimbabwe | B53: 2409.1818 | C53: 41 | D53: . | E53: 50.4 | F53: . | G53: . | H53: 62.42 | I53: .
A54: Papua New Guinea | B54: 2411.2727 | C54: . | D54: . | E54: . | F54: . | G54: . | H54: 37.46 | I54: .
A55: Bolivia | B55: 2491.2727 | C55: 43 | D55: 20.23091 | E55: 44.4 | F55: 68 | G55: . | H55: 67.74 | I55: 2.505373
A56: Montenegro | B56: 2500 | C56: . | D56: 28.12195 | E56: . | F56: . | G56: . | H56: . | I56: .
A57: Timor-Leste | B57: 2500 | C57: 29 | D57: . | E57: . | F57: . | G57: . | H57: . | I57: .
A58: India | B58: 2637.9091 | C58: 27 | D58: 27.70499 | E58: . | F58: 37 | G58: . | H58: 24.78 | I58: 0.6098422
A59: Lesotho | B59: 2856.1818 | C59: 33 | D59: 15.87375 | E59: 60.3 | F59: . | G59: . | H59: 32.42 | I59: .
A60: Honduras | B60: 3025.1818 | C60: 38 | D60: 23.46418 | E60: 39.2 | F60: 52 | G60: . | H60: 50.42 | I60: .
A61: Vanuatu | B61: 3107 | C61: . | D61: . | E61: . | F61: . | G61: . | H61: 31.7 | I61: .
A62: Armenia | B62: 3184.5455 | C62: 32 | D62: 6.091639 | E62: 17.2 | F62: . | G62: . | H62: 47.84 | I62: 38.41116
A63: Azerbaijan | B63: 3221.1818 | C63: 33 | D63: 13.61413 | E63: . | F63: . | G63: 47.2 | H63: 60.64 | I63: .
A64: Indonesia | B64: 3242.5455 | C64: 38 | D64: 27.29835 | E64: 44.7 | F64: 51 | G64: . | H64: 22.34 | I64: 1.106817
A65: Nicaragua | B65: 3267.1818 | C65: 35 | D65: 37.48138 | E65: 40.7 | F65: . | G65: . | H65: 47.44 | I65: .
A66: Syrian Arab Republic | B66: 3399.2727 | C66: . | D66: 49.60403 | E66: 34.3 | F66: 29 | G66: . | H66: 20.84 | I66: 0.1230289
A67: Ecuador | B67: 3626.6364 | C67: 35 | D67: 23.53912 | E67: 34.3 | F67: 49 | G67: . | H67: 35.5 | I67: .
A68: Egypt | B68: 3674.8182 | C68: 31 | D68: 17.03205 | E68: 29.5 | F68: 25 | G68: 68 | H68: 35.94 | I68: 5.045436
A69: Sri Lanka | B69: 3710.4545 | C69: 31 | D69: 7.718121 | E69: 32.3 | F69: 17 | G69: 40 | H69: 46.96 | I69: 2.679401
A70: Cape Verde | B70: 3754.1159 | C70: . | D70: 11.64773 | E70: . | F70: . | G70: . | H70: . | I70: .
A71: Jamaica | B71: 3816.2727 | C71: 38 | D71: 13.27069 | E71: 36.2 | F71: . | G71: . | H71: 38.14 | I71: .
A72: Morocco | B72: 3914.7273 | C72: 33 | D72: 3.998775 | E72: 30.9 | F72: 40 | G72: 39 | H72: 37.08 | I72: 4.622209
A73: Albania | B73: 4045.7273 | C73: 22 | D73: 21.9579 | E73: . | F73: . | G73: . | H73: 34.52 | I73: 4.601908
A74: Bhutan | B74: 4113.7273 | C74: . | D74: . | E74: . | F74: . | G74: . | H74: 31.48 | I74: .
A75: Guyana | B75: 4114.6364 | C75: 38 | D75: 26.61157 | E75: 39.5 | F75: . | G75: . | H75: . | I75: .
A76: Guatemala | B76: 4123.3636 | C76: 39 | D76: 24.60153 | E76: 37.9 | F76: 45 | G76: 61 | H76: 51.44 | I76: 5.385787
A77: Maldives | B77: 4188.0509 | C77: . | D77: . | E77: 58.7 | F77: . | G77: . | H77: 31.24 | I77: .
A78: Philippines | B78: 4294.9091 | C78: 32 | D78: 23.24894 | E78: 37 | F78: 34 | G78: 50 | H78: 44.58 | I78: .
A79: Paraguay | B79: 4458.9091 | C79: 41 | D79: 19.05206 | E79: 44.9 | F79: . | G79: 27 | H79: 30.7 | I79: .
A80: Cuba | B80: 4500 | C80: . | D80: . | E80: 20.2 | F80: 1 | G80: . | H80: . | I80: .
A81: Jordan | B81: 4562.2727 | C81: 23 | D81: . | E81: . | F81: 24 | G81: . | H81: 20.62 | I81: 17.65719
A82: Kiribati | B82: 4593.9091 | C82: . | D82: . | E82: . | F82: . | G82: . | H82: 34.64 | I82: .
A83: Lebanon | B83: 4687.5455 | C83: . | D83: 34.26374 | E83: . | F83: 34 | G83: . | H83: 35.9 | I83: 15.26144
A84: China | B84: 4687.8182 | C84: 28 | D84: 40.97363 | E84: . | F84: 15 | G84: . | H84: 15.16 | I84: .
A85: El Salvador | B85: 4731.5455 | C85: 32 | D85: 20.91471 | E85: 32.4 | F85: 47 | G85: . | H85: 47.4 | I85: 6.195096
A86: Ukraine | B86: 4959.3636 | C86: 35 | D86: 11.91182 | E86: 17.7 | F86: . | G86: 38.65 | H86: 54.14 | I86: 9.265791
A87: Swaziland | B87: 4983.992 | C87: . | D87: 57.90582 | E87: 21.1 | F87: . | G87: . | H87: . | I87: .
A88: Samoa | B88: 5026.8182 | C88: . | D88: . | E88: . | F88: . | G88: . | H88: 32.68 | I88: .
A89: Peru | B89: 5093.2727 | C89: 39 | D89: 17.79045 | E89: 37.1 | F89: . | G89: 44 | H89: 59.68 | I89: 19.0189
A90: Fiji | B90: 5284 | C90: . | D90: . | E90: . | F90: . | G90: . | H90: 34.28 | I90: .
A91: Kazakhstan | B91: 5427.3636 | C91: 35 | D91: 12.36517 | E91: 36.6 | F91: . | G91: 28.25 | H91: 44.5 | I91: 1.934368
A92: St. Vincent and the Grenadines | B92: 5492.9091 | C92: . | D92: . | E92: 23.5 | F92: . | G92: . | H92: . | I92: .
A93: Belarus | B93: 5581.2727 | C93: . | D93: 7.244864 | E93: . | F93: . | G93: 16.65 | H93: 49.82 | I93: .
A94: Dominica | B94: 5730.2727 | C94: . | D94: . | E94: 29.4 | F94: . | G94: . | H94: . | I94: .
A95: Algeria | B95: 5780.7273 | C95: 36 | D95: 26.80745 | E95: 27.8 | F95: 28 | G95: . | H95: 34.68 | I95: 2.686401
A96: Palau | B96: 5902.4321 | C96: . | D96: . | E96: . | F96: . | G96: . | H96: 29.04 | I96: .
A97: Belize | B97: 5906 | C97: . | D97: . | E97: 26.7 | F97: . | G97: . | H97: . | I97: .
A98: Venezuela | B98: 5953.0909 | C98: 41 | D98: . | E98: 43.4 | F98: 44 | G98: 30 | H98: 35.38 | I98: .
A99: St. Lucia | B99: 5979.9091 | C99: . | D99: . | E99: 33.2 | F99: . | G99: . | H99: . | I99: .
A100: Bosnia and Herzegovina | B100: 6040.9863 | C100: 35 | D100: 20.80769 | E100: . | F100: . | G100: . | H100: 35.54 | I100: 7.931978
A101: Macedonia, FYR | B101: 6108.5455 | C101: 31 | D101: 27.19075 | E101: 17.7 | F101: . | G101: . | H101: 35.84 | I101: 71.67154
A102: Suriname | B102: 6246.5455 | C102: 33 | D102: . | E102: 16.3 | F102: . | G102: . | H102: . | I102: .
A103: Gabon | B103: 6262.0909 | C103: . | D103: . | E103: 45.4 | F103: . | G103: . | H103: . | I103: .
A104: Namibia | B104: 6348 | C104: 29 | D104: 25.41925 | E104: 16 | F104: . | G104: . | H104: 32.56 | I104: .
A105: Panama | B105: 6357.6364 | C105: 28 | D105: 37.00914 | E105: 31.3 | F105: 30 | G105: 40 | H105: 64.16 | I105: .
A106: Colombia | B106: 6433 | C106: 30 | D106: 17.06631 | E106: 44.4 | F106: 49 | G106: 25 | H106: 41.9 | I106: 0.4217576
A107: Iran, Islamic Rep. | B107: 6434.2727 | C107: . | D107: . | E107: 39.7 | F107: 37 | G107: . | H107: 19.62 | I107: .
A108: Dominican Republic | B108: 6533.5455 | C108: 34 | D108: . | E108: 43.8 | F108: 45 | G108: . | H108: 33.76 | I108: .
A109: Micronesia, Fed. Sts. | B109: 6573.8182 | C109: . | D109: . | E109: . | F109: . | G109: . | H109: 32.22 | I109: .
A110: Tunisia | B110: 6748 | C110: 20 | D110: . | E110: 26.8 | F110: 30 | G110: 45 | H110: 39.02 | I110: 5.596938
A111: Turkey | B111: 6850.2727 | C111: 35 | D111: 29.21146 | E111: 29.8 | F111: 28 | G111: . | H111: 33.34 | I111: 8.521801
A112: Bulgaria | B112: 6919 | C112: 32 | D112: 13.7021 | E112: 12.5 | F112: 0 | G112: 31.25 | H112: 37.24 | I112: .
A113: Tonga | B113: 6936.5455 | C113: . | D113: . | E113: . | F113: . | G113: . | H113: 36.28 | I113: .
A114: Grenada | B114: 7013.9091 | C114: . | D114: . | E114: 22.9 | F114: . | G114: . | H114: . | I114: .
A115: Romania | B115: 7065.2727 | C115: 23 | D115: 9.837368 | E115: 21.4 | F115: 6 | G115: 17.55 | H115: 35.9 | I115: 33.80524
A116: Thailand | B116: 7085.8182 | C116: 23 | D116: . | E116: 34 | F116: 36 | G116: 71 | H116: 53.6 | I116: .
A117: Brazil | B117: 7503.7273 | C117: 34 | D117: 33.01111 | E117: 26.1 | F117: 35 | G117: 29 | H117: 41.48 | I117: .
A118: Serbia and Montenegro | B118: 7607.0135 | C118: 29 | D118: 18.07123 | E118: . | F118: . | G118: . | H118: 37.66 | I118: 31.41909
A119: Russia | B119: 8000.6364 | C119: 38 | D119: 17.03049 | E119: 7.7 | F119: 5 | G119: 34.3 | H119: 47.56 | I119: 29.79276
A120: Costa Rica | B120: 8553.5455 | C120: 27 | D120: 28.41949 | E120: 26.3 | F120: 33 | G120: 34 | H120: 26.88 | I120: 86.36354
A121: Uruguay | B121: 9063.8182 | C121: 27 | D121: 14.66033 | E121: 27.3 | F121: 22 | G121: . | H121: 50.88 | I121: .
A122: Malaysia | B122: 9064.2727 | C122: 15 | D122: . | E122: 18.9 | F122: 17 | G122: 39 | H122: 31.66 | I122: .
A123: Botswana | B123: 9176.3636 | C123: 21 | D123: 47.61612 | E123: 12.2 | F123: 13 | G123: 27 | H123: 33.98 | I123: 37.16033
A124: Mexico | B124: 9347.9091 | C124: 37 | D124: 23.74156 | E124: 28.3 | F124: 39 | G124: 49 | H124: 31.88 | I124: 41.61447
A125: South Africa | B125: 9459.8182 | C125: 29 | D125: 8.898832 | E125: 18.3 | F125: 17 | G125: . | H125: 28.84 | I125: 11.39272
A126: Latvia | B126: 9514.7273 | C126: 23 | D126: 9.946644 | E126: 9.3 | F126: . | G126: 29.8 | H126: 40.34 | I126: 77.1461
A127: Chile | B127: 9838.9091 | C127: 14 | D127: 7.923832 | E127: 27.8 | F127: 29 | G127: 37 | H127: 20.14 | I127: 10.49737
A128: Croatia | B128: 10309 | C128: 30 | D128: 10.29391 | E128: 22.2 | F128: 8 | G128: . | H128: 34.36 | I128: 23.63692
A129: Mauritius | B129: 10339.182 | C129: 23 | D129: 12.46296 | E129: 17.3 | F129: 17 | G129: 20 | H129: . | I129: .
A130: Serbia | B130: 10400 | C130: . | D130: 23.12593 | E130: . | F130: . | G130: . | H130: . | I130: .
A131: Lithuania | B131: 10443.273 | C131: 16 | D131: 34.95359 | E131: 14 | F131: 63 | G131: 23.8 | H131: 31.16 | I131: 18.86542
A132: Trinidad and Tobago | B132: 10668.364 | C132: 30 | D132: . | E132: 19.2 | F132: . | G132: . | H132: . | I132: .
A133: Antigua and Barbuda | B133: 10810.182 | C133: . | D133: . | E133: 17.8 | F133: . | G133: . | H133: . | I133: .
A134: Estonia | B134: 11227.091 | C134: 16 | D134: 5.078529 | E134: 7.9 | F134: . | G134: 17.85 | H134: 39 | I134: 48.7051
A135: Poland | B135: 11404.273 | C135: 26 | D135: 9.329035 | E135: 20.5 | F135: 12 | G135: 16.45 | H135: 28.04 | I135: 12.94417
A136: St. Kitts and Nevis | B136: 11686.364 | C136: . | D136: . | E136: 11.3 | F136: . | G136: . | H136: . | I136: .
A137: Argentina | B137: 12394.273 | C137: 34 | D137: 17.47096 | E137: 24.3 | F137: 29 | G137: . | H137: 27.44 | I137: 10.18844
A138: Slovakia | B138: 12733.091 | C138: 19 | D138: 8.922605 | E138: 12.5 | F138: 5 | G138: 10 | H138: 19.14 | I138: 12.71127
A139: Oman | B139: 12996.222 | C139: . | D139: 27.64982 | E139: 11.4 | F139: 4 | G139: . | H139: 19.18 | I139: .
A140: Saudi Arabia | B140: 13930 | C140: . | D140: . | E140: . | F140: . | G140: . | H140: 18.98 | I140: .
A141: Hungary | B141: 14206.727 | C141: 28 | D141: 11.67047 | E141: 13.2 | F141: 12 | G141: 29.85 | H141: 25.32 | I141: 21.61289
A142: New Caledonia | B142: 15000 | C142: . | D142: . | E142: 15.9 | F142: . | G142: . | H142: . | I142: .
A143: Seychelles | B143: 15879.091 | C143: . | D143: . | E143: 11.1 | F143: . | G143: . | H143: . | I143: .
A144: Bahamas, The | B144: 15938.143 | C144: . | D144: . | E144: 14.8 | F144: . | G144: . | H144: . | I144: .
A145: Netherlands Antilles | B145: 16000 | C145: . | D145: . | E145: 9 | F145: . | G145: . | H145: . | I145: .
A146: Bahrain | B146: 16572.7 | C146: 18 | D146: . | E146: . | F146: 5 | G146: . | H146: . | I146: .
A147: Czech Republic | B147: 16919.091 | C147: 18 | D147: 11.42811 | E147: 15.7 | F147: 13 | G147: 12.35 | H147: 19.26 | I147: 24.93371
A148: Malta | B148: 17077 | C148: 23 | D148: . | E148: 13.7 | F148: . | G148: . | H148: . | I148: 85.62683
A149: Korea | B149: 17571.182 | C149: 29 | D149: 10.21154 | E149: 27 | F149: 30 | G149: 38 | H149: 28.04 | I149: .
A150: Slovenia | B150: 17985.818 | C150: 16 | D150: 10.8343 | E150: 10 | F150: 9 | G150: . | H150: 28.06 | I150: 17.90328
A151: Greece | B151: 18710.636 | C151: 28 | D151: 11.22422 | E151: 30.1 | F151: 31 | G151: 21.2 | H151: 27.82 | I151: 2.883105
A152: Portugal | B152: 18868.818 | C152: 19 | D152: 8.342282 | E152: 23.5 | F152: 19 | G152: 16.8 | H152: 21.72 | I152: 24.77176
A153: Cyprus | B153: 19008.333 | C153: 19 | D153: . | E153: 20.5 | F153: . | G153: 21 | H153: . | I153: 166.1911
A154: Barbados | B154: 19300 | C154: 23 | D154: . | E154: 15.2 | F154: . | G154: . | H154: . | I154: .
A155: Puerto Rico | B155: 19557.225 | C155: . | D155: . | E155: 14.1 | F155: . | G155: . | H155: 29.26 | I155: .
A156: Kuwait | B156: 21058.3 | C156: 18 | D156: . | E156: . | F156: 6 | G156: . | H156: 20.86 | I156: .
A157: Aruba | B157: 21800 | C157: . | D157: . | E157: 2.6 | F157: . | G157: . | H157: . | I157: .
A158: New Zealand | B158: 21819.364 | C158: 13 | D158: . | E158: 17.9 | F158: 16 | G158: . | H158: 12.04 | I158: 81.20921
A159: United Arab Emirates | B159: 22418.2 | C159: 14 | D159: . | E159: . | F159: 8 | G159: . | H159: 27 | I159: .
A160: Israel | B160: 22541.5 | C160: 16 | D160: . | E160: 12.8 | F160: . | G160: 29 | H160: 22.88 | I160: 53.45232
A161: Spain | B161: 22793.818 | C161: 22 | D161: 3.514231 | E161: 16.5 | F161: 19 | G161: 23.9 | H161: 21.78 | I161: 47.50602
A162: Singapore | B162: 24277.818 | C162: 9 | D162: . | E162: 13.3 | F162: 13 | G162: 13 | H162: 13.06 | I162: 22.4015
A163: Macao, China | B163: 25016.545 | C163: . | D163: . | E163: 9.3 | F163: . | G163: . | H163: . | I163: .
A164: Italy | B164: 26383.091 | C164: 31 | D164: . | E164: 17.2 | F164: 26 | G164: . | H164: 25.56 | I164: 28.30902
A165: Germany | B165: 26461.273 | C165: 17 | D165: 5.796642 | E165: 11.2 | F165: 10 | G165: 15.2 | H165: 16.1 | I165: 5.636863
A166: Japan | B166: 26849.091 | C166: 15 | D166: . | E166: 10.2 | F166: 14 | G166: 13.7 | H166: 10.26 | I166: 20.02029
A167: Finland | B167: 27220.273 | C167: 11 | D167: . | E167: 12 | F167: 9 | G167: 13.3 | H167: 17.14 | I167: 21.61923
A168: Sweden | B168: 27586.909 | C168: 20 | D168: . | E168: 9.6 | F168: 9 | G168: . | H168: 18.02 | I168: 32.69263
A169: Hong Kong, China | B169: 27852 | C169: 13 | D169: . | E169: 11.5 | F169: 10 | G169: 13 | H169: 16.58 | I169: 77.41052
A170: France | B170: 27903.636 | C170: 14 | D170: . | E170: 9.9 | F170: 11 | G170: . | H170: 14.34 | I170: 19.25784
A171: United Kingdom | B171: 28055.091 | C171: 17 | D171: . | E171: 12.7 | F171: 13 | G171: 13.6 | H171: 11.88 | I171: 31.95268
A172: Canada | B172: 28321.545 | C172: 18 | D172: . | E172: 15.4 | F172: 8 | G172: . | H172: 15.18 | I172: 43.57422
A173: Belgium | B173: 28480.909 | C173: 23 | D173: . | E173: 13.5 | F173: 14 | G173: 22 | H173: 21.04 | I173: 31.22687
A174: Australia | B174: 28965.182 | C174: 14 | D174: . | E174: 12.7 | F174: 9 | G174: 15.3 | H174: 13.56 | I174: 43.87865
A175: Austria | B175: 29205.727 | C175: 15 | D175: . | E175: 11.8 | F175: 8 | G175: 15 | H175: 10.14 | I175: 20.21795
A176: Denmark | B176: 29770.273 | C176: 16 | D176: . | E176: 7.8 | F176: 7 | G176: 17.8 | H176: 17.2 | I176: 39.04678
A177: Taiwan | B177: 30100 | C177: 21 | D177: . | E177: 21 | F177: . | G177: . | H177: 26.6 | I177: .
A178: Iceland | B178: 30288.091 | C178: 11 | D178: . | E178: 13.9 | F178: . | G178: . | H178: . | I178: 73.61381
A179: Netherlands | B179: 30372.909 | C179: 14 | D179: . | E179: 11.3 | F179: 9 | G179: 13.5 | H179: 12.36 | I179: 60.20026
A180: Ireland | B180: 30675.091 | C180: 15 | D180: 3.931035 | E180: 16.6 | F180: 18 | G180: 20.7 | H180: 15.16 | I180: 38.42447
A181: Switzerland | B181: 32033 | C181: 11 | D181: . | E181: 14 | F181: . | G181: 10.2 | H181: 8.98 | I181: 18.12474
A182: San Marino | B182: 34100 | C182: . | D182: . | E182: 11.1 | F182: . | G182: . | H182: . | I182: .
A183: Isle of Man | B183: 35000 | C183: . | D183: . | E183: 14.6 | F183: . | G183: . | H183: . | I183: .
A184: Norway | B184: 35727.818 | C184: 13 | D184: . | E184: 7.1 | F184: 9 | G184: . | H184: 18.18 | I184: 62.61652
A185: United States | B185: 35729.455 | C185: 18 | D185: . | E185: 7.4 | F185: 7 | G185: 10.5 | H185: 8.38 | I185: 17.18249
A186: Luxembourg | B186: 52335.091 | C186: 13 | D186: . | E186: 6.8 | F186: . | G186: . | H186: . | I186: 43.5299
A187: Qatar | B187: 80900 | C187: 14 | D187: . | E187: 1.1 | F187: 2 | G187: . | H187: . | I187: .

Sheet Data Table 3
C1: Dependent Variable:
A2: Country | B2: Region | C2: Ln(Establishments/Population) | D2: Ln(Employees/Establishments) | E2: Ln(Employees/Population) | F2: Ln(Employees Big Firms/Employees) | G2: Years of education
A3: United Arab Emirates | B3: ARE | C3: Abu Dhabi | D3: -3.956483 | E3: 2.325623 | F3: -1.63086 | G3: 7.064107
A4: United Arab Emirates | B4: ARE | C4: Ajman | D4: -3.524618 | E4: 1.662511 | F4: -1.862108 | G4: 7.383814
A5: United Arab Emirates | B5: ARE | C5: Dubai | D5: -3.777879 | E5: 2.296737 | F5: -1.481141 | G5: 8.497086
A6: United Arab Emirates | B6: ARE | C6: Fujairah | D6: -3.653635 | E6: 1.425285 | F6: -2.22835 | G6: 6.678568
A7: United Arab Emirates | B7: ARE | C7: Ras al-Khaimah | D7: -3.473081 | E7: 1.376243 | F7: -2.096838 | G7: 6.680638
A8: United Arab Emirates | B8: ARE | C8: Sharjah | D8: -3.73244 | E8: 1.907792 | F8: -1.824648 | G8: 8.278768
A9: United Arab Emirates | B9: ARE | C9: Umm al-Quwain | D9: -3.592255 | E9: 1.57624 | F9: -2.016015 | G9: 7.073707
A10: Argentina | B10: ARG | C10: Buenos Aires | E10: 1.63651 | G10: 7.237439
A11: Argentina | B11: ARG | C11: Catamarca | E11: 1.402656 | G11: 7.085389
A12: Argentina | B12: ARG | C12: Chaco | E12: 1.09422 | G12: 5.545273
A13: Argentina | B13: ARG | C13: Chubut | E13: 1.813679 | G13: 6.947211
A14: Argentina | B14: ARG | C14: Cordoba | E14: 1.478967 | G14: 7.479067
A15: Argentina | B15: ARG | C15: Corrientes | E15: 1.265121 | G15: 6.149345
A16: Argentina | B16: ARG | C16: Distrito Federal | E16: 2.063258 | G16: 9.972567
A17: Argentina | B17: ARG | C17: Entre Rios | E17: 1.286136 | G17: 6.705156
A18: Argentina | B18: ARG | C18: Formosa | E18: 1.032878 | G18: 5.950664
A19: Argentina | B19: ARG | C19: Jujuy | E19: 1.164383 | G19: 6.58991
A20: Argentina | B20: ARG | C20: La Pampa | E20: 1.137975 | G20: 6.698038
A21: Argentina | B21: ARG | C21: La Rioja | E21: 1.509142 | G21: 7.373221
A22: Argentina | B22: ARG | C22: Mendoza | E22: 1.49657 | G22: 6.897834
A23: Argentina | B23: ARG | C23: Misiones | E23: 1.530847 | G23: 5.47653
A24: Argentina | B24: ARG | C24: Neuquen | E24: 1.673746 | G24: 6.976578
A25: Argentina | B25: ARG | C25: Rio Negro | E25: 1.492664 | G25: 6.546858
A26: Argentina | B26: ARG | C26: Salta | E26: 1.26519 | G26: 6.670498
A27: Argentina | B27: ARG | C27: San Juan | E27: 1.391841 | G27: 7.038724
A28: Argentina | B28: ARG | C28: San Luis | E28: 1.795866 | G28: 6.977531
A29: Argentina | B29: ARG | C29: Santa Cruz | E29: 1.799414 | G29: 7.430863
A30: Argentina | B30: ARG | C30: Santa Fe | E30: 1.451797 | G30: 7.347339
A31: Argentina | B31: ARG | C31: Santiago del Estero | E31: 1.173465 | G31: 5.765628
A32: Argentina | B32: ARG | C32: Tierra del Fuego | E32: 2.088593 | G32: 8.238072
A33: Argentina | B33: ARG | C33: Tucuman | E33: 1.46322 | G33: 6.932065
A34: Austria | B34: AUT | C34: Burgenland | D34: -5.48877 | E34: 1.759906 | F34: -2.92024 | G34: 10.307
A35: Austria | B35: AUT | C35: Karnten | D35: -5.398478 | E35: 1.877141 | F35: -2.657701 | G35: 11.07226
A36: Austria | B36: AUT | C36: Niederoesterreich | D36: -5.505623 | E36: 1.954998 | F36: -2.646708 | G36: 10.63771
A37: Austria | B37: AUT | C37: Oberoesterreich | D37: -5.328724 | E37: 2.182757 | F37: -2.183007 | G37: 10.30928
A38: Austria | B38: AUT | C38: Salzburg | D38: -5.297828 | E38: 1.900913 | F38: -2.616333 | G38: 10.79654
A39: Austria | B39: AUT | C39: Steiermark | D39: -5.515288 | E39: 2.005156 | F39: -2.407649 | G39: 10.22312
A40: Austria | B40: AUT | C40: Tirol | D40: -5.339823 | E40: 1.874786 | F40: -2.559821 | G40: 10.53065
A41: Austria | B41: AUT | C41: Vorarlberg | D41: -5.083334 | E41: 2.009472 | F41: -2.174143 | G41: 10.4591
A42: Austria | B42: AUT | C42: Wien | D42: -5.843087 | E42: 1.894875 | F42: -3.137734 | G42: 10.82439
A43: Belgium | B43: BEL | C43: Antwerp | D43: -5.544772 | E43: 1.819316 | F43: -2.570009 | G43: 10.37323
A44: Belgium | B44: BEL | C44: Bruxelles-Cap./Brussels Hoofdstedlijk | D44: -5.690588 | E44: 2.177583 | F44: -3.205632 | G44: 10.00495
A45: Belgium | B45: BEL | C45: Flemish Brabant | D45: -5.808794 | E45: 1.840505 | F45: -3.171819 | G45: 10.2262
A46: Belgium | B46: BEL | C46: Limburg | D46: -5.50364 | E46: 1.706078 | F46: -2.600371 | G46: 10.49883
A47: Belgium | B47: BEL | C47: Prov. Brabant Wallon | D47: -5.534621 | E47: 1.500316 | F47: -2.956704 | G47: 11.46989
A48: Belgium | B48: BEL | C48: Prov. Hainaut | D48: -5.938413 | E48: 1.61357 | F48: -3.116771 | G48: 8.875414
A49: Belgium | B49: BEL | C49: Prov. Liège | D49: -5.602414 | E49: 1.651155 | F49: -3.037023 | G49: 8.921946
A50: Belgium | B50: BEL | C50: Prov. Luxembourg (B) | D50: -5.780435 | E50: 1.549189 | F50: -3.339679 | G50: 9.578444
A51: Belgium | B51: BEL | C51: Prov. Namur | D51: -5.728163 | E51: 1.379751 | F51: -3.624521 | G51: 9.369691
A52: Belgium | B52: BEL | C52: Prov. Oost-Vlaanderen | D52: -5.416448 | E52: 1.573931 | F52: -2.706906 | G52: 10.83845
A53: Belgium | B53: BEL | C53: West Flanders | D53: -5.152016 | E53: 1.604263 | F53: -2.454965 | G53: 9.642348
A54: Benin | B54: BEN | C54: Alibori | D54: -11.99164 | E54: 6.959841 | F54: -5.031795 | G54: 0.4019894
A55: Benin | B55: BEN | C55: Atacora | D55: -11.80898 | E55: 6.830406 | F55: -4.978577 | G55: 0.858837
A56: Benin | B56: BEN | C56: Atlantique | D56: -9.778522 | E56: 5.898793 | F56: -3.879728 | G56: 1.966903
A57: Benin | B57: BEN | C57: Borgou | D57: -11.45043 | E57: 6.959841 | F57: -4.49059 | G57: 1.264423
A58: Benin | B58: BEN | C58: Collines | D58: -11.65501 | E58: 6.762802 | F58: -4.892206 | G58: 1.384464
A59: Benin | B59: BEN | C59: Couffo | D59: -11.42706 | E59: 6.381007 | F59: -5.046056 | G59: 1.191977
A60: Benin | B60: BEN | C60: Donga | D60: -11.92305 | E60: 6.830406 | F60: -5.092646 | G60: 1.082477
A61: Benin | B61: BEN | C61: Littoral | D61: -8.623614 | E61: 5.898793 | F61: -2.724821 | G61: 4.595517
A62: Benin | B62: BEN | C62: Mono | D62: -10.72228 | E62: 6.381007 | F62: -4.341274 | G62: 1.671569
A63: Benin | B63: BEN | C63: Ouémé | D63: -10.61849 | E63: 6.767873 | F63: -3.850617 | G63: 2.384097
A64: Benin | B64: BEN | C64: Plateau | D64: -11.56331 | E64: 6.767873 | F64: -4.795433 | G64: 0.8285666
A65: Benin | B65: BEN | C65: Zou | D65: -11.0978 | E65: 6.762802 | F65: -4.334995 | G65: 1.413034
A66: Burkina Faso | B66: BFA | C66: Boucle du Mouhoun | D66: -10.27489 | G66: 0.5771638
A67: Burkina Faso | B67: BFA | C67: Cascades | D67: -9.051754 | G67: 0.8103934
A68: Burkina Faso | B68: BFA | C68: Centre | D68: -6.952944 | G68: 3.204044
A69: Burkina Faso | B69: BFA | C69: Centre-Est | D69: -10.89215 | G69: 0.6403708
A70: Burkina Faso | B70: BFA | C70: Centre-Nord | D70: -9.904805 | G70: 0.4114464
A71: Burkina Faso | B71: BFA | C71: Centre-Ouest | D71: -9.160527 | G71: 0.8354813
A72: Burkina Faso | B72: BFA | C72: Centre-Sud | D72: -9.352441 | G72: 0.4214713
A73: Burkina Faso | B73: BFA | C73: Est | D73: -10.28455 | G73: 0.3008074
A74: Burkina Faso | B74: BFA | C74: Hauts-Bassins | D74: -7.736938 | G74: 1.435877
A75: Burkina Faso | B75: BFA | C75: Nord | D75: -9.846615 | G75: 0.5657885
A76: Burkina Faso | B76: BFA | C76: Sahel | D76: -10.83316 | G76: 0.2185631
A77: Burkina Faso | B77: BFA | C77: Sud-Ouest | D77: -10.39501 | G77: 0.4888348
A78: Bulgaria | B78: BGR | D78: Severen tsentralen | E78: -5.463217 | F78: 2.037634 | H78: 10.32632
A79: Bulgaria | B79: BGR | D79: Severoiztochen | F79: -5.569836 | G79: -2.6677 | I79: 9.764755
A80: Bulgaria | B80: BGR | D80: Yugoiztochen | F80: -5.613596 | G80: -2.494535 | I80: 10.06457
A81: Bulgaria | B81: BGR | D81: Yugozapaden | F81: -5.496349 | G81: -2.44735 | I81: 11.62903
A82: Bulgaria | B82: BGR | D82: Yuzhen tsentralen | E82: -5.40065 | F82: 2.020492 | H82: 9.862728
A83: Bulgaria | B83: BGR | C83: Severozapaden | D83: -5.717913 | E83: 1.957166 | F83: -2.590211 | G83: 10.14543
A84: Bosnia and Herzegovina | B84: BIH | C84: Federation of Bosnia and Herzegovina | E84: 2.118908 | F84: -1.714229 | G84: 5.877507
A85: Brazil | B85: BRA | C85: Acre | D85: -4.396987 | E85: 2.504487 | F85: -1.882696 | G85: 3.575531
A86: Brazil | B86: BRA | C86: Alagoas | D86: -4.553867 | E86: 2.582762 | F86: -1.957579 | G86: 3.1399
A87: Brazil | B87: BRA | C87: Amapá | D87: -4.480932 | E87: 2.673405 | F87: -1.795614 | G87: 4.800758
A88: Brazil | B88: BRA | C88: Amazonas | D88: -4.700715 | E88: 2.882081 | F88: -1.816857 | G88: 4.296822
A89: Brazil | B89: BRA | C89: Bahia | D89: -4.138646 | E89: 2.15211 | F89: -1.9662 | G89: 3.555083
A90: Brazil | B90: BRA | C90: Ceará | D90: -4.114276 | E90: 2.182006 | F90: -1.914379 | G90: 3.541567
A91: Brazil | B91: BRA | C91: Distrito Federal | D91: -3.446834 | E91: 2.589123 | F91: -0.8554563 | G91: 6.682034
A92: Brazil | B92: BRA | C92: Espírito Santo | D92: -3.608088 | E92: 2.192854 | F92: -1.405688 | G92: 4.906042
A93: Brazil | B93: BRA | C93: Goiás | D93: -3.726574 | E93: 2.138337 | F93: -1.574938 | G93: 4.608578
A94: Brazil | B94: BRA | C94: Maranhão | D94: -4.671703 | E94: 2.215338 | F94: -2.432396 | G94: 3.159032
A95: Brazil | B95: BRA | C95: Mato Grosso | D95: -3.710138 | E95: 2.098574 | F95: -1.578065 | G95: 4.536748
A96: Brazil | B96: BRA | C96: Mato Grosso do Sul | D96: -3.766348 | E96: 2.169937 | F96: -1.559542 | G96: 4.694872
A97: Brazil | B97: BRA | C97: Minas Gerais | D97: -3.622639 | E97: 2.13374 | F97: -1.472277 | G97: 4.672803
A98: Brazil | B98: BRA | C98: Paraná | D98: -3.36858 | E98: 2.027334 | F98: -1.326958 | G98: 5.044243
A99: Brazil | B99: BRA | C99: Paraíba | D99: -4.239798 | E99: 2.274649 | F99: -1.956462 | G99: 3.431431
A100: Brazil | B100: BRA | C100: Pará | D100: -4.749807 | E100: 2.594118 | F100: -2.137931 | G100: 3.787962
A101: Brazil | B101: BRA | C101: Pernambuco | D101: -4.282781 | E101: 2.414518 | F101: -1.851821 | G101: 4.022265
A102: Brazil | B102: BRA | C102: Piauí | D102: -4.340361 | E102: 2.111336 | F102: -2.219975 | G102: 3.036084
A103: Brazil | B103: BRA | C103: Rio Grande do Norte | D103: -4.139641 | E103: 2.390093 | F103: -1.716811 | G103: 3.994886
A104: Brazil | B104: BRA | C104: Rio Grande do Sul | D104: -3.185682 | E104: 1.859325 | F104: -1.316912 | G104: 5.327716
A105: Brazil | B105: BRA | C105: Rio de Janeiro | D105: -3.758241 | E105: 2.419583 | F105: -1.336854 | G105: 5.888094
A106: Brazil | B106: BRA | C106: Rondônia | D106: -3.991492 | E106: 2.286227 | F106: -1.701153 | G106: 3.973731
A107: Brazil | B107: BRA | C107: Roraima | D107: -4.201497 | E107: 2.480128 | F107: -1.712062 | G107: 4.517654
A108: Brazil | B108: BRA | C108: Santa Catarina | D108: -3.149434 | E108: 2.031804 | F108: -1.105948 | G108: 5.14876
A109: Brazil | B109: BRA | C109: Sergipe | D109: -4.304252 | E109: 2.535749 | F109: -1.760305 | G109: 3.616795
A110: Brazil | B110: BRA | C110: São Paulo | D110: -3.343261 | E110: 2.180647 | F110: -1.150552 | G110: 5.747684
A111: Brazil | B111: BRA | C111: Tocantins | D111: -4.087596 | E111: 2.281044 | F111: -1.792474 | G111: 3.789696
A112: Canada | B112: CAN | C112: Alberta | D112: -3.536018 | E112: 2.864011 | F112: -0.6720069 | G112: 10.76943
A113: Canada | B113: CAN | C113: British Columbia | D113: -3.599147 | E113: 2.775958 | F113: -0.8231884 | G113: 10.96271
A114: Canada | B114: CAN | C114: Manitoba | D114: -3.9498 | E114: 3.185576 | F114: -0.764223 | G114: 10.23082
A115: Canada | B115: CAN | C115: New Brunswick | D115: -3.849285 | E115: 2.9484 | F115: -0.9008853 | G115: 10.2143
A116: Canada | B116: CAN | C116: Newfoundland-Labrador | D116: -3.899561 | E116: 2.877665 | F116: -1.021896 | G116: 9.839577
A117: Canada | B117: CAN | C117: Northwest Territories | D117: -4.303749 | E117: 3.312035 | F117: -0.9917141 | G117: 10.43104
A118: Canada | B118: CAN | C118: Nova Scotia | D118: -3.942011 | E118: 3.05738 | F118: -0.8846316 | G118: 10.43853
A119: Canada | B119: CAN | C119: Ontario | D119: -3.872416 | E119: 3.060062 | F119: -0.8123547 | G119: 10.92234
A120: Canada | B120: CAN | C120: Prince Edward Island | D120: -3.824906 | E120: 3.008755 | F120: -0.8161505 | G120: 10.21294
A121: Canada | B121: CAN | C121: Quebec | D121: -3.830543 | E121: 2.975317 | F121: -0.8552262 | G121: 10.6563
A122: Canada | B122: CAN | C122: Saskatchewan | D122: -3.819307 | E122: 2.984766 | F122: -0.8345405 | G122: 10.07968
A123: Canada | B123: CAN | C123: Yukon | D123: -3.370733 | E123: 2.88096 | F123: -0.4897727 | G123: 11.15467
A124: Switzerland | B124: CHE | C124: Appenzell Rh.-Ext. | D124: -2.937864 | E124: 1.965354 | F124: -0.9725105 | G124: 12.0111
A125: Switzerland | B125: CHE | C125: Appenzell Rh.-Int. | D125: -2.940715 | E125: 1.930375 | F125: -1.01034 | G125: 12.0111
A126: Switzerland | B126: CHE | C126: Argovie | D126: -3.090649 | E126: 2.26303 | F126: -0.8276189 | G126: 12.3598
A127: Switzerland | B127: CHE | C127: Berne | D127: -3.066892 | E127: 2.373452 | F127: -0.6934395 | G127: 12.3045
A128: Switzerland | B128: CHE | C128: Bâle-Campagne | D128: -3.132411 | E128: 2.301831 | F128: -0.8305803 | G128: 12.6
A129: Switzerland | B129: CHE | C129: Bâle-Ville | D129: -2.865923 | E129: 2.676483 | F129: -0.1894399 | G129: 12.7565
A130: Switzerland | B130: CHE | C130: Fribourg | D130: -3.153259 | E130: 2.224351 | F130: -0.9289079 | G130: 12.1587
A131: Switzerland | B131: CHE | C131: Genève | D131: -2.964483 | E131: 2.412477 | F131: -0.5520062 | G131: 12.845
A132: Switzerland | B132: CHE | C132: Glaris | D132: -2.962001 | E132: 2.136385 | F132: -0.825616 | G132: 12.1008
A133: Switzerland | B133: CHE | C133: Grisons | D133: -2.77916 | E133: 2.060263 | F133: -0.7188964 | G133: 12.1459
A134: Switzerland | B134: CHE | C134: Jura | D134: -3.00003 | E134: 2.182413 | F134: -0.8176174 | G134: 12.0458
A135: Switzerland | B135: CHE | C135: Lucerne | D135: -3.116122 | E135: 2.369023 | F135: -0.7470984 | G135: 12.3936
A136: Switzerland | B136: CHE | C136: Neuchâtel | D136: -3.029454 | E136: 2.290416 | F136: -0.739037 | G136: 12.4502
A137: Switzerland | B137: CHE | C137: Obwald | D137: -3.044806 | E137: 2.185251 | F137: -0.8595548 | G137: 12.607
A138: Switzerland | B138: CHE | C138: Saint-Gall | D138: -2.999368 | E138: 2.288693 | F138: -0.7106748 | G138: 12.2288
A139: Switzerland | B139: CHE | C139: Schaffhouse | D139: -2.990801 | E139: 2.254458 | F139: -0.7363427 | G139: 12.2829
A140: Switzerland | B140: CHE | C140: Schwytz | D140: -3.144016 | E140: 1.974674 | F140: -1.169342 | G140: 12.0535
A141: Switzerland | B141: CHE | C141: Soleure | D141: -3.11879 | E141: 2.306166 | F141: -0.812624 | G141: 12.317
A142: Switzerland | B142: CHE | C142: Tessin | D142: -2.815435 | E142: 2.143519 | F142: -0.6719167 | G142: 12.1402
A143: Switzerland | B143: CHE | C143: Thurgovie | D143: -3.015097 | E143: 2.129902 | F143: -0.8851953 | G143: 12.1185
A144: Switzerland | B144: CHE | C144: Uri | D144: -3.212125 | E144: 2.288093 | F144: -0.924032 | G144: 12.2033
A145: Switzerland | B145: CHE | C145: Valais | D145: -2.970051 | E145: 2.099997 | F145: -0.8700536 | G145: 12.0338
A146: Switzerland | B146: CHE | C146: Vaud | D146: -3.061634 | E146: 2.263072 | F146: -0.7985626 | G146: 12.4569
A147: Switzerland | B147: CHE | C147: Zoug | D147: -2.463801 | E147: 2.052027 | F147: -0.4117746 | G147: 12.6557
A148: Switzerland | B148: CHE | C148: Zurich | D148: -2.935844 | E148: 2.380006 | F148: -0.5558383 | G148: 12.6933
A149: China | B149: CHN | C149: Anhui | D149: -6.60597 | E149: 3.382438 | F149: -11.46873 | G149: 5.10608
A150: China | B150: CHN | C150: Beijing | D150: -4.332849 | E150: 3.320111 | F150: -9.983216 | G150: 8.760457
A151: China | B151: CHN | C151: Chongqing | D151: -6.444719 | E151: 3.461128 | F151: -11.23591 | G151: 5.537077
A152: China | B152: CHN | C152: Fujian | D152: -5.843317 | E152: 3.447765 | F152: -10.8777 | G152: 5.629326
A153: China | B153: CHN | C153: Gansu | D153: -6.683393 | E153: 3.192987 | F153: -11.34808 | G153: 5.174834
A154: China | B154: CHN | C154: Guangdong | D154: -5.685159 | E154: 3.755097 | F154: -10.64637 | G154: 6.21149
A155: China | B155: CHN | C155: Guangxi | D155: -6.803319 | E155: 3.110497 | F155: -11.58943 | G155: 5.594255
A156: China | B156: CHN | C156: Guizhou | D156: -7.195901 | E156: 3.175968 | F156: -11.77893 | G156: 4.802483
A157: China | B157: CHN | C157: Hainan | D157: -6.358133 | E157: 3.247909 | F157: -11.46439 | G157: 5.975362
A158: China | B158: CHN | C158: Hebei | D158: -6.456348 | E158: 3.622637 | F158: -11.16923 | G158: 5.850325
A159: China | B159: CHN | C159: Heilongjiang | D159: -6.486526 | E159: 3.521268 | F159: -11.19977 | G159: 6.206076
A160: China | B160: CHN | C160: Henan | D160: -6.523269 | E160: 3.496901 | F160: -11.25964 | G160: 5.663841
A161: China | B161: CHN | C161: Hubei | D161: -6.739819 | E161: 3.461076 | F161: -11.35481 | G161: 5.771286
A162: China | B162: CHN | C162: Hunan | D162: -6.743302 | E162: 3.359645 | F162: -11.37201 | G162: 5.88145
A163: China | B163: CHN | C163: Inner Mongolia | D163: -6.659215 | E163: 3.409714 | F163: -11.27603 | G163: 6.18241
A164: China | B164: CHN | C164: Jiangsu | D164: -5.405863 | E164: 3.637935 | F164: -10.60356 | G164: 6.052824
A165: China | B165: CHN | C165: Jiangxi | D165: -6.604839 | E165: 3.338682 | F165: -11.39352 | G165: 5.562873
A166: China | B166: CHN | C166: Jilin | D166: -6.422029 | E166: 3.546469 | F166: -11.18887 | G166: 6.269737
A167: China | B167: CHN | C167: Liaoning | D167: -5.665194 | E167: 3.449652 | F167: -10.83738 | G167: 6.417976
A168: China | B168: CHN | C168: Ningxia | D168: -6.107321 | E168: 3.235843 | F168: -11.13803 | G168: 5.586771
A169: China | B169: CHN | C169: Qinghai | D169: -6.496192 | E169: 3.159136 | F169: -11.13576 | G169: 5.231699
A170: China | B170: CHN | C170: Shaanxi | D170: -6.357884 | E170: 3.1991 | F170: -11.25103 | G170: 5.988196
A171: China | B171: CHN | C171: Shandong | D171: -6.007212 | E171: 3.580823 | F171: -10.84712 | G171: 5.588475
A172: China | B172: CHN | C172: Shanghai | D172: -4.036166 | E172: 3.131819 | F172: -9.869631 | G172: 8.004497
A173: China | B173: CHN | C173: Shanxi | D173: -6.254179 | E173: 3.44006 | F173: -10.84998 | G173: 6.080054
A174: China | B174: CHN | C174: Sichuan | D174: -6.63902 | E174: 3.306718 | F174: -11.46243 | G174: 5.069198
A175: China | B175: CHN | C175: Tianjin | D175: -4.888611 | E175: 3.467792 | F175: -10.33052 | G175: 7.424721
A176: China | B176: CHN | C176: Tibet | D176: -7.549405 | E176: 2.681834 | F176: -11.59734 | G176: 2.93916
A177: China | B177: CHN | C177: Xinjiang | D177: -6.564501 | E177: 3.087792 | F177: -11.32158 | G177: 6.203147
A178: China | B178: CHN | C178: Yunnan | D178: -6.934889 | E178: 3.216147 | F178: -11.69032 | G178: 4.816332
A179: China | B179: CHN | C179: Zhejiang | D179: -5.051177 | E179: 3.49315 | F179: -10.3365 | G179: 5.684729
A180: Cameroon | B180: CMR | C180: Adamaoua | D180: -11.99833 | E180: 1.686399 | F180: -10.31193 | G180: 2.255176
A181: Cameroon | B181: CMR | C181: Centre | D181: -10.48881 | E181: 4.720644 | F181: -5.768167 | G181: 5.044547
A182: Cameroon | B182: CMR | C182: Est | D182: -10.94208 | E182: 5.364417 | F182: -5.577659 | G182: 2.784581
A183: Cameroon | B183: CMR | C183: Extreme Nord | D183: -11.88898 | E183: 3.543028 | F183: -8.34595 | G183: 0.7141962
A184: Cameroon | B184: CMR | C184: Littoral | D184: -9.525895 | E184: 5.204538 | F184: -4.321357 | G184: 5.311103
A185: Cameroon | B185: CMR | C185: Nord | D185: -11.30521 | E185: 4.178902 | F185: -7.126309 | G185: 1.030124
A186: Cameroon | B186: CMR | C186: Nord Ouest | D186: -10.65458 | E186: 3.693969 | F186: -6.960607 | G186: 4.089903
A187: Cameroon | B187: CMR | C187: Ouest | D187: -10.44458 | E187: 4.459877 | F187: -5.9847 | G187: 3.624062
A188: Cameroon | B188: CMR | C188: Sud | D188: -10.08075 | E188: 5.217324 | F188: -4.863425 | G188: 4.435456
A189: Cameroon | B189: CMR | C189: Sud Ouest | D189: -10.71877 | E189: 6.19091 | F189: -4.527863 | G189: 5.167046
B190: COL | C190: AMAZONAS | E190: 1.194355 | F190: -2.479935 | G190: 5.53515
B191: COL | C191: ANTIOQUIA | E191: 1.447741 | F191: -1.81317 | G191: 6.424641
B192: COL | C192: ARAUCA | E192: 1.040035 | F192: -2.490516 | G192: 5.531947
B193: COL | C193: ATLANTICO | E193: 1.328917 | F193: -2.114732 | G193: 7.636659
B194: COL | C194: BOGOTA | E194: 1.480376 | F194: -1.453636 | G194: 8.416042
B195: COL | C195: BOLIVAR | E195: 1.079065 | F195: -2.565969 | G195: 6.276261
B196: COL | C196: BOYACA | E196: 0.9116169 | F196: -2.136237 | G196: 5.433682
B197: COL | C197: CALDAS | E197: 1.152434 | F197: -2.165996 | G197: 6.090873
B198: COL | C198: CAQUETA | E198: 0.8946587 | F198: -2.658848 | G198: 4.698555
B199: COL | C199: CASANARE | E199: 0.9351556 | F199: -2.146475 | G199: 5.351853
B200: COL | C200: CAUCA | E200: 0.7939323 | F200: -2.924257 | G200: 4.704144
... 895 more rows

Sheet Data Figures 1 -3
A1: Country | B1: Top Manager Informal has College | C1: Top Manager Formal has College | D1: Value Added Informal | E1: Value Added Formall | F1: Value Added Small Formall | G1: Fraction VA Informal / Formal
A2: Afghanistan | B2: . | C2: . | D2: 37417.46484 | E2: 70515.72656 | F2: 63195.59766 | G2: 0.5306258145
A3: Angola | B3: . | C3: 1 | D3: 9905.800781 | E3: 105458.2031 | F3: 179706.2812 | G3: 0.09393105977
A4: Argentina | B4: . | C4: . | D4: 1937.626709 | E4: 43823.10156 | F4: 30498.68555 | G4: 0.04421473241
A5: Bangladesh | B5: 0.04568528011 | C5: 0.711610496 | D5: 1584.251465 | E5: 8530.866211 | G5: 0.1857081597
A6: Botswana | B6: . | C6: 1 | D6: 4230.01416 | E6: 30050.69922 | F6: 16595.58984 | G6: 0.1407625869
A7: Brazil | B7: 0.127976194 | C7: 0.6514635682 | D7: 7901.868164 | E7: 27568.14453 | F7: 15746.82324 | G7: 0.2866303953
A8: Burkina Faso | B8: 0.03603603691 | C8: 1 | D8: 19031.73242 | E8: 121129.2578 | F8: 63199.73047 | G8: 0.1571192028
A9: Cambodia | B9: 0.01860465109 | C9: 0.3436293304 | D9: 2415.090576 | E9: 8620.374023 | F9: 7829.117188 | G9: 0.2801607644
A10: Cameroon | B10: 0.1043478251 | C10: 1 | D10: 12776.5957 | E10: 38173.40625 | F10: 11033.75293 | G10: 0.3346988639
A11: Cape Verde 06 | B11: 0.08910891414 | C11: 0.3260869682 | D11: 6247.179688 | E11: 9191.946289 | F11: 6932.471191 | G11: 0.6796362262
A12: Cape Verde 09 | B12: 0.03896103799 | C12: 1 | D12: 36097.64453 | E12: 51546.19531 | F12: 35246.33594 | G12: 0.7002969727
A13: Congo, Dem. Rep. | B13: . | C13: 1 | D13: 3753.492676 | E13: 344411.75 | F13: 230065 | G13: 0.01089827126
A14: Egypt, Arab Rep. | B14: 0.003368983977 | C14: . | D14: 2947.053467 | E14: 25514.69336 | F14: 17325.1582 | G14: 0.1155041695
A15: Guatemala 03 | B15: 0.07751937956 | C15: 0.7400530577 | D15: 1924.601074 | E15: 13085.24707 | F15: 10911.9873 | G15: 0.1470817527
A16: Guatemala 10 | B16: . | C16: . | D16: 2675.935059 | E16: 39346.76953 | F16: 25115.88477 | G16: 0.06800901549
A17: India | B17: 0 | C17: 0.8928571343 | D17: 3118.395508 | E17: 17569.01172 | F17: 14628.32617 | G17: 0.1774940764
A18: Indonesia | B18: 0 | C18: 0.6384976506 | D18: 2768.633301 | E18: 17834.12695 | G18: 0.1552435568
A19: Kenya | B19: 0.05524861813 | C19: 0.7096773982 | D19: 3687.610107 | E19: 35844.55859 | F19: 26235.1543 | G19: 0.1028778217
A20: Mali | B20: . | C20: 1 | D20: 4095.553223 | E20: 21846.84961 | F20: 8885.353516 | G20: 0.1874665362
A21: Nepal | B21: 0.200000003 | C21: . | D21: 4769.088867 | E21: 18299.41992 | F21: 17937.65625 | G21: 0.26061421
A22: Niger | B22: 0.046875 | C22: 0.5116279125 | D22: 12624.35742 | E22: 322051.125 | F22: 523259.5938 | G22: 0.03919985506
A23: Pakistan | B23: 0.06132075563 | C23: 0.8679245114 | D23: 2381.677002 | E23: 33029.01953 | G23: 0.0721086195
A24: Peru | B24: . | D24: 5135.367676 | E24: 41633.05859 | F24: 28518.38867 | G24: 0.1233483162
A25: Rwanda | B25: . | C25: 1 | D25: 1290.1427 | E25: 46876 | G25: 0.02752245713
A26: Senegal | B26: 0.1597938091 | C26: 0.4846938848 | D26: 3604.744141 | E26: 26043.34961 | F26: 19013.38086 | G26: 0.13841323
A27: Tanzania | B27: 0.01302931551 | C27: 0.6436781883 | D27: 1521.705444 | E27: 20682.33789 | F27: 11124.4502 | G27: 0.07357511769
A28: Uganda | B28: 0.1923076957 | C28: 0.3419689238 | D28: 3547.262939 | E28: 23334.47266 | F28: 14862.29297 | G28: 0.1520181318

Sheet Data Figure 4
A1: CountryName | B1: CountryCode | C1: self employment | D1: gdp per capita (ny_gdp_pcap_pp_kd)
A2: Aruba | B2: ABW | C2: 8.8999996 | D2: 36016.5
A3: Angola | B3: AGO | C3: 79.199997 | D3: 7345.68
A4: Albania | B4: ALB | C4: 56.299999 | D4: 9243.37
A5: United Arab Emirates | B5: ARE | C5: 4.4000001 | D5: 57044.6
A6: Argentina | B6: ARG | C6: 23
A7: Armenia | B7: ARM | C7: 30.4 | D7: 7290.64
A8: American Samoa | B8: ASM | C8: 3.5
A9: Antigua and Barbuda | B9: ATG | C9: 11.7 | D9: 19714.2
A10: Australia | B10: AUS | C10: 11.2 | D10: 42278.3
A11: Austria | B11: AUT | C11: 13.3 | D11: 43138.9
A12: Azerbaijan | B12: AZE | C12: 57.599998 | D12: 15888.2
A13: Burundi | B13: BDI | C13: 94.699997 | D13: 736.843
A14: Belgium | B14: BEL | C14: 14.3 | D14: 39497.5
A15: Benin | B15: BEN | C15: 89.900002 | D15: 1686.55
A16: Burkina Faso | B16: BFA | C16: 90.400002 | D16: 1527.86
A17: Bangladesh | B17: BGD | C17: 85.300003 | D17: 2363.83
A18: Bulgaria | B18: BGR | C18: 11.6 | D18: 15738.3
A19: Bahrain | B19: BHR | C19: 3.8 | D19: 40658
A20: Bahamas, The | B20: BHS | C20: 14.2 | D20: 22705.2
A21: Bosnia and Herzegovina | B21: BIH | C21: 27.4 | D21: 9183.52
A22: Belarus | B22: BLR | C22: 3.0999999 | D22: 16868.5
A23: Belize | B23: BLZ | C23: 30.6 | D23: 8438.06
A24: Bolivia | B24: BOL | C24: 59.799999 | D24: 5650.43
A25: Brazil | B25: BRA | C25: 29.4 | D25: 14300.6
A26: Barbados | B26: BRB | C26: 15.2 | D26: 15298.7
A27: Brunei Darussalam | B27: BRN | C27: 5.0999999 | D27: 71080.2
A28: Bhutan | B28: BTN | C28: 72.5 | D28: 7490.48
A29: Botswana | B29: BWA | C29: 39.5 | D29: 14443.4
A30: Canada | B30: CAN | C30: 9 | D30: 40588
A31: Switzerland | B31: CHE | C31: 15.3 | D31: 51292.6
A32: Chile | B32: CHL | C32: 26.6 | D32: 21099.2
A33: Cote d'Ivoire | B33: CIV | C33: 76.300003 | D33: 2747
A34: Cameroon | B34: CMR | C34: 79.699997 | D34: 2550.93
A35: Congo, Rep. | B35: COG | C35: 76.199997 | D35: 5631.3
A36: Colombia | B36: COL | C36: 53.5 | D36: 11687.2
A37: Cape Verde | B37: CPV | C37: 42.099998
A38: Costa Rica | B38: CRI | C38: 23.9 | D38: 13091.1
A39: Cuba | B39: CUB | C39: 22.700001 | D39: 18796.2
A40: Cayman Islands | B40: CYM | C40: 8.6999998
A41: Cyprus | B41: CYP | C41: 16.6 | D41: 29697.8
A42: Czech Republic | B42: CZE | C42: 18.4 | D42: 26733.4
A43: Germany | B43: DEU | C43: 11.6 | D43: 41966.4
A44: Djibouti | B44: DJI | C44: 42.400002
A45: Dominica | B45: DMA | C45: 30.9 | D45: 9628.92
A46: Denmark | B46: DNK | C46: 9.1000004 | D46: 41524.3
A47: Dominican Republic | B47: DOM | C47: 40.299999 | D47: 11015.7
A48: Algeria | B48: DZA | C48: 33 | D48: 12778.5
A49: Ecuador | B49: ECU | C49: 54.900002 | D49: 9900.08
A50: Egypt, Arab Rep. | B50: EGY | C50: 37.799999 | D50: 10685
A51: Spain | B51: ESP | C51: 17.5 | D51: 31198.4
A52: Estonia | B52: EST | C52: 8.6000004 | D52: 24194.7
A53: Ethiopia | B53: ETH | C53: 91.800003 | D53: 1218.33
A54: Finland | B54: FIN | C54: 13.6 | D54: 38103.8
A55: Fiji | B55: FJI | C55: 41.900002 | D55: 7552.21
A56: France | B56: FRA | C56: 11.5 | D56: 36073.6
A57: Gabon | B57: GAB | C57: 54 | D57: 17996.7
A58: United Kingdom | B58: GBR | C58: 14.6 | D58: 34693.9
A59: Georgia | B59: GEO | C59: 61.099998 | D59: 6690.88
A60: Ghana | B60: GHA | C60: 81.699997 | D60: 3638.47
A61: Equatorial Guinea | B61: GNQ | C61: 77.800003 | D61: 37478.8
A62: Greece | B62: GRC | C62: 36.799999 | D62: 25391.4
A63: Grenada | B63: GRD | C63: 24 | D63: 11785.5
A64: Guatemala | B64: GTM | C64: 54.299999 | D64: 6989.52
A65: Guam | B65: GUM | C65: 1.9
A66: Guyana | B66: GUY | C66: 47.599998 | D66: 6053.66
A67: Hong Kong SAR, China | B67: HKG | C67: 10.2 | D67: 50291.2
A68: Honduras | B68: HND | C68: 55.700001 | D68: 4422.54
A69: Croatia | B69: HRV | C69: 21.200001 | D69: 19946.2
A70: Haiti | B70: HTI | C70: 79.5 | D70: 1574.51
A71: Hungary | B71: HUN | C71: 11.7 | D71: 22146.1
A72: Indonesia | B72: IDN | C72: 60.599998 | D72: 8856.2
A73: Isle of Man | B73: IMY | C73: 14.6
A74: India | B74: IND | C74: 81.900002 | D74: 5050.11
A75: Ireland | B75: IRL | C75: 16.4 | D75: 42918.6
A76: Iran, Islamic Rep. | B76: IRN | C76: 46.799999 | D76: 15461.3
A77: Iceland | B77: ISL | C77: 12.1 | D77: 38553.3
A78: Israel | B78: ISR | C78: 12.6 | D78: 30599.8
A79: Italy | B79: ITA | C79: 24.799999 | D79: 33668.2
A80: Jamaica | B80: JAM | C80: 40.599998 | D80: 8421.42
A81: Jordan | B81: JOR | C81: 15.9 | D81: 11340.2
A82: Japan | B82: JPN | C82: 11.9 | D82: 35006.2
A83: Kazakhstan | B83: KAZ | C83: 31.700001 | D83: 21505.7
A84: Kenya | B84: KEN | C84: 63.400002 | D84: 2108.93
A85: Kyrgyz Republic | B85: KGZ | C85: 49.200001 | D85: 2846.53
A86: Cambodia | B86: KHM | C86: 64.099998 | D86: 2789.08
A87: Korea, Rep. | B87: KOR | C87: 28.200001 | D87: 29494.9
A88: Kosovo | B88: KSV | C88: 25.5 | D88: 8291.22
A89: Kuwait | B89: KWT | C89: 3.2 | D89: 84187.7
A90: Lao PDR | B90: LAO | C90: 88.300003 | D90: 4388.17
A91: Lebanon | B91: LBN | C91: 38.700001 | D91: 16509
A92: Liberia | B92: LBR | C92: 81.699997 | D92: 782.387
A93: St. Lucia | B93: LCA | C93: 11.9 | D93: 10242.1
A94: Sri Lanka | B94: LKA | C94: 43.599998 | D94: 8862.16
A95: Lesotho | B95: LSO | C95: 69.5 | D95: 2367.97
A96: Lithuania | B96: LTU | C96: 11.1 | D96: 23553.9
A97: Luxembourg | B97: LUX | C97: 8.8999996 | D97: 86587.4
A98: Latvia | B98: LVA | C98: 11.4 | D98: 21229.2
A99: Macao SAR, China | B99: MAC | C99: 7.5 | D99: 126975
A100: Morocco | B100: MAR | C100: 53.299999 | D100: 6877.97
A101: Moldova | B101: MDA | C101: 29.200001 | D101: 4146.33
A102: Madagascar | B102: MDG | C102: 86.400002 | D102: 1377.81
A103: Maldives | B103: MDV | C103: 38.299999 | D103: 11269.8
A104: Mexico | B104: MEX | C104: 33.700001 | D104: 16143.8
A105: Marshall Islands | B105: MHL | C105: 27.700001 | D105: 3526.27
A106: Macedonia, FYR | B106: MKD | C106: 26.799999 | D106: 11708
A107: Mali | B107: MLI | C107: 82.900002 | D107: 1606.93
A108: Malta | B108: MLT | C108: 13.3 | D108: 28398.3
A109: Montenegro | B109: MNE | C109: 17.700001 | D109: 14039.8
A110: Mongolia | B110: MNG | C110: 56.099998 | D110: 8288.36
A111: Mozambique | B111: MOZ | C111: 91.199997 | D111: 971.213
A112: Mauritius | B112: MUS | C112: 20.6 | D112: 16193.8
A113: Malawi | B113: MWI | C113: 83.900002 | D113: 738.955
A114: Malaysia | B114: MYS | C114: 25.1 | D114: 21897.3
A115: Namibia | B115: NAM | C115: 36.799999 | D115: 9135.85
A116: New Caledonia | B116: NCL | C116: 16.200001
A117: Niger | B117: NER | C117: 85.400002 | D117: 883.982
A118: Nicaragua | B118: NIC | C118: 54 | D118: 4254.09
A119: Netherlands | B119: NLD | C119: 15.3 | D119: 42452.6
A120: Norway | B120: NOR | C120: 6.9000001 | D120: 62858
A121: Nepal | B121: NPL | C121: 75.400002 | D121: 2130.63
A122: New Zealand | B122: NZL | C122: 16.5 | D122: 32360.2
A123: Oman | B123: OMN | C123: 3.5 | D123: 46430.4
A124: Pakistan | B124: PAK | C124: 64 | D124: 4360.35
A125: Panama | B125: PAN | C125: 31.9 | D125: 16655.2
A126: Peru | B126: PER | C126: 51.799999 | D126: 11602.6
A127: Philippines | B127: PHL | C127: 43.400002 | D127: 6004.78
A128: Poland | B128: POL | C128: 22.4 | D128: 22142.6
A129: Puerto Rico | B129: PRI | C129: 15.6 | D129: 33933.4
A130: Portugal | B130: PRT | C130: 21.700001 | D130: 25096.3
A131: Paraguay | B131: PRY | C131: 48.700001 | D131: 7215.48
A132: French Polynesia | B132: PYF | C132: 15.9
A133: Qatar | B133: QAT | C133: 1.1 | D133: 133713
A134: Romania | B134: ROM | C134: 32.700001
A135: Russia | B135: RUS | C135: 7.3000002 | D135: 23184
A136: Rwanda | B136: RWA | C136: 92.599998 | D136: 1378.63
A137: Saudi Arabia | B137: SAU | C137: 8.1000004 | D137: 50790.7
A138: Senegal | B138: SEN | C138: 77.699997 | D138: 2173.52
A139: Singapore | B139: SGP | C139: 15.3 | D139: 71474.9
A140: Sierra Leone | B140: SLE | C140: 92.400002 | D140: 1585.96
A141: El Salvador | B141: SLV | C141: 41.799999 | D141: 7445.3
A142: San Marino | B142: SMR | C142: 9.1999998
A143: Serbia | B143: SRB | C143: 30.4 | D143: 11586.8
A144: Sao Tome and Principe | B144: STP | C144: 27.5 | D144: 2837.11
A145: Suriname | B145: SUR | C145: 17.5 | D145: 15174.5
A146: Slovak Republic | B146: SVK | C146: 15.4 | D146: 25537.2
A147: Slovenia | B147: SVN | C147: 16.200001 | D147: 27394.4
A148: Sweden | B148: SWE | C148: 10.4 | D148: 41839.7
A149: Swaziland | B149: SWZ | C149: 22.200001 | D149: 5912.33
A150: Seychelles | B150: SYC | C150: 11.1 | D150: 23151.8
A151: Syrian Arab Republic | B151: SYR | C151: 34.200001
A152: Turks and Caicos Islands | B152: TCA | C152: 5
A153: Chad | B153: TCD | C153: 93.900002 | D153: 2003.4
A154: Togo | B154: TGO | C154: 89.099998 | D154: 1285.84
A155: Thailand | B155: THA | C155: 56.299999 | D155: 13586.1
A156: Tajikistan | B156: TJK | C156: 47.799999 | D156: 2320.33
A157: Tonga | B157: TON | C157: 56.299999 | D157: 5127.11
A158: Trinidad and Tobago | B158: TTO | C158: 20.1 | D158: 29085.8
A159: Tunisia | B159: TUN | C159: 28.799999 | D159: 10611.9
A160: Turkey | B160: TUR | C160: 37.099998 | D160: 18167.5
A161: Tuvalu | B161: TUV | C161: 3.7 | D161: 3488.66
A162: Tanzania | B162: TZA | C162: 89.5 | D162: 1654.49
A163: Uganda | B163: UGA | C163: 76.400002 | D163: 1334.14
A164: Ukraine | B164: UKR | C164: 18.799999 | D164: 8332.32
A165: Uruguay | B165: URY | C165: 26.9 | D165: 17965.5
A166: United States | B166: USA | C166: 6.8000002 | D166: 50859.4
A167: St. Vincent and the Grenadines | B167: VCT | C167: 20.5 | D167: 10271.4
A168: Venezuela | B168: VEN | C168: 41.599998 | D168: 17642.4
A169: Vietnam | B169: VNM | C169: 65.300003 | D169: 4912.32
A170: Vanuatu | B170: VUT | C170: 71.400002 | D170: 2894.34
A171: West Bank and Gaza | B171: WBG | C171: 33.099998
A172: Samoa | B172: WSM | C172: 48.299999 | D172: 4934.98
A173: Yemen, Rep. | B173: YEM | C173: 34.099998 | D173: 3996.39
A174: South Africa | B174: ZAF | C174: 14.7 | D174: 11988.8
A175: Zambia | B175: ZMB | C175: 82 | D175: 2990.05
A176: Zimbabwe | B176: ZWE | C176: 62.299999 | D176: 1337.24

Sheet Data Figure 5
A1: CountryCode | B1: CountryName | C1: year | D1: self employment | E1: Δ self employment | F1: gdp per capita (ny_gdp_pcap_pp_kd) | G1: Growth gdp per capita | H1: Labor Force | I1: Growth Labor Force
A2: AUS | B2: Australia | C2: 1990 | D2: 15.1 | F2: 28335.3 | H2: 8500000
A3: AUS | B3: Australia | C3: 1991 | D3: 15.7 | E3: 0.5999994 | F3: 27878.3 | G3: -0.0162621 | H3: 8500000 | I3: 0.0053812
A4: AUS | B4: Australia | C4: 1992 | D4: 16.1 | E4: 0.4000006 | F4: 27660 | G4: -0.0078602 | H4: 8600000 | I4: 0.0088506
A5: AUS | B5: Australia | C5: 1993 | D5: 16.5 | E5: 0.3999996 | F5: 28516.7 | G5: 0.0305023 | H5: 8700000 | I5: 0.006106
A6: AUS | B6: Australia | C6: 1994 | D6: 15.9 | E6: -0.6000004 | F6: 29358.8 | G6: 0.0291014 | H6: 8800000 | I6: 0.0184519
A7: AUS | B7: Australia | C7: 1995 | D7: 15.4 | E7: -0.5 | F7: 30163.5 | G7: 0.0270414 | H7: 9000000 | I7: 0.0255971
A8: AUS | B8: Australia | C8: 1996 | D8: 15.1 | E8: -0.2999992 | F8: 30958.7 | G8: 0.026021 | H8: 9200000 | I8: 0.0123552
A9: AUS | B9: Australia | C9: 1997 | D9: 15.1 | E9: 0 | F9: 31808.4 | G9: 0.0270767 | H9: 9200000 | I9: 0.0089171
A10: AUS | B10: Australia | C10: 1998 | D10: 14.6 | E10: -0.5 | F10: 32902.8 | G10: 0.0338259 | H10: 9300000 | I10: 0.0118401
A11: AUS | B11: Australia | C11: 1999 | D11: 14.5 | E11: -0.1000004 | F11: 34140.6 | G11: 0.0369301 | H11: 9400000 | I11: 0.0114909
A12: AUS | B12: Australia | C12: 2000 | D12: 14.1 | E12: -0.3999996 | F12: 35033.4 | G12: 0.0258169 | H12: 9600000 | I12: 0.0229882
A13: AUS | B13: Australia | C13: 2001 | D13: 13.8 | E13: -0.3000002 | F13: 35220.8 | G13: 0.0053329 | H13: 9800000 | I13: 0.0198717
A14: AUS | B14: Australia | C14: 2002 | D14: 13.9 | E14: 0.0999994 | F14: 36155 | G14: 0.0261793 | H14: 9900000 | I14: 0.0169687
A15: AUS | B15: Australia | C15: 2003 | D15: 13.4 | E15: -0.5 | F15: 36836.8 | G15: 0.0186825 | H15: 10000000 | I15: 0.0193267
A16: AUS | B16: Australia | C16: 2004 | D16: 13.2 | E16: -0.1999998 | F16: 37922.4 | G16: 0.0290442 | H16: 10000000 | I16: 0.0150206
A17: AUS | B17: Australia | C17: 2005 | D17: 12.9 | E17: -0.3000002 | F17: 38617.9 | G17: 0.0181732 | H17: 11000000 | I17: 0.0383554
A18: AUS | B18: Australia | C18: 2006 | D18: 12.5 | E18: -0.3999996 | F18: 39210.2 | G18: 0.0152216 | H18: 11000000 | I18: 0.029546
A19: AUS | B19: Australia | C19: 2007 | D19: 12 | E19: -0.5 | F19: 40442.1 | G19: 0.0309334 | H19: 11000000 | I19: 0.021084
A20: AUS | B20: Australia | C20: 2008 | D20: 11.8 | E20: -0.1999998 | F20: 41133.7 | G20: 0.0169563 | H20: 11000000 | I20: 0.035187
A21: AUS | B21: Australia | C21: 2009 | D21: 11.6 | E21: -0.1999998 | F21: 40958.7 | G21: -0.0042629 | H21: 12000000 | I21: 0.0278894
A22: AUS | B22: Australia | C22: 2010 | D22: 11.6 | E22: 0 | F22: 41168.3 | G22: 0.0051031 | H22: 12000000 | I22: 0.0226427
A23: AUS | B23: Australia | C23: 2011 | D23: 11.2 | E23: -0.4000006 | F23: 41588.2 | G23: 0.010149 | H23: 12000000 | I23: 0.0196775
A24: AUS | B24: Australia | C24: 2012 | F24: 42278.3 | G24: 0.0164576 | H24: 12000000 | I24: 0.0169375
A25: AUS | B25: Australia | C25: 2013
A26: AUT | B26: Austria | C26: 1990 | D26: 14.2 | F26: 30196.7 | H26: 3500000
A27: AUT | B27: Austria | C27: 1991 | D27: 13.9 | E27: -0.3000002 | F27: 30925.7 | G27: 0.0238533 | H27: 3600000 | I27: 0.0147496
A28: AUT | B28: Austria | C28: 1992 | D28: 13.4 | E28: -0.5 | F28: 31227.5 | G28: 0.0097132 | H28: 3700000 | I28: 0.0261647
A29: AUT | B29: Austria | C29: 1993 | D29: 13.1 | E29: -0.2999992 | F29: 31134.2 | G29: -0.0029917 | H29: 3700000 | I29: 0.0104545
A30: AUT | B30: Austria | C30: 1994 | D30: 13.8 | E30: 0.6999998 | F30: 31759.7 | G30: 0.0198889 | H30: 3800000 | I30: 0.0341066
A31: AUT | B31: Austria | C31: 1995 | D31: 14.3 | E31: 0.5 | F31: 32557.1 | G31: 0.0247984 | H31: 3800000 | I31: 0.0068073
A32: AUT | B32: Austria | C32: 1996 | D32: 14.4 | E32: 0.0999994 | F32: 33315.2 | G32: 0.0230169 | H32: 3800000 | I32: -0.0106827
A33: AUT | B33: Austria | C33: 1997 | D33: 13.9 | E33: -0.5 | F33: 34045.8 | G33: 0.0216942 | H33: 3800000 | I33: 0.0031269
A34: AUT | B34: Austria | C34: 1998 | D34: 13.8 | E34: -0.0999994 | F34: 35295.9 | G34: 0.0360584 | H34: 3800000 | I34: 0.0001366
A35: AUT | B35: Austria | C35: 1999 | D35: 13.7 | E35: -0.1000004 | F35: 36474 | G35: 0.0328341 | H35: 3800000 | I35: 0.0069507
A36: AUT | B36: Austria | C36: 2000 | D36: 13.5 | E36: -0.1999998 | F36: 37720.9 | G36: 0.0336151 | H36: 3900000 | I36: 0.0017383
A37: AUT | B37: Austria | C37: 2001 | D37: 13.4 | E37: -0.1000004 | F37: 37899 | G37: 0.0047092 | H37: 3900000 | I37: 0.0087435
A38: AUT | B38: Austria | C38: 2002 | D38: 13.5 | E38: 0.1000004 | F38: 38351.7 | G38: 0.0118752 | H38: 4000000 | I38: 0.0213554
A39: AUT | B39: Austria | C39: 2003 | D39: 13 | E39: -0.5 | F39: 38495.8 | G39: 0.0037508 | H39: 4000000 | I39: 0.0138439
A40: AUT | B40: Austria | C40: 2004 | D40: 13 | E40: 0 | F40: 39248.4 | G40: 0.0193624 | H40: 4000000 | I40: -0.0056181
A41: AUT | B41: Austria | C41: 2005 | D41: 13.3 | E41: 0.3000002 | F41: 39917.8 | G41: 0.0169106 | H41: 4100000 | I41: 0.0226725
A42: AUT | B42: Austria | C42: 2006 | D42: 13.5 | E42: 0.1999998 | F42: 41178.4 | G42: 0.0310926 | H42: 4200000 | I42: 0.0231911
A43: AUT | B43: Austria | C43: 2007 | D43: 14.3 | E43: 0.8000002 | F43: 42539.1 | G43: 0.0325089 | H43: 4200000 | I43: 0.0264444
A44: AUT | B44: Austria | C44: 2008 | D44: 13.7 | E44: -0.6000004 | F44: 42963 | G44: 0.0099163 | H44: 4300000 | I44: 0.0112542
A45: AUT | B45: Austria | C45: 2009 | D45: 13.4 | E45: -0.3000002 | F45: 41181 | G45: -0.0423632 | H45: 4300000 | I45: 0.011771
A46: AUT | B46: Austria | C46: 2010 | D46: 13.8 | E46: 0.4000006 | F46: 41787.2 | G46: 0.0146132 | H46: 4300000 | I46: 0.0004138
A47: AUT | B47: Austria | C47: 2011 | D47: 13.7 | E47: -0.1000004 | F47: 42887.7 | G47: 0.0259943 | H47: 4400000 | I47: 0.0085633
A48: AUT | B48: Austria | C48: 2012 | D48: 13.3 | E48: -0.3999996 | F48: 43138.9 | G48: 0.0058393 | H48: 4400000 | I48: 0.0089579
A49: AUT | B49: Austria | C49: 2013
A50: BEL | B50: Belgium | C50: 1990 | D50: 18.9 | F50: 30332 | H50: 4000000
A51: BEL | B51: Belgium | C51: 1991 | D51: 17.299999 | E51: -1.6 | F51: 30773.4 | G51: 0.0144482 | H51: 4000000 | I51: 0.0227928
A52: BEL | B52: Belgium | C52: 1992 | D52: 17.9 | E52: 0.6000004 | F52: 31117.9 | G52: 0.0111341 | H52: 4100000 | I52: 0.0084072
A53: BEL | B53: Belgium | C53: 1993 | D53: 17.9 | E53: 0 | F53: 30698.5 | G53: -0.0135717 | H53: 4100000 | I53: 0.0060709
A54: BEL | B54: Belgium | C54: 1994 | D54: 17.700001 | E54: -0.1999989 | F54: 31591.6 | G54: 0.0286779 | H54: 4200000 | I54: 0.0158336
A55: BEL | B55: Belgium | C55: 1995 | D55: 17.9 | E55: 0.1999989 | F55: 32277.3 | G55: 0.0214729 | H55: 4200000 | I55: 0.0067383
A56: BEL | B56: Belgium | C56: 1996 | D56: 18 | E56: 0.1000004 | F56: 32673.2 | G56: 0.0121899 | H56: 4200000 | I56: 0.0027525
A57: BEL | B57: Belgium | C57: 1997 | D57: 17.200001 | E57: -0.7999992 | F57: 33811.6 | G57: 0.0342512 | H57: 4200000 | I57: 0.003569
A58: BEL | B58: Belgium | C58: 1998 | D58: 17.4 | E58: 0.1999989 | F58: 34390.3 | G58: 0.0169706 | H58: 4300000 | I58: 0.0098768
A59: BEL | B59: Belgium | C59: 1999 | D59: 17.299999 | E59: -0.1000004 | F59: 35526.2 | G59: 0.0324955 | H59: 4400000 | I59: 0.0272385
A60: BEL | B60: Belgium | C60: 2000 | D60: 16 | E60: -1.299999 | F60: 36740.7 | G60: 0.0336142 | H60: 4400000 | I60: 0.0125961
A61: BEL | B61: Belgium | C61: 2001 | D61: 15.2 | E61: -0.8000002 | F61: 36910.3 | G61: 0.0046043 | H61: 4300000 | I61: -0.0248857
A62: BEL | B62: Belgium | C62: 2002 | D62: 15.4 | E62: 0.1999998 | F62: 37244.8 | G62: 0.0090218 | H62: 4400000 | I62: 0.021297
A63: BEL | B63: Belgium | C63: 2003 | D63: 15.2 | E63: -0.1999998 | F63: 37388.4 | G63: 0.00385 | H63: 4400000 | I63: 0.0081112
A64: BEL | B64: Belgium | C64: 2004 | D64: 14.7 | E64: -0.5 | F64: 38445.9 | G64: 0.0278902 | H64: 4500000 | I64: 0.0214133
A65: BEL | B65: Belgium | C65: 2005 | D65: 15.2 | E65: 0.5 | F65: 38904.5 | G65: 0.0118589 | H65: 4600000 | I65: 0.027357
A66: BEL | B66: Belgium | C66: 2006 | D66: 15.1 | E66: -0.0999994 | F66: 39679.4 | G66: 0.019721 | H66: 4600000 | I66: 0.0046246
A67: BEL | B67: Belgium | C67: 2007 | D67: 14.8 | E67: -0.3000002 | F67: 40524.7 | G67: 0.021081 | H67: 4700000 | I67: 0.0233239
A68: BEL | B68: Belgium | C68: 2008 | D68: 14.2 | E68: -0.6000004 | F68: 40601.9 | G68: 0.0019035 | H68: 4800000 | I68: 0.0105731
A69: BEL | B69: Belgium | C69: 2009 | D69: 14.8 | E69: 0.6000004 | F69: 39148.6 | G69: -0.0364513 | H69: 4800000 | I69: 0.0035933
A70: BEL | B70: Belgium | C70: 2010 | D70: 14.4 | E70: -0.4000006 | F70: 39693.8 | G70: 0.0138292 | H70: 4900000 | I70: 0.0249729
A71: BEL | B71: Belgium | C71: 2011 | D71: 14.3 | E71: -0.0999994 | F71: 39839.6 | G71: 0.0036678 | H71: 4900000 | I71: -0.0041826
A72: BEL | B72: Belgium | C72: 2012 | D72: 14.3 | E72: 0 | F72: 39497.5 | G72: -0.0086231 | H72: 4900000 | I72: 0.0079378
A73: BEL | B73: Belgium | C73: 2013
A74: BHS | B74: Bahamas, The | C74: 1991 | D74: 12.3 | F74: 22679.5 | H74: 129172
A75: BHS | B75: Bahamas, The | C75: 1992 | D75: 13.1 | E75: 0.8000002 | F75: 21402.4 | G75: -0.0579567 | H75: 133508 | I75: 0.033568
A76: BHS | B76: Bahamas, The | C76: 1993 | D76: 13 | E76: -0.1000004 | F76: 21071.7 | G76: -0.0155716 | H76: 137841 | I76: 0.0335511
A77: BHS | B77: Bahamas, The | C77: 1994 | D77: 14.3 | E77: 1.3 | F77: 21363.7 | G77: 0.0137606 | H77: 141932 | I77: 0.0316716
A78: BHS | B78: Bahamas, The | C78: 1995 | D78: 14.3 | E78: 0 | F78: 21962.4 | G78: 0.0276365 | H78: 142857 | I78: 0.0071602
A79: BHS | B79: Bahamas, The | C79: 1996 | D79: 16.5 | E79: 2.2 | F79: 22597.2 | G79: 0.0284958 | H79: 142951 | I79: 0.0007226
A80: BHS | B80: Bahamas, The | C80: 1997 | D80: 14.9 | E80: -1.6 | F80: 22808.6 | G80: 0.0093107 | H80: 142057 | I80: -0.0069194
A81: BHS | B81: Bahamas, The | C81: 1998 | D81: 14.8 | E81: -0.0999994 | F81: 23630.5 | G81: 0.0354023 | H81: 140367 | I81: -0.0130823
A82: BHS | B82: Bahamas, The | C82: 1999 | D82: 15.9 | E82: 1.099999 | F82: 25015.4 | G82: 0.0569506 | H82: 144087 | I82: 0.0287952
A83: BHS | B83: Bahamas, The | C83: 2000 | F83: 25675.6 | G83: 0.0260506 | H83: 148465 | I83: 0.033898
A84: BHS | B84: Bahamas, The | C84: 2001 | D84: 13.9 | F84: 25893.5 | G84: 0.0084524 | H84: 153379 | I84: 0.0380381
A85: BHS | B85: Bahamas, The | C85: 2002 | D85: 15.4 | E85: 1.5 | F85: 26074.6 | G85: 0.0069695 | H85: 158951 | I85: 0.0431352
A86: BHS | B86: Bahamas, The | C86: 2003 | D86: 14.3 | E86: -1.099999 | F86: 25207.7 | G86: -0.0338125 | H86: 165011 | I86: 0.0469187
A87: BHS | B87: Bahamas, The | C87: 2004 | D87: 15 | E87: 0.6999998 | F87: 24895.8 | G87: -0.0124512 | H87: 171296 | I87: 0.0486547
A88: BHS | B88: Bahamas, The | C88: 2005 | F88: 25217.9 | G88: 0.0128565 | H88: 177842 | I88: 0.0506809
A89: BHS | B89: Bahamas, The | C89: 2006 | F89: 25349.3 | G89: 0.0051975 | H89: 183850 | I89: 0.0465099
A90: BHS | B90: Bahamas, The | C90: 2007 | F90: 25232.8 | G90: -0.0046072 | H90: 190063 | I90: 0.0480995
A91: BHS | B91: Bahamas, The | C91: 2008 | D91: 13.4 | F91: 24201.3 | G91: -0.0417385 | H91: 196207 | I91: 0.0475633
A92: BHS | B92: Bahamas, The | C92: 2009 | F92: 22788.4 | G92: -0.0601559 | H92: 201976 | I92: 0.0446637
A93: BHS | B93: Bahamas, The | C93: 2010 | F93: 22630.1 | G93: -0.0069695 | H93: 207048 | I93: 0.0392629
A94: BHS | B94: Bahamas, The | C94: 2011 | D94: 14.2 | F94: 22639.3 | G94: 0.0004063 | H94: 211650 | I94: 0.035624
A95: BHS | B95: Bahamas, The | C95: 2012 | F95: 22705.2 | G95: 0.0029068 | H95: 216028 | I95: 0.0338973
A96: BHS | B96: Bahamas, The | C96: 2013
A97: BOL | B97: Bolivia | C97: 1990 | D97: 43.099998 | F97: 3739.99 | H97: 2700000
A98: BOL | B98: Bolivia | C98: 1991 | D98: 43.5 | E98: 0.4000015 | F98: 3844.89 | G98: 0.0276613 | H98: 2700000 | I98: 0.0314449
A99: BOL | B99: Bolivia | C99: 1992 | D99: 44.599998 | E99: 1.099998 | F99: 3816.82 | G99: -0.007329 | H99: 2800000 | I99: 0.0317466
A100: BOL | B100: Bolivia | C100: 1993 | D100: 43.799999 | E100: -0.7999992 | F100: 3887.29 | G100: 0.0182972 | H100: 2900000 | I100: 0.0339144
A101: BOL | B101: Bolivia | C101: 1994 | D101: 45.799999 | E101: 2 | F101: 3975.49 | G101: 0.0224352 | H101: 3000000 | I101: 0.0332294
A102: BOL | B102: Bolivia | C102: 1995 | D102: 48.299999 | E102: 2.5 | F102: 4067.96 | G102: 0.0229921 | H102: 3100000 | I102: 0.0361077
A103: BOL | B103: Bolivia | C103: 1996 | D103: 50.599998 | E103: 2.299999 | F103: 4152.06 | G103: 0.0204649 | H103: 3200000 | I103: 0.0496913
A104: BOL | B104: Bolivia | C104: 1997 | D104: 52.900002 | E104: 2.300003 | F104: 4264.06 | G104: 0.0266161 | H104: 3400000 | I104: 0.0516089
A105: BOL | B105: Bolivia | C105: 1998 | F105: 4384.17 | G105: 0.0277777 | H105: 3400000 | I105: 0.0296626
A106: BOL | B106: Bolivia | C106: 1999 | D106: 69.199997 | F106: 4311.79 | G106: -0.0166473 | H106: 3500000 | I106: 0.0303249
A107: BOL | B107: Bolivia | C107: 2000 | D107: 68.400002 | E107: -0.7999954 | F107: 4329.98 | G107: 0.0042114 | H107: 3600000 | I107: 0.0309111
A108: BOL | B108: Bolivia | C108: 2001 | D108: 67.5 | E108: -0.9000015 | F108: 4314.62 | G108: -0.0035543 | H108: 3700000 | I108: 0.0354261
A109: BOL | B109: Bolivia | C109: 2002 | D109: 68.5 | E109: 1 | F109: 4334.72 | G109: 0.0046473 | H109: 3800000 | I109: 0.038239
A110: BOL | B110: Bolivia | C110: 2003 | D110: 64 | E110: -4.5 | F110: 4366.61 | G110: 0.0073299 | H110: 3900000 | I110: 0.0370964
A111: BOL | B111: Bolivia | C111: 2004 | D111: 64 | E111: 0 | F111: 4464.26 | G111: 0.0221176 | H111: 4000000 | I111: 0.0379833
A112: BOL | B112: Bolivia | C112: 2005 | D112: 65.199997 | E112: 1.199997 | F112: 4578.38 | G112: 0.0252409 | H112: 4100000 | I112: 0.0388986
A113: BOL | B113: Bolivia | C113: 2006 | D113: 65.400002 | E113: 0.2000046 | F113: 4715.99 | G113: 0.0296135 | H113: 4200000 | I113: 0.0420458
A114: BOL | B114: Bolivia | C114: 2007 | D114: 62.700001 | E114: -2.700001 | F114: 4850.19 | G114: 0.028059 | H114: 4300000 | I114: 0.0453044
A115: BOL | B115: Bolivia | C115: 2008 | D115: 62.900002 | E115: 0.2000008 | F115: 5065.87 | G115: 0.0435085 | H115: 4400000 | I115: 0.0416304
A116: BOL | B116: Bolivia | C116: 2009 | D116: 59.799999 | E116: -3.100002 | F116: 5152.46 | G116: 0.0169487 | H116: 4600000 | I116: 0.0470705
A117: BOL | B117: Bolivia | C117: 2010 | F117: 5278.89 | G117: 0.0242405 | H117: 4700000 | I117: 0.0453999
A118: BOL | B118: Bolivia | C118: 2011 | F118: 5461.75 | G118: 0.0340548 | H118: 4800000 | I118: 0.0434875
A119: BOL | B119: Bolivia | C119: 2012 | F119: 5650.43 | G119: 0.0339622 | H119: 4900000 | I119: 0.0439448
A120: BOL | B120: Bolivia | C120: 2013
A121: BRA | B121: Brazil | C121: 1990 | D121: 34.200001 | F121: 9996.84 | H121: 63000000
A122: BRA | B122: Brazil | C122: 1991 | F122: 9980.91 | G122: -0.0015945 | H122: 66000000 | I122: 0.0608456
A123: BRA | B123: Brazil | C123: 1992 | D123: 39.400002 | F123: 9777.23 | G123: -0.0206175 | H123: 70000000 | I123: 0.0632505
A124: BRA | B124: Brazil | C124: 1993 | D124: 39.200001 | E124: -0.2000008 | F124: 10076.1 | G124: 0.0301075 | H124: 72000000 | I124: 0.0241657
A125: BRA | B125: Brazil | C125: 1994 | F125: 10452.3 | G125: 0.0366621 | H125: 74000000 | I125: 0.0298752
A126: BRA | B126: Brazil | C126: 1995 | D126: 39.900002 | F126: 10748.3 | G126: 0.0279226 | H126: 76000000 | I126: 0.0306953
A127: BRA | B127: Brazil | C127: 1996 | D127: 38.299999 | E127: -1.600002 | F127: 10812.3 | G127: 0.0059376 | H127: 75000000 | I127: -0.0060303
A128: BRA | B128: Brazil | C128: 1997 | F128: 11007.6 | G128: 0.0179014 | H128: 78000000 | I128: 0.0423481
A129: BRA | B129: Brazil | C129: 1998 | F129: 10846 | G129: -0.0147877 | H129: 80000000 | I129: 0.0299835
A130: BRA | B130: Brazil | C130: 1999 | F130: 10713.6 | G130: -0.012289 | H130: 82000000 | I130: 0.0430124
A131: BRA | B131: Brazil | C131: 2000 | D131: 30.299999 | F131: 11014.9 | G131: 0.0277348 | H131: 84000000 | I131: 0.0211449
A132: BRA | B132: Brazil | C132: 2001 | D132: 37.900002 | E132: 7.600002 | F132: 11004.4 | G132: -0.0009537 | H132: 85000000 | I132: 0.0198113
A133: BRA | B133: Brazil | C133: 2002 | D133: 38 | E133: 0.0999985 | F133: 11143.9 | G133: 0.0125999 | H133: 88000000 | I133: 0.0430893
A134: BRA | B134: Brazil | C134: 2003 | D134: 37.900002 | E134: -0.0999985 | F134: 11125.4 | G134: -0.0016632 | H134: 89000000 | I134: 0.028231
A135: BRA | B135: Brazil | C135: 2004 | D135: 37.099998 | E135: -0.8000031 | F135: 11616.8 | G135: 0.0432234 | H135: 92000000 | I135: 0.0402296
A136: BRA | B136: Brazil | C136: 2005 | D136: 32.599998 | E136: -4.5 | F136: 11846.2 | G136: 0.0195551 | H136: 95000000 | I136: 0.0422137
A137: BRA | B137: Brazil | C137: 2006 | D137: 31.700001 | E137: -0.8999977 | F137: 12184.4 | G137: 0.0281477 | H137: 96000000 | I137: 0.0179325
A138: BRA | B138: Brazil | C138: 2007 | D138: 30.799999 | E138: -0.9000015 | F138: 12800.3 | G138: 0.0493174 | H138: 97000000 | I138: 0.0147818
A139: BRA | B139: Brazil | C139: 2008 | D139: 29.700001 | E139: -1.099998 | F139: 13337.9 | G139: 0.0411358 | H139: 98000000 | I139: 0.0276937
A140: BRA | B140: Brazil | C140: 2009 | D140: 29.4 | E140: -0.3000011 | F140: 13175.6 | G140: -0.0122452 | H140: 100000000 | I140: 0.0256451
A141: BRA | B141: Brazil | C141: 2010 | F141: 14043.4 | G141: 0.0637875 | H141: 100000000 | I141: 0.0284761
A142: BRA | B142: Brazil | C142: 2011 | F142: 14300.7 | G142: 0.0181608 | H142: 100000000 | I142: 0.022066
A143: BRA | B143: Brazil | C143: 2012 | F143: 14300.6 | G143: -1.14e-05 | H143: 100000000 | I143: 0.0247999
A144: BRA | B144: Brazil | C144: 2013
A145: BRB | B145: Barbados | C145: 1990 | D145: 12.5 | F145: 13025 | H145: 136229
A146: BRB | B146: Barbados | C146: 1991 | D146: 12.7 | E146: 0.1999998 | F146: 12604.9 | G146: -0.0327835 | H146: 134263 | I146: -0.0144281
A147: BRB | B147: Barbados | C147: 1992 | D147: 13 | E147: 0.3000002 | F147: 11941.1 | G147: -0.0540943 | H147: 136285 | I147: 0.0148403
A148: BRB | B148: Barbados | C148: 1993 | D148: 14.2 | E148: 1.2 | F148: 12024.6 | G148: 0.0069618 | H148: 137799 | I148: 0.0111147
A149: BRB | B149: Barbados | C149: 1994 | D149: 13 | E149: -1.2 | F149: 12467.9 | G149: 0.0362053 | H149: 139068 | I149: 0.0093144
A150: BRB | B150: Barbados | C150: 1995 | D150: 12.7 | E150: -0.3000002 | F150: 12618.9 | G150: 0.0120363 | H150: 140969 | I150: 0.0139557
A151: BRB | B151: Barbados | C151: 1996 | D151: 12.7 | E151: 0 | F151: 12815.3 | G151: 0.0154457 | H151: 140056 | I151: -0.0067019
A152: BRB | B152: Barbados | C152: 1997 | D152: 12 | E152: -0.6999998 | F152: 13597.6 | G152: 0.0592527 | H152: 140992 | I152: 0.0068702
A153: BRB | B153: Barbados | C153: 1998 | D153: 12.5 | E153: 0.5 | F153: 14116 | G153: 0.0374174 | H153: 142391 | I153: 0.0102699
A154: BRB | B154: Barbados | C154: 1999 | D154: 14 | E154: 1.5 | F154: 14435.7 | G154: 0.0223989 | H154: 143663 | I154: 0.0093385
A155: BRB | B155: Barbados | C155: 2000 | D155: 12.7 | E155: -1.3 | F155: 14714.2 | G155: 0.0191021 | H155: 145446 | I155: 0.0130861
A156: BRB | B156: Barbados | C156: 2001 | D156: 14.1 | E156: 1.400001 | F156: 14279.8 | G156: -0.0299635 | H156: 147131 | I156: 0.01237
A157: BRB | B157: Barbados | C157: 2002 | D157: 14.1 | E157: 0 | F157: 14310.4 | G157: 0.0021372 | H157: 146807 | I157: -0.0023813
A158: BRB | B158: Barbados | C158: 2003 | D158: 14.4 | E158: 0.2999992 | F158: 14521.6 | G158: 0.0146532 | H158: 148665 | I158: 0.0136417
A159: BRB | B159: Barbados | C159: 2004 | D159: 15.2 | E159: 0.8000002 | F159: 14656.1 | G159: 0.0092182 | H159: 151651 | I159: 0.0219231
A160: BRB | B160: Barbados | C160: 2005 | F160: 15165.9 | G160: 0.0341949 | H160: 153373 | I160: 0.0126361
A161: BRB | B161: Barbados | C161: 2006 | F161: 15952.3 | G161: 0.0505552 | H161: 154889 | I161: 0.0111284
A162: BRB | B162: Barbados | C162: 2007 | F162: 16139.4 | G162: 0.0116587 | H162: 156407 | I162: 0.011145
A163: BRB | B163: Barbados | C163: 2008 | F163: 16115.6 | G163: -0.0014744 | H163: 158148 | I163: 0.0127757
A164: BRB | B164: Barbados | C164: 2009 | F164: 15372.5 | G164: -0.0472069 | H164: 159858 | I164: 0.0125524
A165: BRB | B165: Barbados | C165: 2010 | F165: 15335.1 | G165: -0.0024385 | H165: 161078 | I165: 0.0089582
A166: BRB | B166: Barbados | C166: 2011 | F166: 15374.2 | G166: 0.0025473 | H166: 162471 | I166: 0.0102234
A167: BRB | B167: Barbados | C167: 2012 | F167: 15298.7 | G167: -0.0049229 | H167: 163584 | I167: 0.00817
A168: BRB | B168: Barbados | C168: 2013
A169: CAN | B169: Canada | C169: 1990 | D169: 14.4 | F169: 30318.5 | H169: 15000000
A170: CAN | B170: Canada | C170: 1991 | D170: 14.9 | E170: 0.5 | F170: 29283.1 | G170: -0.034749 | H170: 15000000 | I170: 0.0067067
A171: CAN | B171: Canada | C171: 1992 | D171: 15.1 | E171: 0.2000008 | F171: 29179 | G171: -0.0035601 | H171: 15000000 | I171: -0.0025024
A172: CAN | B172: Canada | C172: 1993 | D172: 15.8 | E172: 0.6999998 | F172: 29536.4 | G172: 0.0121727 | H172: 15000000 | I172: 0.0069155
A173: CAN | B173: Canada | C173: 1994 | D173: 15.9 | E173: 0.0999994 | F173: 30659.2 | G173: 0.0373116 | H173: 15000000 | I173: 0.0075573
A174: CAN | B174: Canada | C174: 1995 | D174: 15.8 | E174: -0.0999994 | F174: 31260.3 | G174: 0.0194159 | H174: 15000000 | I174: 0.0036722
A175: CAN | B175: Canada | C175: 1996 | D175: 16.6 | E175: 0.8000002 | F175: 31426 | G175: 0.0052862 | H175: 15000000 | I175: 0.0101013
A176: CAN | B176: Canada | C176: 1997 | D176: 17.1 | E176: 0.5 | F176: 32409.6 | G176: 0.0308208 | H176: 15000000 | I176: 0.0171123
A177: CAN | B177: Canada | C177: 1998 | D177: 17.1 | E177: 0 | F177: 33446.8 | G177: 0.0315008 | H177: 16000000 | I177: 0.0174835
A178: CAN | B178: Canada | C178: 1999 | D178: 17 | E178: -0.1000004 | F178: 35006.2 | G178: 0.0455685 | H178: 16000000 | I178: 0.0192935
A179: CAN | B179: Canada | C179: 2000 | D179: 16.200001 | E179: -0.7999992 | F179: 36514.3 | G179: 0.0421791 | H179: 16000000 | I179: 0.0169619
A180: CAN | B180: Canada | C180: 2001 | D180: 15.2 | E180: -1.000001 | F180: 36792.4 | G180: 0.0075855 | H180: 16000000 | I180: 0.0169723
A181: CAN | B181: Canada | C181: 2002 | D181: 15.1 | E181: -0.0999994 | F181: 37530.2 | G181: 0.0198545 | H181: 17000000 | I181: 0.0298734
A182: CAN | B182: Canada | C182: 2003 | D182: 15.3 | E182: 0.1999998 | F182: 37857.1 | G182: 0.0086737 | H182: 17000000 | I182: 0.0281186
A183: CAN | B183: Canada | C183: 2004 | D183: 15.4 | E183: 0.0999994 | F183: 38649 | G183: 0.0207024 | H183: 18000000 | I183: 0.0162594
A184: CAN | B184: Canada | C184: 2005 | D184: 15.5 | E184: 0.1000004 | F184: 39425.2 | G184: 0.0198851 | H184: 18000000 | I184: 0.0090091
A185: CAN | B185: Canada | C185: 2006 | D185: 15.2 | E185: -0.3000002 | F185: 40216.5 | G185: 0.0198708 | H185: 18000000 | I185: 0.0140039
A186: CAN | B186: Canada | C186: 2007 | D186: 15.5 | E186: 0.3000002 | F186: 40704.5 | G186: 0.012063 | H186: 18000000 | I186: 0.0254021
A187: CAN | B187: Canada | C187: 2008 | D187: 15.4 | E187: -0.1000004 | F187: 40543.7 | G187: -0.0039577 | H187: 19000000 | I187: 0.0212185
A188: CAN | B188: Canada | C188: 2009 | D188: 9.5 | E188: -5.9 | F188: 38972 | G188: -0.0395374 | H188: 19000000 | I188: 0.0082741
A189: CAN | B189: Canada | C189: 2010 | D189: 9.1999998 | E189: -0.3000002 | F189: 39779.4 | G189: 0.020504 | H189: 19000000 | I189: 0.0126864
A190: CAN | B190: Canada | C190: 2011 | D190: 9 | E190: -0.1999998 | F190: 40384.2 | G190: 0.0150909 | H190: 19000000 | I190: 0.0101335
A191: CAN | B191: Canada | C191: 2012 | F191: 40588 | G191: 0.0050344 | H191: 19000000 | I191: 0.0139197
A192: CAN | B192: Canada | C192: 2013
A193: CHE | B193: Switzerland | C193: 1991 | D193: 15.2 | F193: 43964.3 | H193: 3900000
A194: CHE | B194: Switzerland | C194: 1992 | D194: 15.2 | E194: 0 | F194: 43463.2 | G194: -0.0114622 | H194: 3900000 | I194: 0.0095164
A195: CHE | B195: Switzerland | C195: 1993 | D195: 16.4 | E195: 1.2 | F195: 43014.9 | G195: -0.0103683 | H195: 3900000 | I195: 0.005806
A196: CHE | B196: Switzerland | C196: 1994 | D196: 15.9 | E196: -0.5 | F196: 43215.2 | G196: 0.0046463 | H196: 3900000 | I196: -0.0056305
A197: CHE | B197: Switzerland | C197: 1995 | D197: 16.299999 | E197: 0.3999996 | F197: 43133.8 | G197: -0.0018854 | H197: 3900000 | I197: 0.0024831
A198: CHE | B198: Switzerland | C198: 1996 | D198: 17.799999 | E198: 1.5 | F198: 43151.9 | G198: 0.0004187 | H198: 3900000 | I198: 0.0068356
A199: CHE | B199: Switzerland | C199: 1997 | D199: 18.4 | E199: 0.6000004 | F199: 43927.2 | G199: 0.017808 | H199: 3900000 | I199: -0.0021538
A200: CHE | B200: Switzerland | C200: 1998 | D200: 17.799999 | E200: -0.6000004 | F200: 44994.4 | G200: 0.024003 | H200: 4000000 | I200: 0.0111251
... 1321 more rows

Sheet Data Figure 6
B1: selfemp | C1: employee | D1: employer | E1: fsize_sml | F1: fsize_med | G1: fsize_lrg | H1: fsize_num | I1: frml_registr | J1: frml_account | K1: frml_pension | L1: inc | M1: inc_emplr | N1: inc_empee | O1: inc_selfemp | Z1: inc | AA1: inc_emplr | AC1: inc_empee | AD1: inc_selfemp | AE1: gdppc_const05usd
A2: year | B2: Self-employed | C2: Employees | D2: Employers | E2: Small firms [1-99 employees] | F2: Medium firms [100-499 employees] | G2: Large firms [500+ employees] | H2: Average firm size | I2: Working population in formally registered firms or self-employment | J2: Working population in firms or self-employment with formal accounting | K2: Working population affiliated with pension system | L2: Total annual income | M2: Total annual income, employers | N2: Total annual income, employees | O2: Total annual income, self-employed | P2: GDP per capita, PPP (constant 2005 international $) | Q2: Foreign direct investment, net inflows (% of GDP) | R2: Agriculture, value added (% of GDP) | S2: Industry, value added (% of GDP) | T2: Services, etc., value added (% of GDP) | U2: Total natural resources rents (% of GDP) | V2: Manufacturing, value added (% of GDP) | W2: GDP in current PEN | X2: GDP in constant 2005 USD | Y2: exchange: 2005 USD / current LCU | Z2: Total annual income | AA2: Total annual income, employers | AB2: year | AC2: Total annual income, employees | AD2: Total annual income, self-employed | AE2: GDP per capita
A3: 1998 | B3: 0.5116111636 | C3: 0.348208338 | D3: 0.1401804835 | E3: 0.9276406765 | F3: 0.03868266195 | G3: 0.03367665038 | H3: 103.0654221 | L3: 7012.146484 | M3: 12962.07324 | N3: 7058.206543 | O3: 5047.998535 | P3: 5474.051409 | Q3: 0.0289674091 | R3: 0.0897755485 | S3: 0.2969337421 | T3: 0.6132907094 | U3: 0.01101786732 | V3: 0.1573228628 | W3: 166300000000 | X3: 62230000000 | Y3: 0.3742533 | Z3: =L3*$Y3 -> 2624.318962 | AA3: 4851.098686 | AB3: 1998 | AC3: =N3*$Y3 -> 2641.557091 | AD3: =O3*$Y3 -> 1889.23011 | AE3: 2468.8462
A4: 1999 | B4: 0.5264533162 | C4: 0.3734233379 | D4: 0.1001233608 | E4: 0.944835186 | F4: 0 | G4: 0.05516481027 | H4: 37.15980148 | K4: 0.04751130193 | L4: 6194.639648 | M4: 6891.100586 | N4: 7308.916504 | O4: 5172.90332 | P4: 5436.809992 | Q4: 0.0376631151 | R4: 0.08756236054 | S4: 0.2955518174 | T4: 0.616885822 | U4: 0.01543815399 | V4: 0.1534733826 | W4: 174400000000 | X4: 62800000000 | Y4: 0.3600509 | Z4: 2230.385581 | AA4: 2481.146968 | AB4: =AB3+1 -> 1999 | AC4: 2631.581965 | AD4: 1862.508496 | AE4: 2452.05
A5: 2000 | B5: 0.5893288255 | C5: 0.3087467551 | D5: 0.1019244343 | E5: 0.9482117891 | F5: 0 | G5: 0.05178820342 | H5: 183.8697205 | K5: 0.09836837649 | L5: 6747.143555 | M5: 11555.40527 | N5: 8427.067383 | O5: 4769.305176 | P5: 5513.571779 | Q5: 0.01519404822 | R5: 0.08499160947 | S5: 0.2989408053 | T5: 0.6160675852 | U5: 0.02575633103 | V5: 0.1580959969 | W5: 186100000000 | X5: 64650000000 | Y5: 0.3473367 | Z5: 2343.530577 | AA5: 4013.616335 | AB5: =AB4+1 -> 2000 | AC5: 2927.029775 | AD5: 1656.554721 | AE5: 2486.6702
A6: 2001 | B6: 0.5527413487 | C6: 0.3026723862 | D6: 0.1445863098 | E6: 0.912819922 | F6: 0.05431585014 | G6: 0.03286419809 | H6: 62.03102493 | K6: 0.1102600619 | L6: 6868.747559 | M6: 10701.35547 | N6: 7268.666016 | O6: 5474.057129 | P6: 5447.42211 | Q6: 0.02121523789 | R6: 0.08249249556 | S6: 0.2957879003 | T6: 0.6217196041 | U6: 0.01839242249 | V6: 0.1600335605 | W6: 189200000000 | X6: 64790000000 | Y6: 0.3424324 | Z6: 2352.081711 | AA6: 3664.490836 | AB6: 2001 | AC6: 2489.026749 | AD6: 1874.49452 | AE6: 2456.8361
A7: 2002 | B7: 0.6661027074 | C7: 0.2432637811 | D7: 0.09063350409 | E7: 0.8920653462 | F7: 0.05615472421 | G7: 0.05177995935 | H7: 118.8278275 | I7: 0.1291027814 | J7: 0.1535280794 | K7: 0.06223891675 | L7: 6365.395996 | M7: 9440.676758 | N7: 7726.858887 | O7: 5286.668457 | P7: 5644.367506 | Q7: 0.03797336625 | R7: 0.07845658276 | S7: 0.3038613021 | T7: 0.6176821151 | U7: 0.0168626072 | V7: 0.1608865879 | W7: 199600000000 | X7: 68050000000 | Y7: 0.340823 | Z7: 2169.47336 | AA7: 3217.599775 | AB7: 2002 | AC7: 2633.491226 | AD7: 1801.818204 | AE7: 2545.6603
A8: 2003 | B8: 0.6899913549 | C8: 0.2252062261 | D8: 0.08480241895 | E8: 0.8853387833 | F8: 0.05438287556 | G8: 0.0602783151 | H8: 168.8941193 | I8: 0.1154542565 | J8: 0.1489359587 | K8: 0.07814041525 | L8: 6338.163574 | M8: 10401.95801 | N8: 8508.910156 | O8: 4937.326172 | P8: 5797.478342 | Q8: 0.02176166811 | R8: 0.07631926519 | S8: 0.308311339 | T8: 0.6153693958 | U8: 0.02240393327 | V8: 0.1569441653 | W8: 213400000000 | X8: 70790000000 | Y8: 0.3316813 | Z8: 2102.250334 | AA8: 3450.134955 | AB8: 2003 | AC8: 2822.246382 | AD8: 1637.618763 | AE8: 2614.7146
A9: 2004 | B9: 0.6611548066 | C9: 0.2436665297 | D9: 0.09517867863 | E9: 0.8799787164 | F9: 0.07725723088 | G9: 0.04276406765 | H9: 114.2162399 | I9: 0.1192818433 | J9: 0.1556822807 | K9: 0.1179379746 | L9: 6283.646973 | M9: 10598.48242 | N9: 8343.623047 | O9: 4688.21875 | P9: 6012.601479 | Q9: 0.02293349818 | R9: 0.07288555422 | S9: 0.3297902398 | T9: 0.5973242059 | U9: 0.04253204277 | V9: 0.1633463691 | W9: 237900000000 | X9: 74310000000 | Y9: 0.3123644 | Z9: 1962.787616 | AA9: 3310.588603 | AB9: 2004 | AC9: 2606.250807 | AD9: 1464.432637 | AE9: 2711.7371
A10: 2005 | B10: 0.6854733825 | C10: 0.2219323367 | D10: 0.09259428084 | E10: 0.8752818108 | F10: 0.06888577342 | G10: 0.05583243817 | H10: 152.7020569 | I10: 0.1115775108 | J10: 0.1527059525 | K10: 0.1453244984 | L10: 5944.944824 | M10: 9642.058594 | N10: 8506.579102 | O10: 4478.665527 | P10: 6349.054594 | Q10: 0.03248368054 | R10: 0.07206778881 | S10: 0.3432449785 | T10: 0.5846872327 | U10: 0.06708557831 | V10: 0.1639572736 | W10: 261700000000 | X10: 79390000000 | Y10: 0.3033981 | Z10: 1803.684964 | AA10: 2925.382257 | AB10: 2005 | AC10: 2580.879937 | AD10: 1358.818612 | AE10: 2863.4805
A11: 2006 | B11: 0.6600571275 | C11: 0.2360193133 | D11: 0.1039235294 | E11: 0.8739340901 | F11: 0.07757349312 | G11: 0.04849244282 | H11: 147.8301544 | I11: 0.1150752157 | J11: 0.1533274055 | K11: 0.1547557712 | L11: 6902.328125 | M11: 10417.51855 | N11: 10224.83203 | O11: 4944.743164 | P11: 6765.484071 | Q11: 0.03755566609 | R11: 0.06952271804 | S11: 0.3701676357 | T11: 0.5603096462 | U11: 0.1345646404 | V11: 0.1601216902 | W11: 302300000000 | X11: 85530000000 | Y11: 0.2829724 | Z11: 1953.168355 | AA11: 2947.870227 | AB11: 2006 | AC11: 2893.345259 | AD11: 1399.225841 | AE11: 3051.2939
A12: 2007 | B12: 0.6088060737 | C12: 0.3097626269 | D12: 0.08143128455 | E12: 0.8658111095 | F12: 0.05568287522 | G12: 0.07850599289 | H12: 208.2761993 | I12: 0.1751778126 | J12: 0.2244829237 | K12: 0.2006100863 | L12: 8901.573242 | M12: 28198.79102 | N12: 9731.186523 | O12: 5466.644043 | P12: 7290.535186 | Q12: 0.05120589256 | R12: 0.07008229742 | S12: 0.3706958669 | T12: 0.5592218357 | U12: 0.1386043796 | V12: 0.1596520886 | W12: 335500000000 | X12: 93150000000 | Y12: 0.277612 | Z12: 2471.183551 | AA12: 7828.322771 | AB12: 2007 | AC12: 2701.494153 | AD12: 1517.605986 | AE12: 3288.0966
A13: 2008 | B13: 0.605266273 | C13: 0.3069616556 | D13: 0.08777205646 | E13: 0.8394922614 | F13: 0.09114386141 | G13: 0.06936388463 | H13: 300.8740845 | I13: 0.1846013814 | J13: 0.2449075133 | K13: 0.2076603621 | L13: 9940.96582 | M13: 24482.33984 | N13: 11705.13867 | O13: 6412.770996 | P13: 7922.159634 | Q13: 0.05459313769 | R13: 0.07235228241 | S13: 0.3624339676 | T13: 0.56521375 | U13: 0.1236112751 | V13: 0.1594456496 | W13: 371100000000 | X13: 102300000000 | Y13: 0.2756287 | Z13: 2740.015486 | AA13: 6748.035504 | AB13: 2008 | AC13: 3226.272155 | AD13: 1767.543733 | AE13: 3572.9649
A14: 2009 | B14: 0.6054524779 | C14: 0.3039236665 | D14: 0.09062385559 | E14: 0.8550143242 | F14: 0.07609805465 | G14: 0.06888763607 | H14: 201.8699646 | I14: 0.1872877628 | J14: 0.2382957935 | K14: 0.2358488888 | L14: 10794.58008 | M14: 28552.17773 | N14: 12348.87891 | O14: 6860.89209 | P14: 7905.18562 | Q14: 0.05066573319 | R14: 0.07321302219 | S14: 0.3412315457 | T14: 0.5855554321 | U14: 0.09156089654 | V14: 0.1403494833 | W14: 382300000000 | X14: 103200000000 | Y14: 0.2698271 | Z14: 2912.670238 | AA14: 7704.151317 | AB14: 2009 | AC14: 3332.062184 | AD14: 1851.254616 | AE14: 3565.3095
A15: 2010 | B15: 0.5944393277 | C15: 0.3135380745 | D15: 0.09202260524 | E15: 0.8591077924 | F15: 0.05730913952 | G15: 0.08358305693 | H15: 268.6055298 | I15: 0.183683157 | J15: 0.2396410257 | K15: 0.2452830225 | L15: 11131.78516 | M15: 23704.93555 | N15: 13911.00977 | O15: 7128.506836 | P15: 8501.284336 | Q15: 0.0550367907 | R15: 0.06777848054 | S15: 0.3593779439 | T15: 0.5728435756 | U15: 0.1189423952 | V15: 0.1444939683 | W15: 434500000000 | X15: 112200000000 | Y15: 0.2582048 | Z15: 2874.28036 | AA15: 6120.728142 | AB15: 2010 | AC15: 3591.889494 | AD15: 1840.614682 | AE15: 3834.1553
B97: E:\Documents\Dropbox\InformalEconomy\Informality_2013\Peru\Peru_informality_timeseries9810_formatted_11182013.xls
